Workbook

Sheet Introducción
B4: Te damos la bienvenida a la herramienta de predicción de llaves para torneos de baloncesto.
B6: Esta herramienta te permite ingresar tus propias ponderaciones a diferentes rangos y estadísticas establecidos, así como a tus propias predicciones de rendimiento para predecir los ganadores de todos los enfrentamientos en el torneo.
B7: Los participantes del torneo, rankings, estadísticas, cuatro primeros enfrentamientos y enfrentamientos de la primera ronda se cargaron previamente en las celdas grises de la hoja de cálculo.
B8: Paso 1 | C8: En la hoja de cálculo de datos proporcionados por el usuario, simplemente asigna tus propias predicciones de rendimiento y ponderación a las celdas de color verde claro.
B9: Paso 2 | C9: Verifica los resultados de los datos ingresados en la hoja de cálculo Llaves.
B11: Y eso es todo, ya puedes pronosticar quién será el campeón nacional.
B13: ¿Estás interesado en un enfoque diferente?
B14: Buscar las predicciones de Bing aquí
B16: Nota: Esta herramienta es ofrecida por Microsoft Corporation. No cuenta con patrocinio ni apoyo de la NCAA, ni está afiliada a ella. Esta herramienta es solo para diversión y no fue diseñada para usar en apuestas ni en otras actividades que generan valor. No formulamos ninguna declaración respecto de la precisión de las predicciones ni de las llaves derivadas de esta herramienta.

Sheet Entrada del usuario
B5: Nombre de usuario | D5: 4 semifinalistas proyectados | H5: Finalistas proyectados | O5: Campeón
B6: Escribe el nombre de usuario | D6: =+Llaves!W34 -> Duke | E6: =+Llaves!W98 -> Gonzaga | F6: =+Llaves!AO34 -> Virginia | G6: =+Llaves!AO98 -> Houston | H6: =+Llaves!AB66 -> Gonzaga | I6: =+Llaves!AJ66 -> Virginia | O6: =+Llaves!AF66 -> Virginia
Q8: =+D8 -> 0 | R8: =+E8 -> 0 | S8: =+F8 -> 0 | T8: =+G8 -> 0 | U8: =+H8 -> 0 | V8: =+I8 -> 0 | W8: =+J8 -> 0 | X8: =+K8 -> 0 | Y8: =+L8 -> 0 | Z8: =+M8 -> 0 | AA8: =+N8 -> 0 | AB8: =+O8 -> 0
B9: Ponderación de columna asignada por el usuario Entre 0 (no usar) y 10 (factor más alto) | D9: 5 | E9: 1 | F9: 1 | G9: 1 | H9: 2 | I9: 5 | J9: 0 | K9: 0 | L9: 0 | Q9: =+D9 -> 5 | R9: =+E9 -> 1 | S9: =+F9 -> 1 | T9: =+G9 -> 1 | U9: 2 | V9: 5 | W9: 0 | X9: 0 | Y9: 0
B10: 1 | C10: Duke | D10: 1 | E10: =VLOOKUP(C10,'Ranking de la NCAA'!$D$6:$L$358,9,FALSE) -> 3 | F10: =VLOOKUP(C10,'Anotación de ataque'!$C$6:$F$356,4,FALSE) -> 84.1 | G10: =VLOOKUP(C10,'Anotación de defensa'!$C$6:$F$356,4,FALSE) -> 67.4 | H10: =VLOOKUP(C10,'% de ganados y perdidos'!$C$6:$F$356,4,FALSE)/100 -> 83.9% | I10: 5 | J10: 0 | K10: 0 | L10: 0 | O10: =+AB10 -> 7.46 | Q10: =_xlfn.RANK.EQ(D10,D$10:D$77,0)/COUNT($B$10:$B$77)*10 -> 10.00 | R10: =_xlfn.RANK.EQ(E10,E$10:E$77,0)/COUNT($B$10:$B$77)*10 -> 9.71 | S10: =((F10-MIN(F$10:F$77))/(MAX(F$10:F$77)-MIN(F$10:F$77)))*10 -> 7.95 | T10: =10-((G10-MIN(G$10:G$77))/(MAX(G$10:G$77)-MIN(G$10:G$77)))*10 -> 3.90 | U10: =((H10-MIN(H$10:H$77))/(MAX(H$10:H$77)-MIN(H$10:H$77)))*10 -> 7.70 | V10: =+I10 -> 5 | W10: =+J10 -> 0 | X10: =+K10 -> 0 | Y10: =+L10 -> 0 | AB10: =+(Q10*Q$9+R10*R$9+S10*S$9+T10*T$9+U10*U$9+V10*V$9+W10*W$9+X10*X$9+Y10*Y$9)/SUM(Q$9:Y$9) -> 7.46
B11: 2 | C11: Virginia | D11: 2 | E11: =VLOOKUP(C11,'Ranking de la NCAA'!$D$6:$L$358,9,FALSE) -> 1 | F11: =VLOOKUP(C11,'Anotación de ataque'!$C$6:$F$356,4,FALSE) -> 72.1 | G11: =VLOOKUP(C11,'Anotación de defensa'!$C$6:$F$356,4,FALSE) -> 54.6 | H11: =VLOOKUP(C11,'% de ganados y perdidos'!$C$6:$F$356,4,FALSE)/100 -> 93.3% | I11: 5 | J11: 0 | K11: 0 | L11: 0 | O11: =+AB11 -> 7.79 | Q11: =_xlfn.RANK.EQ(D11,D$10:D$77,0)/COUNT($B$10:$B$77)*10 -> 9.85 | R11: 10.00 | S11: 2.71 | T11: 10.00 | U11: 9.95 | V11: =+I11 -> 5 | W11: 0 | X11: 0 | Y11: 0 | AB11: 7.79
B12: 3 | C12: North Carolina | D12: 3 | E12: =VLOOKUP(C12,'Ranking de la NCAA'!$D$6:$L$358,9,FALSE) -> 7 | F12: =VLOOKUP(C12,'Anotación de ataque'!$C$6:$F$356,4,FALSE) -> 86.6 | G12: =VLOOKUP(C12,'Anotación de defensa'!$C$6:$F$356,4,FALSE) -> 72.9 | H12: =VLOOKUP(C12,'% de ganados y perdidos'!$C$6:$F$356,4,FALSE)/100 -> 83.9% | I12: 5 | J12: 0 | K12: 0 | L12: 0 | O12: 7.23 | Q12: 9.71 | R12: 9.12 | S12: 9.04 | T12: 1.29 | U12: 7.70 | V12: 5 | W12: 0 | X12: 0 | Y12: 0 | AB12: 7.23
B13: 4 | C13: Gonzaga | D13: 4 | E13: =VLOOKUP(C13,'Ranking de la NCAA'!$D$6:$L$358,9,FALSE) -> 2 | F13: =VLOOKUP(C13,'Anotación de ataque'!$C$6:$F$356,4,FALSE) -> 88.8 | G13: =VLOOKUP(C13,'Anotación de defensa'!$C$6:$F$356,4,FALSE) -> 65.1 | H13: =VLOOKUP(C13,'% de ganados y perdidos'!$C$6:$F$356,4,FALSE)/100 -> 90.9% | I13: 5 | J13: 0 | K13: 0 | L13: 0 | O13: 7.76 | Q13: 9.56 | R13: 9.85 | S13: 10.00 | T13: 5.00 | U13: 9.38 | V13: 5 | W13: 0 | X13: 0 | Y13: 0 | AB13: 7.76
B14: 5 | C14: Tennessee | D14: 5 | E14: =VLOOKUP(C14,'Ranking de la NCAA'!$D$6:$L$358,9,FALSE) -> 5 | F14: =VLOOKUP(C14,'Anotación de ataque'!$C$6:$F$356,4,FALSE) -> 82.3 | G14: =VLOOKUP(C14,'Anotación de defensa'!$C$6:$F$356,4,FALSE) -> 67.6 | H14: =VLOOKUP(C14,'% de ganados y perdidos'!$C$6:$F$356,4,FALSE)/100 -> 87.1% | I14: 5 | J14: 0 | K14: 0 | L14: 0 | O14: 7.29 | Q14: 9.41 | R14: 9.41 | S14: 7.16 | T14: 3.81 | U14: 8.47 | V14: 5 | W14: 0 | X14: 0 | Y14: 0 | AB14: 7.29
B15: 6 | C15: Michigan St. | D15: 6 | E15: =VLOOKUP(C15,'Ranking de la NCAA'!$D$6:$L$358,9,FALSE) -> 8 | F15: =VLOOKUP(C15,'Anotación de ataque'!$C$6:$F$356,4,FALSE) -> 79.7 | G15: =VLOOKUP(C15,'Anotación de defensa'!$C$6:$F$356,4,FALSE) -> 65.9 | H15: =VLOOKUP(C15,'% de ganados y perdidos'!$C$6:$F$356,4,FALSE)/100 -> 80.6% | I15: 5 | J15: 0 | K15: 0 | L15: 0 | O15: 6.98 | Q15: 9.26 | R15: 8.97 | S15: 6.03 | T15: 4.62 | U15: 6.91 | V15: 5 | W15: 0 | X15: 0 | Y15: 0 | AB15: 6.98
B16: 7 | C16: Kentucky | D16: 7 | E16: =VLOOKUP(C16,'Ranking de la NCAA'!$D$6:$L$358,9,FALSE) -> 6 | F16: =VLOOKUP(C16,'Anotación de ataque'!$C$6:$F$356,4,FALSE) -> 76.8 | G16: =VLOOKUP(C16,'Anotación de defensa'!$C$6:$F$356,4,FALSE) -> 65.2 | H16: =VLOOKUP(C16,'% de ganados y perdidos'!$C$6:$F$356,4,FALSE)/100 -> 83.9% | I16: 5 | J16: 0 | K16: 0 | L16: 0 | O16: 7.00 | Q16: 9.12 | R16: 9.26 | S16: =((F16-MIN(F$10:F$77))/(MAX(F$10:F$77)-MIN(F$10:F$77)))*10 -> 4.76 | T16: =10-((G16-MIN(G$10:G$77))/(MAX(G$10:G$77)-MIN(G$10:G$77)))*10 -> 4.95 | U16: =((H16-MIN(H$10:H$77))/(MAX(H$10:H$77)-MIN(H$10:H$77)))*10 -> 7.70 | V16: =+I16 -> 5 | W16: =+J16 -> 0 | X16: =+K16 -> 0 | Y16: =+L16 -> 0 | AB16: 7.00
B17: 8 | C17: Michigan | D17: 8 | E17: =VLOOKUP(C17,'Ranking de la NCAA'!$D$6:$L$358,9,FALSE) -> 9 | F17: =VLOOKUP(C17,'Anotación de ataque'!$C$6:$F$356,4,FALSE) -> 70.4 | G17: =VLOOKUP(C17,'Anotación de defensa'!$C$6:$F$356,4,FALSE) -> 58.8 | H17: =VLOOKUP(C17,'% de ganados y perdidos'!$C$6:$F$356,4,FALSE)/100 -> 83.9% | I17: 5 | J17: 0 | K17: 0 | L17: 0 | O17: 6.94 | Q17: 8.97 | R17: 8.82 | S17: =((F17-MIN(F$10:F$77))/(MAX(F$10:F$77)-MIN(F$10:F$77)))*10 -> 1.97 | T17: =10-((G17-MIN(G$10:G$77))/(MAX(G$10:G$77)-MIN(G$10:G$77)))*10 -> 8.00 | U17: =((H17-MIN(H$10:H$77))/(MAX(H$10:H$77)-MIN(H$10:H$77)))*10 -> 7.70 | V17: 5 | W17: 0 | X17: 0 | Y17: 0 | AB17: 6.94
B18: 9 | C18: Houston | D18: 9 | E18: =VLOOKUP(C18,'Ranking de la NCAA'!$D$6:$L$358,9,FALSE) -> 4 | F18: =VLOOKUP(C18,'Anotación de ataque'!$C$6:$F$356,4,FALSE) -> 76.4 | G18: =VLOOKUP(C18,'Anotación de defensa'!$C$6:$F$356,4,FALSE) -> 61.6 | H18: =VLOOKUP(C18,'% de ganados y perdidos'!$C$6:$F$356,4,FALSE)/100 -> 93.5% | I18: 5 | J18: 0 | K18: 0 | L18: 0 | O18: 7.33 | Q18: 8.82 | R18: 9.56 | S18: 4.59 | T18: 6.67 | U18: 10.00 | V18: 5 | W18: 0 | X18: 0 | Y18: 0 | AB18: 7.33
B19: 10 | C19: Texas Tech | D19: 10 | E19: =VLOOKUP(C19,'Ranking de la NCAA'!$D$6:$L$358,9,FALSE) -> 10 | F19: =VLOOKUP(C19,'Anotación de ataque'!$C$6:$F$356,4,FALSE) -> 73.1 | G19: =VLOOKUP(C19,'Anotación de defensa'!$C$6:$F$356,4,FALSE) -> 58.6 | H19: =VLOOKUP(C19,'% de ganados y perdidos'!$C$6:$F$356,4,FALSE)/100 -> 83.9% | I19: 5 | J19: 0 | K19: 0 | L19: 0 | O19: 6.91 | Q19: 8.68 | R19: 8.68 | S19: 3.14 | T19: 8.10 | U19: 7.70 | V19: 5 | W19: 0 | X19: 0 | Y19: 0 | AB19: 6.91
B20: 11 | C20: LSU | D20: 11 | E20: =VLOOKUP(C20,'Ranking de la NCAA'!$D$6:$L$358,9,FALSE) -> 14 | F20: =VLOOKUP(C20,'Anotación de ataque'!$C$6:$F$356,4,FALSE) -> 81.6 | G20: =VLOOKUP(C20,'Anotación de defensa'!$C$6:$F$356,4,FALSE) -> 72.9 | H20: =VLOOKUP(C20,'% de ganados y perdidos'!$C$6:$F$356,4,FALSE)/100 -> 83.9% | I20: 5 | J20: 0 | K20: 0 | L20: 0 | O20: 6.62 | Q20: 8.53 | R20: 8.09 | S20: 6.86 | T20: 1.29 | U20: 7.70 | V20: 5 | W20: 0 | X20: 0 | Y20: 0 | AB20: 6.62
B21: 12 | C21: Purdue | D21: 12 | E21: =VLOOKUP(C21,'Ranking de la NCAA'!$D$6:$L$358,9,FALSE) -> 12 | F21: =VLOOKUP(C21,'Anotación de ataque'!$C$6:$F$356,4,FALSE) -> 76.3 | G21: =VLOOKUP(C21,'Anotación de defensa'!$C$6:$F$356,4,FALSE) -> 66.5 | H21: =VLOOKUP(C21,'% de ganados y perdidos'!$C$6:$F$356,4,FALSE)/100 -> 74.2% | I21: 5 | J21: 0 | K21: 0 | L21: 0 | O21: 6.33 | Q21: 8.38 | R21: 8.38 | S21: 4.54 | T21: 4.33 | U21: 5.38 | V21: 5 | W21: 0 | X21: 0 | Y21: 0 | AB21: 6.33
B22: 13 | C22: Kansas | D22: 13 | E22: =VLOOKUP(C22,'Ranking de la NCAA'!$D$6:$L$358,9,FALSE) -> 20 | F22: =VLOOKUP(C22,'Anotación de ataque'!$C$6:$F$356,4,FALSE) -> 75.6 | G22: =VLOOKUP(C22,'Anotación de defensa'!$C$6:$F$356,4,FALSE) -> 70.1 | H22: =VLOOKUP(C22,'% de ganados y perdidos'!$C$6:$F$356,4,FALSE)/100 -> 74.2% | I22: 5 | J22: 0 | K22: 0 | L22: 0 | O22: 6.07 | Q22: 8.24 | R22: 7.21 | S22: 4.24 | T22: 2.62 | U22: 5.38 | V22: 5 | W22: 0 | X22: 0 | Y22: 0 | AB22: 6.07
B23: 14 | C23: Florida St. | D23: 14 | E23: =VLOOKUP(C23,'Ranking de la NCAA'!$D$6:$L$358,9,FALSE) -> 16 | F23: =VLOOKUP(C23,'Anotación de ataque'!$C$6:$F$356,4,FALSE) -> 75.8 | G23: =VLOOKUP(C23,'Anotación de defensa'!$C$6:$F$356,4,FALSE) -> 67.3 | H23: =VLOOKUP(C23,'% de ganados y perdidos'!$C$6:$F$356,4,FALSE)/100 -> 80.6% | I23: 5 | J23: 0 | K23: 0 | L23: 0 | O23: 6.36 | Q23: 8.09 | R23: 7.79 | S23: 4.32 | T23: 3.95 | U23: 6.91 | V23: 5 | W23: 0 | X23: 0 | Y23: 0 | AB23: 6.36
B24: 15 | C24: Kansas St. | D24: 15 | E24: =VLOOKUP(C24,'Ranking de la NCAA'!$D$6:$L$358,9,FALSE) -> 24 | F24: =VLOOKUP(C24,'Anotación de ataque'!$C$6:$F$356,4,FALSE) -> 65.9 | G24: =VLOOKUP(C24,'Anotación de defensa'!$C$6:$F$356,4,FALSE) -> 59.1 | H24: =VLOOKUP(C24,'% de ganados y perdidos'!$C$6:$F$356,4,FALSE)/100 -> 77.4% | I24: 5 | J24: 0 | K24: 0 | L24: 0 | O24: 6.10 | Q24: 7.94 | R24: 6.62 | S24: 0.00 | T24: 7.86 | U24: 6.15 | V24: 5 | W24: 0 | X24: 0 | Y24: 0 | AB24: 6.10
B25: 16 | C25: Virginia Tech | D25: 16 | E25: =VLOOKUP(C25,'Ranking de la NCAA'!$D$6:$L$358,9,FALSE) -> 11 | F25: =VLOOKUP(C25,'Anotación de ataque'!$C$6:$F$356,4,FALSE) -> 74.5 | G25: =VLOOKUP(C25,'Anotación de defensa'!$C$6:$F$356,4,FALSE) -> 62.0 | H25: =VLOOKUP(C25,'% de ganados y perdidos'!$C$6:$F$356,4,FALSE)/100 -> 77.4% | I25: 5 | J25: 0 | K25: 0 | L25: 0 | O25: 6.34 | Q25: 7.79 | R25: 8.53 | S25: 3.76 | T25: 6.48 | U25: 6.15 | V25: 5 | W25: 0 | X25: 0 | Y25: 0 | AB25: 6.34
B26: 17 | C26: Marquette | D26: 17 | E26: =VLOOKUP(C26,'Ranking de la NCAA'!$D$6:$L$358,9,FALSE) -> 28 | F26: =VLOOKUP(C26,'Anotación de ataque'!$C$6:$F$356,4,FALSE) -> 77.4 | G26: =VLOOKUP(C26,'Anotación de defensa'!$C$6:$F$356,4,FALSE) -> 69.2 | H26: =VLOOKUP(C26,'% de ganados y perdidos'!$C$6:$F$356,4,FALSE)/100 -> 74.2% | I26: 5 | J26: 0 | K26: 0 | L26: 0 | O26: 5.87 | Q26: 7.65 | R26: 6.03 | S26: 5.02 | T26: 3.05 | U26: 5.38 | V26: 5 | W26: 0 | X26: 0 | Y26: 0 | AB26: 5.87
B27: 18 | C27: Auburn | D27: 18 | E27: =VLOOKUP(C27,'Ranking de la NCAA'!$D$6:$L$358,9,FALSE) -> 18 | F27: =VLOOKUP(C27,'Anotación de ataque'!$C$6:$F$356,4,FALSE) -> 80.1 | G27: =VLOOKUP(C27,'Anotación de defensa'!$C$6:$F$356,4,FALSE) -> 68.5 | H27: =VLOOKUP(C27,'% de ganados y perdidos'!$C$6:$F$356,4,FALSE)/100 -> 71.0% | I27: 5 | J27: 0 | K27: 0 | L27: 0 | O27: 5.92 | Q27: 7.50 | R27: 7.50 | S27: 6.20 | T27: 3.38 | U27: 4.62 | V27: 5 | W27: 0 | X27: 0 | Y27: 0 | AB27: 5.92
B28: 19 | C28: Wisconsin | D28: 19 | E28: =VLOOKUP(C28,'Ranking de la NCAA'!$D$6:$L$358,9,FALSE) -> 17 | F28: =VLOOKUP(C28,'Anotación de ataque'!$C$6:$F$356,4,FALSE) -> 69.6 | G28: =VLOOKUP(C28,'Anotación de defensa'!$C$6:$F$356,4,FALSE) -> 61.2 | H28: =VLOOKUP(C28,'% de ganados y perdidos'!$C$6:$F$356,4,FALSE)/100 -> 71.0% | I28: 5 | J28: 0 | K28: 0 | L28: 0 | O28: 5.81 | Q28: 7.35 | R28: 7.65 | S28: 1.62 | T28: 6.86 | U28: 4.62 | V28: 5 | W28: 0 | X28: 0 | Y28: 0 | AB28: 5.81
B29: 20 | C29: Mississippi St. | D29: 20 | E29: =VLOOKUP(C29,'Ranking de la NCAA'!$D$6:$L$358,9,FALSE) -> 19 | F29: =VLOOKUP(C29,'Anotación de ataque'!$C$6:$F$356,4,FALSE) -> 77.3 | G29: =VLOOKUP(C29,'Anotación de defensa'!$C$6:$F$356,4,FALSE) -> 70.2 | H29: =VLOOKUP(C29,'% de ganados y perdidos'!$C$6:$F$356,4,FALSE)/100 -> 71.0% | I29: 5 | J29: 0 | K29: 0 | L29: 0 | O29: 5.68 | Q29: 7.21 | R29: 7.35 | S29: 4.98 | T29: 2.57 | U29: 4.62 | V29: 5 | W29: 0 | X29: 0 | Y29: 0 | AB29: 5.68
B30: 21 | C30: Villanova | D30: 21 | E30: =VLOOKUP(C30,'Ranking de la NCAA'!$D$6:$L$358,9,FALSE) -> 26 | F30: =VLOOKUP(C30,'Anotación de ataque'!$C$6:$F$356,4,FALSE) -> 74.6 | G30: =VLOOKUP(C30,'Anotación de defensa'!$C$6:$F$356,4,FALSE) -> 67.1 | H30: =VLOOKUP(C30,'% de ganados y perdidos'!$C$6:$F$356,4,FALSE)/100 -> 71.0% | I30: 5 | J30: 0 | K30: 0 | L30: 0 | O30: 5.58 | Q30: 7.06 | R30: 6.32 | S30: 3.80 | T30: 4.05 | U30: 4.62 | V30: 5 | W30: 0 | X30: 0 | Y30: 0 | AB30: 5.58
B31: 22 | C31: Maryland | D31: 22 | E31: =VLOOKUP(C31,'Ranking de la NCAA'!$D$6:$L$358,9,FALSE) -> 27 | F31: =VLOOKUP(C31,'Anotación de ataque'!$C$6:$F$356,4,FALSE) -> 71.7 | G31: =VLOOKUP(C31,'Anotación de defensa'!$C$6:$F$356,4,FALSE) -> 64.9 | H31: =VLOOKUP(C31,'% de ganados y perdidos'!$C$6:$F$356,4,FALSE)/100 -> 71.0% | I31: 5 | J31: 0 | K31: 0 | L31: 0 | O31: 5.51 | Q31: 6.91 | R31: 6.18 | S31: 2.53 | T31: 5.10 | U31: 4.62 | V31: 5 | W31: 0 | X31: 0 | Y31: 0 | AB31: 5.51
B32: 23 | C32: Buffalo | D32: 23 | E32: =VLOOKUP(C32,'Ranking de la NCAA'!$D$6:$L$358,9,FALSE) -> 15 | F32: =VLOOKUP(C32,'Anotación de ataque'!$C$6:$F$356,4,FALSE) -> 85.0 | G32: =VLOOKUP(C32,'Anotación de defensa'!$C$6:$F$356,4,FALSE) -> 70.9 | H32: =VLOOKUP(C32,'% de ganados y perdidos'!$C$6:$F$356,4,FALSE)/100 -> 90.3% | I32: 5 | J32: 0 | K32: 0 | L32: 0 | O32: 6.39 | Q32: 6.76 | R32: 7.94 | S32: 8.34 | T32: 2.24 | U32: 9.23 | V32: 5 | W32: 0 | X32: 0 | Y32: 0 | AB32: 6.39
B33: 24 | C33: Iowa St. | D33: 24 | E33: =VLOOKUP(C33,'Ranking de la NCAA'!$D$6:$L$358,9,FALSE) -> 21 | F33: =VLOOKUP(C33,'Anotación de ataque'!$C$6:$F$356,4,FALSE) -> 77.7 | G33: =VLOOKUP(C33,'Anotación de defensa'!$C$6:$F$356,4,FALSE) -> 68.8 | H33: =VLOOKUP(C33,'% de ganados y perdidos'!$C$6:$F$356,4,FALSE)/100 -> 64.5% | I33: 5 | J33: 0 | K33: 0 | L33: 0 | O33: 5.31 | Q33: 6.62 | R33: 7.06 | S33: 5.15 | T33: 3.24 | U33: 3.06 | V33: 5 | W33: 0 | X33: 0 | Y33: 0 | AB33: 5.31
B34: 25 | C34: Louisville | D34: 25 | E34: =VLOOKUP(C34,'Ranking de la NCAA'!$D$6:$L$358,9,FALSE) -> 22 | F34: =VLOOKUP(C34,'Anotación de ataque'!$C$6:$F$356,4,FALSE) -> 74.7 | G34: =VLOOKUP(C34,'Anotación de defensa'!$C$6:$F$356,4,FALSE) -> 67.3 | H34: =VLOOKUP(C34,'% de ganados y perdidos'!$C$6:$F$356,4,FALSE)/100 -> 62.5% | I34: 5 | J34: 0 | K34: 0 | L34: 0 | O34: 5.15 | Q34: 6.47 | R34: 6.91 | S34: 3.84 | T34: 3.95 | U34: 2.58 | V34: 5 | W34: 0 | X34: 0 | Y34: 0 | AB34: 5.15
B35: 26 | C35: Nevada | D35: 26 | E35: =VLOOKUP(C35,'Ranking de la NCAA'!$D$6:$L$358,9,FALSE) -> 23 | F35: =VLOOKUP(C35,'Anotación de ataque'!$C$6:$F$356,4,FALSE) -> 81.6 | G35: =VLOOKUP(C35,'Anotación de defensa'!$C$6:$F$356,4,FALSE) -> 66.6 | H35: =VLOOKUP(C35,'% de ganados y perdidos'!$C$6:$F$356,4,FALSE)/100 -> 90.3% | I35: 5 | J35: 0 | K35: 0 | L35: 0 | O35: 6.20 | Q35: 6.32 | R35: 6.76 | S35: 6.86 | T35: 4.29 | U35: 9.23 | V35: 5 | W35: 0 | X35: 0 | Y35: 0 | AB35: 6.20
B36: 27 | C36: Cincinnati | D36: 27 | E36: =VLOOKUP(C36,'Ranking de la NCAA'!$D$6:$L$358,9,FALSE) -> 25 | F36: =VLOOKUP(C36,'Anotación de ataque'!$C$6:$F$356,4,FALSE) -> 71.6 | G36: =VLOOKUP(C36,'Anotación de defensa'!$C$6:$F$356,4,FALSE) -> 62.0 | H36: =VLOOKUP(C36,'% de ganados y perdidos'!$C$6:$F$356,4,FALSE)/100 -> 80.6% | I36: 5 | J36: 0 | K36: 0 | L36: 0 | O36: 5.68 | Q36: 6.18 | R36: 6.47 | S36: 2.49 | T36: 6.48 | U36: 6.91 | V36: 5 | W36: 0 | X36: 0 | Y36: 0 | AB36: 5.68
B37: 28 | C37: Wofford | D37: 28 | E37: =VLOOKUP(C37,'Ranking de la NCAA'!$D$6:$L$358,9,FALSE) -> 13 | F37: =VLOOKUP(C37,'Anotación de ataque'!$C$6:$F$356,4,FALSE) -> 83.0 | G37: =VLOOKUP(C37,'Anotación de defensa'!$C$6:$F$356,4,FALSE) -> 65.6 | H37: =VLOOKUP(C37,'% de ganados y perdidos'!$C$6:$F$356,4,FALSE)/100 -> 87.9% | I37: 5 | J37: 0 | K37: 0 | L37: 0 | O37: 6.20 | Q37: 6.03 | R37: 8.24 | S37: 7.47 | T37: 4.76 | U37: 8.66 | V37: 5 | W37: 0 | X37: 0 | Y37: 0 | AB37: 6.20
B38: 29 | C38: VCU | D38: 29 | E38: =VLOOKUP(C38,'Ranking de la NCAA'!$D$6:$L$358,9,FALSE) -> 34 | F38: =VLOOKUP(C38,'Anotación de ataque'!$C$6:$F$356,4,FALSE) -> 71.5 | G38: =VLOOKUP(C38,'Anotación de defensa'!$C$6:$F$356,4,FALSE) -> 61.2 | H38: =VLOOKUP(C38,'% de ganados y perdidos'!$C$6:$F$356,4,FALSE)/100 -> 80.6% | I38: 5 | J38: 0 | K38: 0 | L38: 0 | O38: 5.52 | Q38: 5.88 | R38: 5.29 | S38: 2.45 | T38: 6.86 | U38: 6.91 | V38: 5 | W38: 0 | X38: 0 | Y38: 0 | AB38: 5.52
B39: 30 | C39: Syracuse | D39: 30 | E39: =VLOOKUP(C39,'Ranking de la NCAA'!$D$6:$L$358,9,FALSE) -> 42 | F39: =VLOOKUP(C39,'Anotación de ataque'!$C$6:$F$356,4,FALSE) -> 69.5 | G39: =VLOOKUP(C39,'Anotación de defensa'!$C$6:$F$356,4,FALSE) -> 65.1 | H39: =VLOOKUP(C39,'% de ganados y perdidos'!$C$6:$F$356,4,FALSE)/100 -> 62.5% | I39: 5 | J39: 0 | K39: 0 | L39: 0 | O39: 4.66 | Q39: 5.74 | R39: 4.56 | S39: 1.57 | T39: 5.00 | U39: 2.58 | V39: 5 | W39: 0 | X39: 0 | Y39: 0 | AB39: 4.66
B40: 31 | C40: Ole Miss | D40: 31 | E40: =VLOOKUP(C40,'Ranking de la NCAA'!$D$6:$L$358,9,FALSE) -> 36 | F40: =VLOOKUP(C40,'Anotación de ataque'!$C$6:$F$356,4,FALSE) -> 76.0 | G40: =VLOOKUP(C40,'Anotación de defensa'!$C$6:$F$356,4,FALSE) -> 70.6 | H40: =VLOOKUP(C40,'% de ganados y perdidos'!$C$6:$F$356,4,FALSE)/100 -> 64.5% | I40: 5 | J40: 0 | K40: 0 | L40: 0 | O40: 4.73 | Q40: 5.59 | R40: 5.15 | S40: 4.41 | T40: 2.38 | U40: 3.06 | V40: 5 | W40: 0 | X40: 0 | Y40: 0 | AB40: 4.73
B41: 32 | C41: Utah St. | D41: 32 | E41: =VLOOKUP(C41,'Ranking de la NCAA'!$D$6:$L$358,9,FALSE) -> 29 | F41: =VLOOKUP(C41,'Anotación de ataque'!$C$6:$F$356,4,FALSE) -> 79.0 | G41: =VLOOKUP(C41,'Anotación de defensa'!$C$6:$F$356,4,FALSE) -> 66.8 | H41: =VLOOKUP(C41,'% de ganados y perdidos'!$C$6:$F$356,4,FALSE)/100 -> 80.6% | I41: 5 | J41: 0 | K41: 0 | L41: 0 | O41: 5.46 | Q41: 5.44 | R41: 5.88 | S41: 5.72 | T41: 4.19 | U41: 6.91 | V41: 5 | W41: 0 | X41: 0 | Y41: 0 | AB41: 5.46
B42: 33 | C42: Washington | D42: 33 | E42: =VLOOKUP(C42,'Ranking de la NCAA'!$D$6:$L$358,9,FALSE) -> 45 | F42: =VLOOKUP(C42,'Anotación de ataque'!$C$6:$F$356,4,FALSE) -> 70.4 | G42: =VLOOKUP(C42,'Anotación de defensa'!$C$6:$F$356,4,FALSE) -> 64.0 | H42: =VLOOKUP(C42,'% de ganados y perdidos'!$C$6:$F$356,4,FALSE)/100 -> 77.4% | I42: 5 | J42: 0 | K42: 0 | L42: 0 | O42: 5.02 | Q42: 5.29 | R42: 4.12 | S42: 1.97 | T42: 5.52 | U42: 6.15 | V42: 5 | W42: 0 | X42: 0 | Y42: 0 | AB42: =+(Q42*Q$9+R42*R$9+S42*S$9+T42*T$9+U42*U$9+V42*V$9+W42*W$9+X42*X$9+Y42*Y$9)/SUM(Q$9:Y$9) -> 5.02
B43: 34 | C43: UCF | D43: 34 | E43: =VLOOKUP(C43,'Ranking de la NCAA'!$D$6:$L$358,9,FALSE) -> 30 | F43: =VLOOKUP(C43,'Anotación de ataque'!$C$6:$F$356,4,FALSE) -> 72.7 | G43: =VLOOKUP(C43,'Anotación de defensa'!$C$6:$F$356,4,FALSE) -> 63.8 | H43: =VLOOKUP(C43,'% de ganados y perdidos'!$C$6:$F$356,4,FALSE)/100 -> 76.7% | I43: 5 | J43: 0 | K43: 0 | L43: 0 | O43: 5.13 | Q43: 5.15 | R43: 5.74 | S43: 2.97 | T43: 5.62 | U43: 5.98 | V43: 5 | W43: 0 | X43: 0 | Y43: 0 | AB43: 5.13
B44: 35 | C44: Baylor | D44: 35 | E44: =VLOOKUP(C44,'Ranking de la NCAA'!$D$6:$L$358,9,FALSE) -> 39 | F44: =VLOOKUP(C44,'Anotación de ataque'!$C$6:$F$356,4,FALSE) -> 71.8 | G44: =VLOOKUP(C44,'Anotación de defensa'!$C$6:$F$356,4,FALSE) -> 66.7 | H44: =VLOOKUP(C44,'% de ganados y perdidos'!$C$6:$F$356,4,FALSE)/100 -> 61.3% | I44: 5 | J44: 0 | K44: 0 | L44: 0 | O44: 4.42 | Q44: 5.00 | R44: 4.85 | S44: 2.58 | T44: 4.24 | U44: 2.30 | V44: 5 | W44: 0 | X44: 0 | Y44: 0 | AB44: 4.42
B45: 36 | C45: Oklahoma | D45: 36 | E45: =VLOOKUP(C45,'Ranking de la NCAA'!$D$6:$L$358,9,FALSE) -> 37 | F45: =VLOOKUP(C45,'Anotación de ataque'!$C$6:$F$356,4,FALSE) -> 71.2 | G45: =VLOOKUP(C45,'Anotación de defensa'!$C$6:$F$356,4,FALSE) -> 68.2 | H45: =VLOOKUP(C45,'% de ganados y perdidos'!$C$6:$F$356,4,FALSE)/100 -> 59.4% | I45: 5 | J45: 0 | K45: 0 | L45: 0 | O45: 4.25 | Q45: 4.85 | R45: 5.00 | S45: 2.31 | T45: 3.52 | U45: 1.84 | V45: 5 | W45: 0 | X45: 0 | Y45: 0 | AB45: 4.25
B46: 37 | C46: Iowa | D46: 37 | E46: =VLOOKUP(C46,'Ranking de la NCAA'!$D$6:$L$358,9,FALSE) -> 43 | F46: =VLOOKUP(C46,'Anotación de ataque'!$C$6:$F$356,4,FALSE) -> 79.0 | G46: =VLOOKUP(C46,'Anotación de defensa'!$C$6:$F$356,4,FALSE) -> 74.0 | H46: =VLOOKUP(C46,'% de ganados y perdidos'!$C$6:$F$356,4,FALSE)/100 -> 67.7% | I46: 5 | J46: 0 | K46: 0 | L46: 0 | O46: 4.47 | Q46: 4.71 | R46: 4.41 | S46: 5.72 | T46: 0.76 | U46: 3.83 | V46: 5 | W46: 0 | X46: 0 | Y46: 0 | AB46: 4.47
B47: 38 | C47: Seton Hall | D47: 38 | E47: =VLOOKUP(C47,'Ranking de la NCAA'!$D$6:$L$358,9,FALSE) -> 57 | F47: =VLOOKUP(C47,'Anotación de ataque'!$C$6:$F$356,4,FALSE) -> 73.8 | G47: =VLOOKUP(C47,'Anotación de defensa'!$C$6:$F$356,4,FALSE) -> 71.6 | H47: =VLOOKUP(C47,'% de ganados y perdidos'!$C$6:$F$356,4,FALSE)/100 -> 60.0% | I47: 5 | J47: 0 | K47: 0 | L47: 0 | O47: 4.03 | Q47: 4.56 | R47: 3.38 | S47: 3.45 | T47: 1.90 | U47: 1.99 | V47: 5 | W47: 0 | X47: 0 | Y47: 0 | AB47: 4.03
B48: 39 | C48: Minnesota | D48: 39 | E48: =VLOOKUP(C48,'Ranking de la NCAA'!$D$6:$L$358,9,FALSE) -> 61 | F48: =VLOOKUP(C48,'Anotación de ataque'!$C$6:$F$356,4,FALSE) -> 71.2 | G48: =VLOOKUP(C48,'Anotación de defensa'!$C$6:$F$356,4,FALSE) -> 68.7 | H48: =VLOOKUP(C48,'% de ganados y perdidos'!$C$6:$F$356,4,FALSE)/100 -> 61.3% | I48: 5 | J48: 0 | K48: 0 | L48: 0 | O48: 4.02 | Q48: 4.41 | R48: 3.09 | S48: 2.31 | T48: 3.29 | U48: 2.30 | V48: 5 | W48: 0 | X48: 0 | Y48: 0 | AB48: 4.02
B49: 40 | C49: Florida | D49: 40 | E49: =VLOOKUP(C49,'Ranking de la NCAA'!$D$6:$L$358,9,FALSE) -> 31 | F49: =VLOOKUP(C49,'Anotación de ataque'!$C$6:$F$356,4,FALSE) -> 68.3 | G49: =VLOOKUP(C49,'Anotación de defensa'!$C$6:$F$356,4,FALSE) -> 63.7 | H49: =VLOOKUP(C49,'% de ganados y perdidos'!$C$6:$F$356,4,FALSE)/100 -> 54.8% | I49: 5 | J49: 0 | K49: 0 | L49: 0 | O49: 4.01 | Q49: 4.26 | R49: 5.59 | S49: 1.05 | T49: 5.67 | U49: 0.74 | V49: 5 | W49: 0 | X49: 0 | Y49: 0 | AB49: 4.01
B50: 41 | C50: Ohio St. | D50: 41 | E50: =VLOOKUP(C50,'Ranking de la NCAA'!$D$6:$L$358,9,FALSE) -> 55 | F50: =VLOOKUP(C50,'Anotación de ataque'!$C$6:$F$356,4,FALSE) -> 69.3 | G50: =VLOOKUP(C50,'Anotación de defensa'!$C$6:$F$356,4,FALSE) -> 65.6 | H50: =VLOOKUP(C50,'% de ganados y perdidos'!$C$6:$F$356,4,FALSE)/100 -> 58.1% | I50: 5 | J50: 0 | K50: 0 | L50: 0 | O50: 3.90 | Q50: 4.12 | R50: 3.68 | S50: 1.48 | T50: 4.76 | U50: 1.53 | V50: 5 | W50: 0 | X50: 0 | Y50: 0 | AB50: 3.90
B51: 42 | C51: Belmont | D51: 42 | E51: =VLOOKUP(C51,'Ranking de la NCAA'!$D$6:$L$358,9,FALSE) -> 47 | F51: =VLOOKUP(C51,'Anotación de ataque'!$C$6:$F$356,4,FALSE) -> 87.4 | G51: =VLOOKUP(C51,'Anotación de defensa'!$C$6:$F$356,4,FALSE) -> 73.9 | H51: =VLOOKUP(C51,'% de ganados y perdidos'!$C$6:$F$356,4,FALSE)/100 -> 83.9% | I51: 5 | J51: 0 | K51: 0 | L51: 0 | O51: 4.96 | Q51: 3.97 | R51: 3.97 | S51: 9.39 | T51: 0.81 | U51: 7.70 | V51: 5 | W51: 0 | X51: 0 | Y51: 0 | AB51: 4.96
B52: 43 | C52: Temple | D52: 43 | E52: =VLOOKUP(C52,'Ranking de la NCAA'!$D$6:$L$358,9,FALSE) -> 56 | F52: =VLOOKUP(C52,'Anotación de ataque'!$C$6:$F$356,4,FALSE) -> 74.9 | G52: =VLOOKUP(C52,'Anotación de defensa'!$C$6:$F$356,4,FALSE) -> 70.9 | H52: =VLOOKUP(C52,'% de ganados y perdidos'!$C$6:$F$356,4,FALSE)/100 -> 74.2% | I52: 5 | J52: 0 | K52: 0 | L52: 0 | O52: 4.31 | Q52: 3.82 | R52: 3.53 | S52: 3.93 | T52: 2.24 | U52: 5.38 | V52: 5 | W52: 0 | X52: 0 | Y52: 0 | AB52: 4.31
B53: 44 | C53: Saint Mary's (CA) | D53: 44 | E53: =VLOOKUP(C53,'Ranking de la NCAA'!$D$6:$L$358,9,FALSE) -> 32 | F53: =VLOOKUP(C53,'Anotación de ataque'!$C$6:$F$356,4,FALSE) -> 72.9 | G53: =VLOOKUP(C53,'Anotación de defensa'!$C$6:$F$356,4,FALSE) -> 64.4 | H53: =VLOOKUP(C53,'% de ganados y perdidos'!$C$6:$F$356,4,FALSE)/100 -> 66.7% | I53: 5 | J53: 0 | K53: 0 | L53: 0 | O53: 4.29 | Q53: 3.68 | R53: 5.44 | S53: 3.06 | T53: 5.33 | U53: 3.59 | V53: 5 | W53: 0 | X53: 0 | Y53: 0 | AB53: 4.29
B54: 45 | C54: Arizona St. | D54: 45 | E54: =VLOOKUP(C54,'Ranking de la NCAA'!$D$6:$L$358,9,FALSE) -> 63 | F54: =VLOOKUP(C54,'Anotación de ataque'!$C$6:$F$356,4,FALSE) -> 77.7 | G54: =VLOOKUP(C54,'Anotación de defensa'!$C$6:$F$356,4,FALSE) -> 72.9 | H54: =VLOOKUP(C54,'% de ganados y perdidos'!$C$6:$F$356,4,FALSE)/100 -> 70.0% | I54: 5 | J54: 0 | K54: 0 | L54: 0 | O54: 4.05 | Q54: 3.53 | R54: 2.94 | S54: 5.15 | T54: 1.29 | U54: 4.38 | V54: 5 | W54: 0 | X54: 0 | Y54: 0 | AB54: 4.05
B55: 46 | C55: Murray St. | D55: 46 | E55: =VLOOKUP(C55,'Ranking de la NCAA'!$D$6:$L$358,9,FALSE) -> 44 | F55: =VLOOKUP(C55,'Anotación de ataque'!$C$6:$F$356,4,FALSE) -> 83.3 | G55: =VLOOKUP(C55,'Anotación de defensa'!$C$6:$F$356,4,FALSE) -> 67.8 | H55: =VLOOKUP(C55,'% de ganados y perdidos'!$C$6:$F$356,4,FALSE)/100 -> 87.1% | I55: 5 | J55: 0 | K55: 0 | L55: 0 | O55: 4.96 | Q55: 3.38 | R55: 4.26 | S55: 7.60 | T55: 3.71 | U55: 8.47 | V55: 5 | W55: 0 | X55: 0 | Y55: 0 | AB55: 4.96
B56: 47 | C56: St. John's (NY) | D56: 47 | E56: =VLOOKUP(C56,'Ranking de la NCAA'!$D$6:$L$358,9,FALSE) -> 73 | F56: =VLOOKUP(C56,'Anotación de ataque'!$C$6:$F$356,4,FALSE) -> 78.1 | G56: =VLOOKUP(C56,'Anotación de defensa'!$C$6:$F$356,4,FALSE) -> 74.4 | H56: =VLOOKUP(C56,'% de ganados y perdidos'!$C$6:$F$356,4,FALSE)/100 -> 65.6% | I56: 5 | J56: 0 | K56: 0 | L56: 0 | O56: 3.75 | Q56: 3.24 | R56: 2.50 | S56: 5.33 | T56: 0.57 | U56: 3.33 | V56: 5 | W56: 0 | X56: 0 | Y56: 0 | AB56: 3.75
B57: 48 | C57: Oregon | D57: 48 | E57: =VLOOKUP(C57,'Ranking de la NCAA'!$D$6:$L$358,9,FALSE) -> 51 | F57: =VLOOKUP(C57,'Anotación de ataque'!$C$6:$F$356,4,FALSE) -> 70.0 | G57: =VLOOKUP(C57,'Anotación de defensa'!$C$6:$F$356,4,FALSE) -> 63.3 | H57: =VLOOKUP(C57,'% de ganados y perdidos'!$C$6:$F$356,4,FALSE)/100 -> 62.5% | I57: 5 | J57: 0 | K57: 0 | L57: 0 | O57: 3.81 | Q57: 3.09 | R57: 3.82 | S57: 1.79 | T57: 5.86 | U57: 2.58 | V57: 5 | W57: 0 | X57: 0 | Y57: 0 | AB57: 3.81
B58: 49 | C58: New Mexico St. | D58: 49 | E58: =VLOOKUP(C58,'Ranking de la NCAA'!$D$6:$L$358,9,FALSE) -> 40 | F58: =VLOOKUP(C58,'Anotación de ataque'!$C$6:$F$356,4,FALSE) -> 77.5 | G58: =VLOOKUP(C58,'Anotación de defensa'!$C$6:$F$356,4,FALSE) -> 64.6 | H58: =VLOOKUP(C58,'% de ganados y perdidos'!$C$6:$F$356,4,FALSE)/100 -> 87.1% | I58: 5 | J58: 0 | K58: 0 | L58: 0 | O58: 4.78 | Q58: 2.94 | R58: 4.71 | S58: 5.07 | T58: 5.24 | U58: 8.47 | V58: 5 | W58: 0 | X58: 0 | Y58: 0 | AB58: 4.78
B59: 50 | C59: Liberty | D59: 50 | E59: =VLOOKUP(C59,'Ranking de la NCAA'!$D$6:$L$358,9,FALSE) -> 58 | F59: =VLOOKUP(C59,'Anotación de ataque'!$C$6:$F$356,4,FALSE) -> 74.0 | G59: =VLOOKUP(C59,'Anotación de defensa'!$C$6:$F$356,4,FALSE) -> 60.8 | H59: =VLOOKUP(C59,'% de ganados y perdidos'!$C$6:$F$356,4,FALSE)/100 -> 82.4% | I59: 5 | J59: 0 | K59: 0 | L59: 0 | O59: 4.50 | Q59: 2.79 | R59: 3.24 | S59: 3.54 | T59: 7.05 | U59: 7.34 | V59: 5 | W59: 0 | X59: 0 | Y59: 0 | AB59: 4.50
B60: 51 | C60: UC Irvine | D60: 51 | E60: =VLOOKUP(C60,'Ranking de la NCAA'!$D$6:$L$358,9,FALSE) -> 68 | F60: =VLOOKUP(C60,'Anotación de ataque'!$C$6:$F$356,4,FALSE) -> 72.5 | G60: =VLOOKUP(C60,'Anotación de defensa'!$C$6:$F$356,4,FALSE) -> 63.8 | H60: =VLOOKUP(C60,'% de ganados y perdidos'!$C$6:$F$356,4,FALSE)/100 -> 84.4% | I60: 5 | J60: 0 | K60: 0 | L60: 0 | O60: 4.35 | Q60: 2.65 | R60: 2.79 | S60: 2.88 | T60: 5.62 | U60: 7.82 | V60: 5 | W60: 0 | X60: 0 | Y60: 0 | AB60: 4.35
B61: 52 | C61: Vermont | D61: 52 | E61: =VLOOKUP(C61,'Ranking de la NCAA'!$D$6:$L$358,9,FALSE) -> 71 | F61: =VLOOKUP(C61,'Anotación de ataque'!$C$6:$F$356,4,FALSE) -> 74.2 | G61: =VLOOKUP(C61,'Anotación de defensa'!$C$6:$F$356,4,FALSE) -> 63.1 | H61: =VLOOKUP(C61,'% de ganados y perdidos'!$C$6:$F$356,4,FALSE)/100 -> 81.3% | I61: 5 | J61: 0 | K61: 0 | L61: 0 | O61: 4.26 | Q61: 2.50 | R61: 2.65 | S61: 3.62 | T61: 5.95 | U61: 7.08 | V61: 5 | W61: 0 | X61: 0 | Y61: 0 | AB61: 4.26
B62: 53 | C62: Saint Louis | D62: 53 | E62: =VLOOKUP(C62,'Ranking de la NCAA'!$D$6:$L$358,9,FALSE) -> 103 | F62: =VLOOKUP(C62,'Anotación de ataque'!$C$6:$F$356,4,FALSE) -> 67.4 | G62: =VLOOKUP(C62,'Anotación de defensa'!$C$6:$F$356,4,FALSE) -> 64.9 | H62: =VLOOKUP(C62,'% de ganados y perdidos'!$C$6:$F$356,4,FALSE)/100 -> 61.3% | I62: 5 | J62: 0 | K62: 0 | L62: 0 | O62: 3.27 | Q62: 2.35 | R62: 1.91 | S62: 0.66 | T62: 5.10 | U62: 2.30 | V62: 5 | W62: 0 | X62: 0 | Y62: 0 | AB62: 3.27
B63: 54 | C63: Northeastern | D63: 54 | E63: =VLOOKUP(C63,'Ranking de la NCAA'!$D$6:$L$358,9,FALSE) -> 78 | F63: =VLOOKUP(C63,'Anotación de ataque'!$C$6:$F$356,4,FALSE) -> 76.1 | G63: =VLOOKUP(C63,'Anotación de defensa'!$C$6:$F$356,4,FALSE) -> 70.3 | H63: =VLOOKUP(C63,'% de ganados y perdidos'!$C$6:$F$356,4,FALSE)/100 -> 69.7% | I63: 5 | J63: 0 | K63: 0 | L63: 0 | O63: 3.60 | Q63: 2.21 | R63: 2.35 | S63: 4.45 | T63: 2.52 | U63: 4.31 | V63: 5 | W63: 0 | X63: 0 | Y63: 0 | AB63: 3.60
B64: 55 | C64: Yale | D64: 55 | E64: =VLOOKUP(C64,'Ranking de la NCAA'!$D$6:$L$358,9,FALSE) -> 86 | F64: =VLOOKUP(C64,'Anotación de ataque'!$C$6:$F$356,4,FALSE) -> 80.5 | G64: =VLOOKUP(C64,'Anotación de defensa'!$C$6:$F$356,4,FALSE) -> 72.6 | H64: =VLOOKUP(C64,'% de ganados y perdidos'!$C$6:$F$356,4,FALSE)/100 -> 74.1% | I64: 5 | J64: 0 | K64: 0 | L64: 0 | O64: 3.73 | Q64: 2.06 | R64: 2.21 | S64: 6.38 | T64: 1.43 | U64: 5.36 | V64: 5 | W64: 0 | X64: 0 | Y64: 0 | AB64: 3.73
B65: 56 | C65: Old Dominion | D65: 56 | E65: =VLOOKUP(C65,'Ranking de la NCAA'!$D$6:$L$358,9,FALSE) -> 100 | F65: =VLOOKUP(C65,'Anotación de ataque'!$C$6:$F$356,4,FALSE) -> 66.8 | G65: =VLOOKUP(C65,'Anotación de defensa'!$C$6:$F$356,4,FALSE) -> 61.2 | H65: =VLOOKUP(C65,'% de ganados y perdidos'!$C$6:$F$356,4,FALSE)/100 -> 74.2% | I65: 5 | J65: 0 | K65: 0 | L65: 0 | O65: 3.64 | Q65: 1.91 | R65: 2.06 | S65: 0.39 | T65: 6.86 | U65: 5.38 | V65: 5 | W65: 0 | X65: 0 | Y65: 0 | AB65: 3.64
B66: 57 | C66: Georgia St. | D66: 57 | E66: =VLOOKUP(C66,'Ranking de la NCAA'!$D$6:$L$358,9,FALSE) -> 121 | F66: =VLOOKUP(C66,'Anotación de ataque'!$C$6:$F$356,4,FALSE) -> 77.8 | G66: =VLOOKUP(C66,'Anotación de defensa'!$C$6:$F$356,4,FALSE) -> 74.1 | H66: =VLOOKUP(C66,'% de ganados y perdidos'!$C$6:$F$356,4,FALSE)/100 -> 71.0% | I66: 5 | J66: 0 | K66: 0 | L66: 0 | O66: 3.37 | Q66: 1.76 | R66: 1.62 | S66: 5.20 | T66: 0.71 | U66: 4.62 | V66: 5 | W66: 0 | X66: 0 | Y66: 0 | AB66: 3.37
B67: 58 | C67: Northern Ky. | D67: 58 | E67: =VLOOKUP(C67,'Ranking de la NCAA'!$D$6:$L$358,9,FALSE) -> 115 | F67: =VLOOKUP(C67,'Anotación de ataque'!$C$6:$F$356,4,FALSE) -> 79.1 | G67: =VLOOKUP(C67,'Anotación de defensa'!$C$6:$F$356,4,FALSE) -> 68.8 | H67: =VLOOKUP(C67,'% de ganados y perdidos'!$C$6:$F$356,4,FALSE)/100 -> 76.5% | I67: 5 | J67: 0 | K67: 0 | L67: 0 | O67: 3.71 | Q67: 1.62 | R67: 1.76 | S67: 5.76 | T67: 3.24 | U67: 5.93 | V67: 5 | W67: 0 | X67: 0 | Y67: 0 | AB67: 3.71
B68: 59 | C68: Montana | D68: 59 | E68: =VLOOKUP(C68,'Ranking de la NCAA'!$D$6:$L$358,9,FALSE) -> 124 | F68: =VLOOKUP(C68,'Anotación de ataque'!$C$6:$F$356,4,FALSE) -> 76.9 | G68: =VLOOKUP(C68,'Anotación de defensa'!$C$6:$F$356,4,FALSE) -> 69.0 | H68: =VLOOKUP(C68,'% de ganados y perdidos'!$C$6:$F$356,4,FALSE)/100 -> 74.2% | I68: 5 | J68: 0 | K68: 0 | L68: 0 | O68: 3.50 | Q68: 1.47 | R68: 1.47 | S68: 4.80 | T68: 3.14 | U68: 5.38 | V68: 5 | W68: 0 | X68: 0 | Y68: 0 | AB68: 3.50
B69: 60 | C69: Colgate | D69: 60 | E69: =VLOOKUP(C69,'Ranking de la NCAA'!$D$6:$L$358,9,FALSE) -> 132 | F69: =VLOOKUP(C69,'Anotación de ataque'!$C$6:$F$356,4,FALSE) -> 75.3 | G69: =VLOOKUP(C69,'Anotación de defensa'!$C$6:$F$356,4,FALSE) -> 70.0 | H69: =VLOOKUP(C69,'% de ganados y perdidos'!$C$6:$F$356,4,FALSE)/100 -> 70.6% | I69: 5 | J69: 0 | K69: 0 | L69: 0 | O69: 3.25 | Q69: 1.32 | R69: 1.32 | S69: 4.10 | T69: 2.67 | U69: 4.52 | V69: 5 | W69: 0 | X69: 0 | Y69: 0 | AB69: 3.25
B70: 61 | C70: Bradley | D70: 61 | E70: =VLOOKUP(C70,'Ranking de la NCAA'!$D$6:$L$358,9,FALSE) -> 176 | F70: =VLOOKUP(C70,'Anotación de ataque'!$C$6:$F$356,4,FALSE) -> 66.6 | G70: =VLOOKUP(C70,'Anotación de defensa'!$C$6:$F$356,4,FALSE) -> 65.0 | H70: =VLOOKUP(C70,'% de ganados y perdidos'!$C$6:$F$356,4,FALSE)/100 -> 58.8% | I70: 5 | J70: 0 | K70: 0 | L70: 0 | O70: 2.70 | Q70: 1.18 | R70: 0.88 | S70: 0.31 | T70: 5.05 | U70: 1.70 | V70: 5 | W70: 0 | X70: 0 | Y70: 0 | AB70: 2.70
B71: 62 | C71: Abilene Christian | D71: 62 | E71: =VLOOKUP(C71,'Ranking de la NCAA'!$D$6:$L$358,9,FALSE) -> 154 | F71: =VLOOKUP(C71,'Anotación de ataque'!$C$6:$F$356,4,FALSE) -> 74.6 | G71: =VLOOKUP(C71,'Anotación de defensa'!$C$6:$F$356,4,FALSE) -> 63.1 | H71: =VLOOKUP(C71,'% de ganados y perdidos'!$C$6:$F$356,4,FALSE)/100 -> 80.6% | I71: 5 | J71: 0 | K71: 0 | L71: 0 | O71: 3.66 | Q71: 1.03 | R71: 1.18 | S71: 3.80 | T71: 5.95 | U71: 6.91 | V71: 5 | W71: 0 | X71: 0 | Y71: 0 | AB71: 3.66
B72: 63 | C72: Gardner-Webb | D72: 63 | E72: =VLOOKUP(C72,'Ranking de la NCAA'!$D$6:$L$358,9,FALSE) -> 173 | F72: =VLOOKUP(C72,'Anotación de ataque'!$C$6:$F$356,4,FALSE) -> 78.3 | G72: =VLOOKUP(C72,'Anotación de defensa'!$C$6:$F$356,4,FALSE) -> 70.5 | H72: =VLOOKUP(C72,'% de ganados y perdidos'!$C$6:$F$356,4,FALSE)/100 -> 67.6% | I72: 5 | J72: 0 | K72: 0 | L72: 0 | O72: 3.06 | Q72: 0.88 | R72: 1.03 | S72: 5.41 | T72: 2.43 | U72: 3.80 | V72: 5 | W72: 0 | X72: 0 | Y72: 0 | AB72: 3.06
B73: 64 | C73: Iona | D73: 64 | E73: =VLOOKUP(C73,'Ranking de la NCAA'!$D$6:$L$358,9,FALSE) -> 202 | F73: =VLOOKUP(C73,'Anotación de ataque'!$C$6:$F$356,4,FALSE) -> 76.8 | G73: =VLOOKUP(C73,'Anotación de defensa'!$C$6:$F$356,4,FALSE) -> 75.6 | H73: =VLOOKUP(C73,'% de ganados y perdidos'!$C$6:$F$356,4,FALSE)/100 -> 53.1% | I73: 5 | J73: 0 | K73: 0 | L73: 0 | O73: 2.32 | Q73: 0.74 | R73: 0.74 | S73: 4.76 | T73: 0.00 | U73: 0.33 | V73: 5 | W73: 0 | X73: 0 | Y73: 0 | AB73: 2.32
B74: 65 | C74: Prairie View | D74: 65 | E74: =VLOOKUP(C74,'Ranking de la NCAA'!$D$6:$L$358,9,FALSE) -> 205 | F74: =VLOOKUP(C74,'Anotación de ataque'!$C$6:$F$356,4,FALSE) -> 74.3 | G74: =VLOOKUP(C74,'Anotación de defensa'!$C$6:$F$356,4,FALSE) -> 72.1 | H74: =VLOOKUP(C74,'% de ganados y perdidos'!$C$6:$F$356,4,FALSE)/100 -> 62.5% | I74: 5 | J74: 0 | K74: 0 | L74: 0 | O74: 2.59 | Q74: 0.59 | R74: =_xlfn.RANK.EQ(E74,E$10:E$77,0)/COUNT($B$10:$B$77)*10 -> 0.44 | S74: 3.67 | T74: 1.67 | U74: 2.58 | V74: 5 | W74: =+J74 -> 0 | X74: =+K74 -> 0 | Y74: =+L74 -> 0 | AB74: 2.59
B75: 66 | C75: Fairleigh Dickinson | D75: 66 | E75: =VLOOKUP(C75,'Ranking de la NCAA'!$D$6:$L$358,9,FALSE) -> 203 | F75: =VLOOKUP(C75,'Anotación de ataque'!$C$6:$F$356,4,FALSE) -> 75.4 | G75: =VLOOKUP(C75,'Anotación de defensa'!$C$6:$F$356,4,FALSE) -> 71.3 | H75: =VLOOKUP(C75,'% de ganados y perdidos'!$C$6:$F$356,4,FALSE)/100 -> 60.6% | I75: 5 | J75: 0 | K75: 0 | L75: 0 | O75: =+AB75 -> 2.55 | Q75: =_xlfn.RANK.EQ(D75,D$10:D$77,0)/COUNT($B$10:$B$77)*10 -> 0.44 | R75: 0.59 | S75: 4.15 | T75: 2.05 | U75: 2.13 | V75: =+I75 -> 5 | W75: 0 | X75: 0 | Y75: 0 | AB75: 2.55
B76: 67 | C76: North Dakota St. | D76: 67 | E76: =VLOOKUP(C76,'Ranking de la NCAA'!$D$6:$L$358,9,FALSE) -> 222 | F76: =VLOOKUP(C76,'Anotación de ataque'!$C$6:$F$356,4,FALSE) -> 73.2 | G76: =VLOOKUP(C76,'Anotación de defensa'!$C$6:$F$356,4,FALSE) -> 72.2 | H76: =VLOOKUP(C76,'% de ganados y perdidos'!$C$6:$F$356,4,FALSE)/100 -> 54.5% | I76: 5 | J76: 0 | K76: 0 | L76: 0 | O76: 2.19 | Q76: 0.29 | R76: 0.29 | S76: 3.19 | T76: 1.62 | U76: 0.67 | V76: 5 | W76: 0 | X76: 0 | Y76: 0 | AB76: 2.19
B77: 68 | C77: N.C. Central | D77: 68 | E77: =VLOOKUP(C77,'Ranking de la NCAA'!$D$6:$L$358,9,FALSE) -> 302 | F77: =VLOOKUP(C77,'Anotación de ataque'!$C$6:$F$356,4,FALSE) -> 72.9 | G77: =VLOOKUP(C77,'Anotación de defensa'!$C$6:$F$356,4,FALSE) -> 67.1 | H77: =VLOOKUP(C77,'% de ganados y perdidos'!$C$6:$F$356,4,FALSE)/100 -> 51.7% | I77: 5 | J77: 0 | K77: 0 | L77: 0 | O77: 2.20 | Q77: 0.15 | R77: 0.15 | S77: 3.06 | T77: 4.05 | U77: 0.00 | V77: 5 | W77: 0 | X77: 0 | Y77: 0 | AB77: 2.20

Sheet Llaves
C4: Primera ronda | H4: Segunda ronda | M4: Semifinales regionales | R4: Finales regionales | W4: Nacional Semifinales | AN4: Nacional Semifinales | AS4: Finales regionales | AX4: Semifinales regionales | BC4: Segunda ronda | BH4: Primera ronda
B6: 1 | C6: Duke | D6: =IF(E6>E10,"G","P") -> G | E6: =VLOOKUP(C6,Estadísticas_Equipo,13,FALSE) -> 7.46 | BG6: =VLOOKUP(BI6,Estadísticas_Equipo,13,FALSE) -> 7.79 | BH6: =IF(BG6>BG10,"G","P") -> G | BI6: Virginia | BJ6: 1
H8: =IF(E6>E10,C6,C10) -> Duke | I8: =IF(J8>J16,"G","P") -> G | J8: =VLOOKUP(H8,Estadísticas_Equipo,13,FALSE) -> 7.46 | BB8: =VLOOKUP(BD8,Estadísticas_Equipo,13,FALSE) -> 7.79 | BC8: =IF(BB8>BB16,"G","P") -> G | BD8: =IF(BG6>BG10,BI6,BI10) -> Virginia
B10: 16 | C10: =IF(AH122>AH127,AJ122,AJ127) -> N.C. Central | D10: =IF(NOT(E6>E10),"G","P") -> P | E10: =VLOOKUP(C10,Estadísticas_Equipo,13,FALSE) -> 2.20 | BG10: =VLOOKUP(BI10,Estadísticas_Equipo,13,FALSE) -> 3.06 | BH10: =IF(NOT(BG6>BG10),"G","P") -> P | BI10: Gardner-Webb | BJ10: 16
M12: =IF(J8>J16,H8,H16) -> Duke | N12: =IF(O12>O28,"G","P") -> G | O12: =VLOOKUP(M12,Estadísticas_Equipo,13,FALSE) -> 7.46 | AW12: =VLOOKUP(AY12,Estadísticas_Equipo,13,FALSE) -> 7.79 | AX12: =IF(AW12>AW28,"G","P") -> G | AY12: =IF(BB8>BB16,BD8,BD16) -> Virginia
B14: 8 | C14: VCU | D14: =IF(E14>E18,"G","P") -> G | E14: =VLOOKUP(C14,Estadísticas_Equipo,13,FALSE) -> 5.52 | BG14: =VLOOKUP(BI14,Estadísticas_Equipo,13,FALSE) -> 4.73 | BH14: =IF(BG14>BG18,"G","P") -> G | BI14: Ole Miss | BJ14: 8
H16: =IF(E14>E18,C14,C18) -> VCU | I16: =IF(NOT(J8>J16),"G","P") -> P | J16: =VLOOKUP(H16,Estadísticas_Equipo,13,FALSE) -> 5.52 | BB16: =VLOOKUP(BD16,Estadísticas_Equipo,13,FALSE) -> 4.73 | BC16: =IF(NOT(BB8>BB16),"G","P") -> P | BD16: =IF(BG14>BG18,BI14,BI18) -> Ole Miss
B18: 9 | C18: UCF | D18: =IF(NOT(E14>E18),"G","P") -> P | E18: =VLOOKUP(C18,Estadísticas_Equipo,13,FALSE) -> 5.13 | BG18: =VLOOKUP(BI18,Estadísticas_Equipo,13,FALSE) -> 4.25 | BH18: =IF(NOT(BG14>BG18),"G","P") -> P | BI18: Oklahoma | BJ18: 9
R20: =IF(O12>O28,M12,M28) -> Duke | S20: =IF(T20>T52,"G","P") -> G | T20: =VLOOKUP(R20,Estadísticas_Equipo,13,FALSE) -> 7.46 | AR20: =VLOOKUP(AT20,Estadísticas_Equipo,13,FALSE) -> 7.79 | AS20: =IF(AR20>AR52,"G","P") -> G | AT20: =IF(AW12>AW28,AY12,AY28) -> Virginia
B22: 5 | C22: Mississippi St. | D22: =IF(E22>E26,"G","P") -> G | E22: =VLOOKUP(C22,Estadísticas_Equipo,13,FALSE) -> 5.68 | BG22: =VLOOKUP(BI22,Estadísticas_Equipo,13,FALSE) -> 5.81 | BH22: =IF(BG22>BG26,"G","P") -> G | BI22: Wisconsin | BJ22: 5
H24: =IF(E22>E26,C22,C26) -> Mississippi St. | I24: =IF(J24>J32,"G","P") -> P | J24: =VLOOKUP(H24,Estadísticas_Equipo,13,FALSE) -> 5.68 | BB24: =VLOOKUP(BD24,Estadísticas_Equipo,13,FALSE) -> 5.81 | BC24: =IF(BB24>BB32,"G","P") -> P | BD24: =IF(BG22>BG26,BI22,BI26) -> Wisconsin
B26: 12 | C26: Liberty | D26: =IF(NOT(E22>E26),"G","P") -> P | E26: =VLOOKUP(C26,Estadísticas_Equipo,13,FALSE) -> 4.50 | BG26: =VLOOKUP(BI26,Estadísticas_Equipo,13,FALSE) -> 3.81 | BH26: =IF(NOT(BG22>BG26),"G","P") -> P | BI26: Oregon | BJ26: 12
M28: =IF(J24>J32,H24,H32) -> Virginia Tech | N28: =IF(NOT(O12>O28),"G","P") -> P | O28: =VLOOKUP(M28,Estadísticas_Equipo,13,FALSE) -> 6.34 | AW28: =VLOOKUP(AY28,Estadísticas_Equipo,13,FALSE) -> 6.10 | AX28: =IF(NOT(AW12>AW28),"G","P") -> P | AY28: =IF(BB24>BB32,BD24,BD32) -> Kansas St.
B30: 4 | C30: Virginia Tech | D30: =IF(E30>E34,"G","P") -> G | E30: =VLOOKUP(C30,Estadísticas_Equipo,13,FALSE) -> 6.34 | BG30: =VLOOKUP(BI30,Estadísticas_Equipo,13,FALSE) -> 6.10 | BH30: =IF(BG30>BG34,"G","P") -> G | BI30: Kansas St. | BJ30: 4
H32: =IF(E30>E34,C30,C34) -> Virginia Tech | I32: =IF(NOT(J24>J32),"G","P") -> G | J32: =VLOOKUP(H32,Estadísticas_Equipo,13,FALSE) -> 6.34 | BB32: =VLOOKUP(BD32,Estadísticas_Equipo,13,FALSE) -> 6.10 | BC32: =IF(NOT(BB24>BB32),"G","P") -> G | BD32: =IF(BG30>BG34,BI30,BI34) -> Kansas St.
B34: 13 | C34: Saint Louis | D34: =IF(NOT(E30>E34),"G","P") -> P | E34: =VLOOKUP(C34,Estadísticas_Equipo,13,FALSE) -> 3.27 | W34: =IF(T20>T52,R20,R52) -> Duke | X34: =IF(Y34>Y98,"G","P") -> P | Y34: =VLOOKUP(W34,Estadísticas_Equipo,13,FALSE) -> 7.46 | AM34: =VLOOKUP(AO34,Estadísticas_Equipo,13,FALSE) -> 7.79 | AN34: =IF(AM34>AM100,"G","P") -> G | AO34: =IF(AR20>AR52,AT20,AT52) -> Virginia | BG34: =VLOOKUP(BI34,Estadísticas_Equipo,13,FALSE) -> 4.35 | BH34: =IF(NOT(BG30>BG34),"G","P") -> P | BI34: UC Irvine | BJ34: 13
B38: 6 | C38: Maryland | D38: =IF(E38>E42,"G","P") -> G | E38: =VLOOKUP(C38,Estadísticas_Equipo,13,FALSE) -> 5.51 | BG38: =VLOOKUP(BI38,Estadísticas_Equipo,13,FALSE) -> 5.58 | BH38: =IF(BG38>BG42,"G","P") -> G | BI38: Villanova | BJ38: 6
H40: =IF(E38>E42,C38,C42) -> Maryland | I40: =IF(J40>J48,"G","P") -> P | J40: =VLOOKUP(H40,Estadísticas_Equipo,13,FALSE) -> 5.51 | BB40: =VLOOKUP(BD40,Estadísticas_Equipo,13,FALSE) -> 5.58 | BC40: =IF(BB40>BB48,"G","P") -> P | BD40: =IF(BG38>BG42,BI38,BI42) -> Villanova
B42: 11 | C42: =IF(AD122>AD127,AB122,AB127) -> Belmont | D42: =IF(NOT(E38>E42),"G","P") -> P | E42: =VLOOKUP(C42,Estadísticas_Equipo,13,FALSE) -> 4.96 | BG42: =VLOOKUP(BI42,Estadísticas_Equipo,13,FALSE) -> 4.29 | BH42: =IF(NOT(BG38>BG42),"G","P") -> P | BI42: Saint Mary's (CA) | BJ42: 11
M44: =IF(J40>J48,H40,H48) -> LSU | N44: =IF(O44>O60,"G","P") -> P | O44: =VLOOKUP(M44,Estadísticas_Equipo,13,FALSE) -> 6.62 | AW44: =VLOOKUP(AY44,Estadísticas_Equipo,13,FALSE) -> 6.33 | AX44: =IF(AW44>AW60,"G","P") -> P | AY44: =IF(BB40>BB48,BD40,BD48) -> Purdue
B46: 3 | C46: LSU | D46: =IF(E46>E50,"G","P") -> G | E46: =VLOOKUP(C46,Estadísticas_Equipo,13,FALSE) -> 6.62 | BG46: =VLOOKUP(BI46,Estadísticas_Equipo,13,FALSE) -> 6.33 | BH46: =IF(BG46>BG50,"G","P") -> G | BI46: Purdue | BJ46: 3
H48: =IF(E46>E50,C46,C50) -> LSU | I48: =IF(NOT(J40>J48),"G","P") -> G | J48: =VLOOKUP(H48,Estadísticas_Equipo,13,FALSE) -> 6.62 | BB48: =VLOOKUP(BD48,Estadísticas_Equipo,13,FALSE) -> 6.33 | BC48: =IF(NOT(BB40>BB48),"G","P") -> G | BD48: =IF(BG46>BG50,BI46,BI50) -> Purdue
B50: 14 | C50: Yale | D50: =IF(NOT(E46>E50),"G","P") -> P | E50: =VLOOKUP(C50,Estadísticas_Equipo,13,FALSE) -> 3.73 | BG50: =VLOOKUP(BI50,Estadísticas_Equipo,13,FALSE) -> 3.64 | BH50: =IF(NOT(BG46>BG50),"G","P") -> P | BI50: Old Dominion | BJ50: 14
R52: =IF(O44>O60,M44,M60) -> Michigan St. | S52: =IF(NOT(T20>T52),"G","P") -> P | T52: =VLOOKUP(R52,Estadísticas_Equipo,13,FALSE) -> 6.98 | AR52: =VLOOKUP(AT52,Estadísticas_Equipo,13,FALSE) -> 7.29 | AS52: =IF(NOT(AR20>AR52),"G","P") -> P | AT52: =IF(AW44>AW60,AY44,AY60) -> Tennessee
B54: 7 | C54: Louisville | D54: =IF(E54>E58,"G","P") -> G | E54: =VLOOKUP(C54,Estadísticas_Equipo,13,FALSE) -> 5.15 | BG54: =VLOOKUP(BI54,Estadísticas_Equipo,13,FALSE) -> 5.68 | BH54: =IF(BG54>BG58,"G","P") -> G | BI54: Cincinnati | BJ54: 7
H56: =IF(E54>E58,C54,C58) -> Louisville | I56: =IF(J56>J64,"G","P") -> P | J56: =VLOOKUP(H56,Estadísticas_Equipo,13,FALSE) -> 5.15 | BB56: =VLOOKUP(BD56,Estadísticas_Equipo,13,FALSE) -> 5.68 | BC56: =IF(BB56>BB64,"G","P") -> P | BD56: =IF(BG54>BG58,BI54,BI58) -> Cincinnati
B58: 10 | C58: Minnesota | D58: =IF(NOT(E54>E58),"G","P") -> P | E58: =VLOOKUP(C58,Estadísticas_Equipo,13,FALSE) -> 4.02 | BG58: =VLOOKUP(BI58,Estadísticas_Equipo,13,FALSE) -> 4.47 | BH58: =IF(NOT(BG54>BG58),"G","P") -> P | BI58: Iowa | BJ58: 10
AC59: Campeonato Nacional
M60: =IF(J56>J64,H56,H64) -> Michigan St. | N60: =IF(NOT(O44>O60),"G","P") -> G | O60: =VLOOKUP(M60,Estadísticas_Equipo,13,FALSE) -> 6.98 | AW60: =VLOOKUP(AY60,Estadísticas_Equipo,13,FALSE) -> 7.29 | AX60: =IF(NOT(AW44>AW60),"G","P") -> G | AY60: =IF(BB56>BB64,BD56,BD64) -> Tennessee
B62: 2 | C62: Michigan St. | D62: =IF(E62>E66,"G","P") -> G | E62: =VLOOKUP(C62,Estadísticas_Equipo,13,FALSE) -> 6.98 | BG62: =VLOOKUP(BI62,Estadísticas_Equipo,13,FALSE) -> 7.29 | BH62: =IF(BG62>BG66,"G","P") -> G | BI62: Tennessee | BJ62: 2
H64: =IF(E62>E66,C62,C66) -> Michigan St. | I64: =IF(NOT(J56>J64),"G","P") -> G | J64: =VLOOKUP(H64,Estadísticas_Equipo,13,FALSE) -> 6.98 | BB64: =VLOOKUP(BD64,Estadísticas_Equipo,13,FALSE) -> 7.29 | BC64: =IF(NOT(BB56>BB64),"G","P") -> G | BD64: =IF(BG62>BG66,BI62,BI66) -> Tennessee
B66: 15 | C66: Bradley | D66: =IF(NOT(E62>E66),"G","P") -> P | E66: =VLOOKUP(C66,Estadísticas_Equipo,13,FALSE) -> 2.70 | AB66: =IF(Y34>Y98,W34,W98) -> Gonzaga | AC66: =IF(AD66>AH66,"G","P") -> P | AD66: =VLOOKUP(AB66,Estadísticas_Equipo,13,FALSE) -> 7.76 | AF66: =IF(AD66>AH66,AB66,AJ66) -> Virginia | AH66: =VLOOKUP(AJ66,Estadísticas_Equipo,13,FALSE) -> 7.79 | AI66: =IF(NOT(AD66>AH66),"G","P") -> G | AJ66: =IF(AM34>AM100,AO34,AO98) -> Virginia | BG66: =VLOOKUP(BI66,Estadísticas_Equipo,13,FALSE) -> 3.25 | BH66: =IF(NOT(BG62>BG66),"G","P") -> P | BI66: Colgate | BJ66: 15
B70: 1 | C70: Gonzaga | D70: =IF(E70>E74,"G","P") -> G | E70: =VLOOKUP(C70,Estadísticas_Equipo,13,FALSE) -> 7.76 | BG70: =VLOOKUP(BI70,Estadísticas_Equipo,13,FALSE) -> 7.23 | BH70: =IF(BG70>BG74,"G","P") -> G | BI70: North Carolina | BJ70: 1
H72: =IF(E70>E74,C70,C74) -> Gonzaga | I72: =IF(J72>J80,"G","P") -> G | J72: =VLOOKUP(H72,Estadísticas_Equipo,13,FALSE) -> 7.76 | BB72: =VLOOKUP(BD72,Estadísticas_Equipo,13,FALSE) -> 7.23 | BC72: =IF(BB72>BB80,"G","P") -> G | BD72: =IF(BG70>BG74,BI70,BI74) -> North Carolina
B74: 16 | C74: =IF(Y122>Y127,W122,W127) -> Prairie View | D74: =IF(NOT(E70>E74),"G","P") -> P | E74: =VLOOKUP(C74,Estadísticas_Equipo,13,FALSE) -> 2.59 | BG74: =VLOOKUP(BI74,Estadísticas_Equipo,13,FALSE) -> 2.32 | BH74: =IF(NOT(BG70>BG74),"G","P") -> P | BI74: Iona | BJ74: 16
M76: =IF(J72>J80,H72,H80) -> Gonzaga | N76: =IF(O76>O92,"G","P") -> G | O76: =VLOOKUP(M76,Estadísticas_Equipo,13,FALSE) -> 7.76 | AW76: =VLOOKUP(AY76,Estadísticas_Equipo,13,FALSE) -> 7.23 | AX76: =IF(AW76>AW92,"G","P") -> G | AY76: =IF(BB72>BB80,BD72,BD80) -> North Carolina
B78: 8 | C78: Syracuse | D78: =IF(E78>E82,"G","P") -> G | E78: =VLOOKUP(C78,Estadísticas_Equipo,13,FALSE) -> 4.66 | BG78: =VLOOKUP(BI78,Estadísticas_Equipo,13,FALSE) -> 5.46 | BH78: =IF(BG78>BG82,"G","P") -> G | BI78: Utah St. | BJ78: 8
H80: =IF(E78>E82,C78,C82) -> Syracuse | I80: =IF(NOT(J72>J80),"G","P") -> P | J80: =VLOOKUP(H80,Estadísticas_Equipo,13,FALSE) -> 4.66 | BB80: =VLOOKUP(BD80,Estadísticas_Equipo,13,FALSE) -> 5.46 | BC80: =IF(NOT(BB72>BB80),"G","P") -> P | BD80: =IF(BG78>BG82,BI78,BI82) -> Utah St.
B82: 9 | C82: Baylor | D82: =IF(NOT(E78>E82),"G","P") -> P | E82: =VLOOKUP(C82,Estadísticas_Equipo,13,FALSE) -> 4.42 | BG82: =VLOOKUP(BI82,Estadísticas_Equipo,13,FALSE) -> 5.02 | BH82: =IF(NOT(BG78>BG82),"G","P") -> P | BI82: Washington | BJ82: 9
R84: =IF(O76>O92,M76,M92) -> Gonzaga | S84: =IF(T84>T116,"G","P") -> G | T84: =VLOOKUP(R84,Estadísticas_Equipo,13,FALSE) -> 7.76 | AR84: =VLOOKUP(AT84,Estadísticas_Equipo,13,FALSE) -> 7.23 | AS84: =IF(AR84>AR116,"G","P") -> P | AT84: =IF(AW76>AW92,AY76,AY92) -> North Carolina
B86: 5 | C86: Marquette | D86: =IF(E86>E90,"G","P") -> G | E86: =VLOOKUP(C86,Estadísticas_Equipo,13,FALSE) -> 5.87 | BG86: =VLOOKUP(BI86,Estadísticas_Equipo,13,FALSE) -> 5.92 | BH86: =IF(BG86>BG90,"G","P") -> G | BI86: Auburn | BJ86: 5
H88: =IF(E86>E90,C86,C90) -> Marquette | I88: =IF(J88>J96,"G","P") -> P | J88: =VLOOKUP(H88,Estadísticas_Equipo,13,FALSE) -> 5.87 | BB88: =VLOOKUP(BD88,Estadísticas_Equipo,13,FALSE) -> 5.92 | BC88: =IF(BB88>BB96,"G","P") -> P | BD88: =IF(BG86>BG90,BI86,BI90) -> Auburn
B90: 12 | C90: Murray St. | D90: =IF(NOT(E86>E90),"G","P") -> P | E90: =VLOOKUP(C90,Estadísticas_Equipo,13,FALSE) -> 4.96 | BG90: =VLOOKUP(BI90,Estadísticas_Equipo,13,FALSE) -> 4.78 | BH90: =IF(NOT(BG86>BG90),"G","P") -> P | BI90: New Mexico St. | BJ90: 12
M92: =IF(J88>J96,H88,H96) -> Florida St. | N92: =IF(NOT(O76>O92),"G","P") -> P | O92: =VLOOKUP(M92,Estadísticas_Equipo,13,FALSE) -> 6.36 | AW92: =VLOOKUP(AY92,Estadísticas_Equipo,13,FALSE) -> 6.07 | AX92: =IF(NOT(AW76>AW92),"G","P") -> P | AY92: =IF(BB88>BB96,BD88,BD96) -> Kansas
B94: 4 | C94: Florida St. | D94: =IF(E94>E98,"G","P") -> G | E94: =VLOOKUP(C94,Estadísticas_Equipo,13,FALSE) -> 6.36 | BG94: =VLOOKUP(BI94,Estadísticas_Equipo,13,FALSE) -> 6.07 | BH94: =IF(BG94>BG98,"G","P") -> G | BI94: Kansas | BJ94: 4
H96: =IF(E94>E98,C94,C98) -> Florida St. | I96: =IF(NOT(J88>J96),"G","P") -> G | J96: =VLOOKUP(H96,Estadísticas_Equipo,13,FALSE) -> 6.36 | BB96: =VLOOKUP(BD96,Estadísticas_Equipo,13,FALSE) -> 6.07 | BC96: =IF(NOT(BB88>BB96),"G","P") -> G | BD96: =IF(BG94>BG98,BI94,BI98) -> Kansas
B98: 13 | C98: Vermont | D98: =IF(NOT(E94>E98),"G","P") -> P | E98: =VLOOKUP(C98,Estadísticas_Equipo,13,FALSE) -> 4.26 | W98: =IF(T84>T116,R84,R116) -> Gonzaga | X98: =IF(NOT(Y34>Y98),"G","P") -> G | Y98: =VLOOKUP(W98,Estadísticas_Equipo,13,FALSE) -> 7.76 | AN98: =IF(NOT(AM34>AM100),"G","P") -> P | AO98: =IF(AR84>AR116,AT84,AT116) -> Houston | BG98: =VLOOKUP(BI98,Estadísticas_Equipo,13,FALSE) -> 3.60 | BH98: =IF(NOT(BG94>BG98),"G","P") -> P | BI98: Northeastern | BJ98: 13
X100: =IF(NOT(Y68>Y100),"G","P") -> G | AM100: =VLOOKUP(AO98,Estadísticas_Equipo,13,FALSE) -> 7.33
B102: 6 | C102: Buffalo | D102: =IF(E102>E106,"G","P") -> G | E102: =VLOOKUP(C102,Estadísticas_Equipo,13,FALSE) -> 6.39 | X102: =IF(NOT(Y70>Y102),"G","P") -> G | BG102: =VLOOKUP(BI102,Estadísticas_Equipo,13,FALSE) -> 5.31 | BH102: =IF(BG102>BG106,"G","P") -> G | BI102: Iowa St. | BJ102: 6
H104: =IF(E102>E106,C102,C106) -> Buffalo | I104: =IF(J104>J112,"G","P") -> P | J104: =VLOOKUP(H104,Estadísticas_Equipo,13,FALSE) -> 6.39 | BB104: =VLOOKUP(BD104,Estadísticas_Equipo,13,FALSE) -> 5.31 | BC104: =IF(BB104>BB112,"G","P") -> P | BD104: =IF(BG102>BG106,BI102,BI106) -> Iowa St.
B106: 11 | C106: =IF(AN122>AN127,AO122,AO127) -> St. John's (NY) | D106: =IF(NOT(E102>E106),"G","P") -> P | E106: =VLOOKUP(C106,Estadísticas_Equipo,13,FALSE) -> 3.75 | BG106: =VLOOKUP(BI106,Estadísticas_Equipo,13,FALSE) -> 3.90 | BH106: =IF(NOT(BG102>BG106),"G","P") -> P | BI106: Ohio St. | BJ106: 11
M108: =IF(J104>J112,H104,H112) -> Texas Tech | N108: =IF(O108>O124,"G","P") -> P | O108: =VLOOKUP(M108,Estadísticas_Equipo,13,FALSE) -> 6.91 | AW108: =VLOOKUP(AY108,Estadísticas_Equipo,13,FALSE) -> 7.33 | AX108: =IF(AW108>AW124,"G","P") -> G | AY108: =IF(BB104>BB112,BD104,BD112) -> Houston
B110: 3 | C110: Texas Tech | D110: =IF(E110>E114,"G","P") -> G | E110: =VLOOKUP(C110,Estadísticas_Equipo,13,FALSE) -> 6.91 | BG110: =VLOOKUP(BI110,Estadísticas_Equipo,13,FALSE) -> 7.33 | BH110: =IF(BG110>BG114,"G","P") -> G | BI110: Houston | BJ110: 3
H112: =IF(E110>E114,C110,C114) -> Texas Tech | I112: =IF(NOT(J104>J112),"G","P") -> G | J112: =VLOOKUP(H112,Estadísticas_Equipo,13,FALSE) -> 6.91 | BB112: =VLOOKUP(BD112,Estadísticas_Equipo,13,FALSE) -> 7.33 | BC112: =IF(NOT(BB104>BB112),"G","P") -> G | BD112: =IF(BG110>BG114,BI110,BI114) -> Houston
B114: 14 | C114: Northern Ky. | D114: =IF(NOT(E110>E114),"G","P") -> P | E114: =VLOOKUP(C114,Estadísticas_Equipo,13,FALSE) -> 3.71 | BG114: =VLOOKUP(BI114,Estadísticas_Equipo,13,FALSE) -> 3.37 | BH114: =IF(NOT(BG110>BG114),"G","P") -> P | BI114: Georgia St. | BJ114: 14
R116: =IF(O108>O124,M108,M124) -> Michigan | S116: =IF(NOT(T84>T116),"G","P") -> P | T116: =VLOOKUP(R116,Estadísticas_Equipo,13,FALSE) -> 6.94 | AR116: =VLOOKUP(AT116,Estadísticas_Equipo,13,FALSE) -> 7.33 | AS116: =IF(NOT(AR84>AR116),"G","P") -> G | AT116: =IF(AW108>AW124,AY108,AY124) -> Houston
B118: 7 | C118: Nevada | D118: =IF(E118>E122,"G","P") -> G | E118: =VLOOKUP(C118,Estadísticas_Equipo,13,FALSE) -> 6.20 | BG118: =VLOOKUP(BI118,Estadísticas_Equipo,13,FALSE) -> 6.20 | BH118: =IF(BG118>BG122,"G","P") -> G | BI118: Wofford | BJ118: 7
H120: =IF(E118>E122,C118,C122) -> Nevada | I120: =IF(J120>J128,"G","P") -> P | J120: =VLOOKUP(H120,Estadísticas_Equipo,13,FALSE) -> 6.20 | BB120: =VLOOKUP(BD120,Estadísticas_Equipo,13,FALSE) -> 6.20 | BC120: =IF(BB120>BB128,"G","P") -> P | BD120: =IF(BG118>BG122,BI118,BI122) -> Wofford
B122: 10 | C122: Florida | D122: =IF(NOT(E118>E122),"G","P") -> P | E122: =VLOOKUP(C122,Estadísticas_Equipo,13,FALSE) -> 4.01 | W122: Fairleigh Dickinson | X122: =IF(Y122>Y127,"G","P") -> P | Y122: =VLOOKUP(W122,Estadísticas_Equipo,13,FALSE) -> 2.55 | AB122: Belmont | AC122: =IF(AD122>AD129,"G","P") -> G | AD122: =VLOOKUP(AB122,Estadísticas_Equipo,13,FALSE) -> 4.96 | AF122: Cuatro primeros | AH122: =VLOOKUP(AJ122,Estadísticas_Equipo,13,FALSE) -> 2.19 | AI122: =IF(AH122>AH127,"G","P") -> P | AJ122: North Dakota St. | AM122: =VLOOKUP(AO122,Estadísticas_Equipo,13,FALSE) -> 4.05 | AN122: =IF(AM122>AM127,"G","P") -> G | AO122: Arizona St. | BG122: =VLOOKUP(BI122,Estadísticas_Equipo,13,FALSE) -> 4.03 | BH122: =IF(NOT(BG118>BG122),"G","P") -> P | BI122: Seton Hall | BJ122: 10
M124: =IF(J120>J128,H120,H128) -> Michigan | N124: =IF(NOT(O108>O124),"G","P") -> G | O124: =VLOOKUP(M124,Estadísticas_Equipo,13,FALSE) -> 6.94 | AW124: =VLOOKUP(AY124,Estadísticas_Equipo,13,FALSE) -> 7.00 | AX124: =IF(NOT(AW108>AW124),"G","P") -> P | AY124: =IF(BB120>BB128,BD120,BD128) -> Kentucky
B126: 2 | C126: Michigan | D126: =IF(E126>E130,"G","P") -> G | E126: =VLOOKUP(C126,Estadísticas_Equipo,13,FALSE) -> 6.94 | BG126: =VLOOKUP(BI126,Estadísticas_Equipo,13,FALSE) -> 7.00 | BH126: =IF(BG126>BG130,"G","P") -> G | BI126: Kentucky | BJ126: 2
W127: Prairie View | X127: =IF(NOT(Y122>Y127),"G","P") -> G | Y127: =VLOOKUP(W127,Estadísticas_Equipo,13,FALSE) -> 2.59 | AB127: Temple | AC127: =IF(NOT(AD122>AD127),"G","P") -> P | AH127: =VLOOKUP(AJ127,Estadísticas_Equipo,13,FALSE) -> 2.20 | AI127: =IF(NOT(AH122>AH127),"G","P") -> G | AJ127: N.C. Central | AM127: =VLOOKUP(AO127,Estadísticas_Equipo,13,FALSE) -> 3.75 | AN127: =IF(NOT(AM122>AM127),"G","P") -> P | AO127: St. John's (NY)
H128: =IF(E126>E130,C126,C130) -> Michigan | I128: =IF(NOT(J120>J128),"G","P") -> G | J128: =VLOOKUP(H128,Estadísticas_Equipo,13,FALSE) -> 6.94 | BB128: =VLOOKUP(BD128,Estadísticas_Equipo,13,FALSE) -> 7.00 | BC128: =IF(NOT(BB120>BB128),"G","P") -> G | BD128: =IF(BG126>BG130,BI126,BI130) -> Kentucky
AD129: =VLOOKUP(AB127,Estadísticas_Equipo,13,FALSE) -> 4.31
B130: 15 | C130: Montana | D130: =IF(NOT(E126>E130),"G","P") -> P | E130: =VLOOKUP(C130,Estadísticas_Equipo,13,FALSE) -> 3.50 | BG130: =VLOOKUP(BI130,Estadísticas_Equipo,13,FALSE) -> 3.66 | BH130: =IF(NOT(BG126>BG130),"G","P") -> P | BI130: Abilene Christian | BJ130: 15

Sheet Ranking de la NCAA
B3: Hasta partidos del 17 de marzo de 2019
B5: Clasificación | C5: Anterior | D5: Universidad | E5: Conferencia | F5: Récord | G5: Visitante | H5: Neutral | I5: Local | J5: Non Div I | L5: Clasificación
B6: 1 | C6: 1 | D6: Virginia | E6: ACC | F6: 29-3 | G6: 10-1 | H6: 4-1 | I6: 15-1 | J6: 0-0 | L6: =+Tabla_Ránking_NCAA[[#This Row],[Clasificación]] -> 1
B7: 2 | C7: 2 | D7: Gonzaga | E7: WCC | F7: 30-3 | G7: 9-1 | H7: 4-2 | I7: 17-0 | J7: 0-0 | L7: =+Tabla_Ránking_NCAA[[#This Row],[Clasificación]] -> 2
B8: 3 | C8: 3 | D8: Duke | E8: ACC | F8: 29-5 | G8: 7-2 | H8: 7-1 | I8: 15-2 | J8: 0-0 | L8: =+Tabla_Ránking_NCAA[[#This Row],[Clasificación]] -> 3
B9: 4 | C9: 4 | D9: Houston | E9: AAC | F9: 31-3 | G9: 11-1 | H9: 1-1 | I9: 19-1 | J9: 0-0 | L9: =+Tabla_Ránking_NCAA[[#This Row],[Clasificación]] -> 4
B10: 5 | C10: 5 | D10: Tennessee | E10: SEC | F10: 29-5 | G10: 7-3 | H10: 4-2 | I10: 17-0 | J10: 1-0 | L10: =+Tabla_Ránking_NCAA[[#This Row],[Clasificación]] -> 5
B11: 6 | C11: 6 | D11: Kentucky | E11: SEC | F11: 27-6 | G11: 8-2 | H11: 2-3 | I11: 17-1 | J11: 0-0 | L11: =+Tabla_Ránking_NCAA[[#This Row],[Clasificación]] -> 6
B12: 7 | C12: 7 | D12: North Carolina | E12: ACC | F12: 27-6 | G12: 11-1 | H12: 2-3 | I12: 14-2 | J12: 0-0 | L12: =+Tabla_Ránking_NCAA[[#This Row],[Clasificación]] -> 7
B13: 8 | C13: 8 | D13: Michigan St. | E13: Big Ten | F13: 28-6 | G13: 8-4 | H13: 5-1 | I13: 15-1 | J13: 0-0 | L13: =+Tabla_Ránking_NCAA[[#This Row],[Clasificación]] -> 8
B14: 9 | C14: 9 | D14: Michigan | E14: Big Ten | F14: 28-6 | G14: 7-4 | H14: 4-1 | I14: 17-1 | J14: 0-0 | L14: =+Tabla_Ránking_NCAA[[#This Row],[Clasificación]] -> 9
B15: 10 | C15: 10 | D15: Texas Tech | E15: Big 12 | F15: 26-6 | G15: 6-3 | H15: 3-2 | I15: 17-1 | J15: 0-0 | L15: =+Tabla_Ránking_NCAA[[#This Row],[Clasificación]] -> 10
B16: 11 | C16: 11 | D16: Virginia Tech | E16: ACC | F16: 24-8 | G16: 5-5 | H16: 5-1 | I16: 14-2 | J16: 0-0 | L16: =+Tabla_Ránking_NCAA[[#This Row],[Clasificación]] -> 11
B17: 12 | C17: 12 | D17: Purdue | E17: Big Ten | F17: 23-9 | G17: 6-6 | H17: 2-3 | I17: 15-0 | J17: 0-0 | L17: =+Tabla_Ránking_NCAA[[#This Row],[Clasificación]] -> 12
B18: 13 | C18: 13 | D18: Wofford | E18: SoCon | F18: 29-4 | G18: 11-3 | H18: 3-0 | I18: 12-1 | J18: 3-0 | L18: =+Tabla_Ránking_NCAA[[#This Row],[Clasificación]] -> 13
B19: 14 | C19: 14 | D19: LSU | E19: SEC | F19: 26-6 | G19: 9-1 | H19: 2-3 | I19: 15-2 | J19: 0-0 | L19: =+Tabla_Ránking_NCAA[[#This Row],[Clasificación]] -> 14
B20: 15 | C20: 15 | D20: Buffalo | E20: MAC | F20: 31-3 | G20: 12-3 | H20: 5-0 | I20: 13-0 | J20: 1-0 | L20: =+Tabla_Ránking_NCAA[[#This Row],[Clasificación]] -> 15
B21: 16 | C21: 16 | D21: Florida St. | E21: ACC | F21: 27-7 | G21: 6-4 | H21: 6-2 | I21: 15-1 | J21: 0-0 | L21: =+Tabla_Ránking_NCAA[[#This Row],[Clasificación]] -> 16
B22: 17 | C22: 17 | D22: Wisconsin | E22: Big Ten | F22: 23-10 | G22: 8-5 | H22: 3-2 | I22: 12-3 | J22: 0-0 | L22: =+Tabla_Ránking_NCAA[[#This Row],[Clasificación]] -> 17
B23: 18 | C23: 18 | D23: Auburn | E23: SEC | F23: 26-9 | G23: 4-6 | H23: 7-1 | I23: 14-2 | J23: 1-0 | L23: =+Tabla_Ránking_NCAA[[#This Row],[Clasificación]] -> 18
B24: 19 | C24: 19 | D24: Mississippi St. | E24: SEC | F24: 23-10 | G24: 5-5 | H24: 4-2 | I24: 14-3 | J24: 0-0 | L24: =+Tabla_Ránking_NCAA[[#This Row],[Clasificación]] -> 19
B25: 20 | C25: 20 | D25: Kansas | E25: Big 12 | F25: 25-9 | G25: 3-8 | H25: 5-1 | I25: 17-0 | J25: 0-0 | L25: =+Tabla_Ránking_NCAA[[#This Row],[Clasificación]] -> 20
B26: 21 | C26: 21 | D26: Iowa St. | E26: Big 12 | F26: 23-11 | G26: 5-6 | H26: 6-1 | I26: 12-4 | J26: 0-0 | L26: =+Tabla_Ránking_NCAA[[#This Row],[Clasificación]] -> 21
B27: 22 | C27: 22 | D27: Louisville | E27: ACC | F27: 20-13 | G27: 5-6 | H27: 1-3 | I27: 14-4 | J27: 0-0 | L27: =+Tabla_Ránking_NCAA[[#This Row],[Clasificación]] -> 22
B28: 23 | C28: 23 | D28: Nevada | E28: MWC | F28: 29-4 | G28: 9-3 | H28: 5-1 | I28: 15-0 | J28: 0-0 | L28: =+Tabla_Ránking_NCAA[[#This Row],[Clasificación]] -> 23
B29: 24 | C29: 24 | D29: Kansas St. | E29: Big 12 | F29: 25-8 | G29: 7-5 | H29: 4-1 | I29: 14-2 | J29: 0-0 | L29: =+Tabla_Ránking_NCAA[[#This Row],[Clasificación]] -> 24
B30: 25 | C30: 25 | D30: Cincinnati | E30: AAC | F30: 28-6 | G30: 7-4 | H30: 5-0 | I30: 16-2 | J30: 0-0 | L30: =+Tabla_Ránking_NCAA[[#This Row],[Clasificación]] -> 25
B31: 26 | C31: 26 | D31: Villanova | E31: Big East | F31: 25-9 | G31: 5-7 | H31: 7-0 | I31: 13-2 | J31: 0-0 | L31: =+Tabla_Ránking_NCAA[[#This Row],[Clasificación]] -> 26
B32: 27 | C32: 27 | D32: Maryland | E32: Big Ten | F32: 22-10 | G32: 6-5 | H32: 1-2 | I32: 15-3 | J32: 0-0 | L32: =+Tabla_Ránking_NCAA[[#This Row],[Clasificación]] -> 27
B33: 28 | C33: 28 | D33: Marquette | E33: Big East | F33: 24-9 | G33: 7-4 | H33: 1-2 | I33: 16-3 | J33: 0-0 | L33: =+Tabla_Ránking_NCAA[[#This Row],[Clasificación]] -> 28
B34: 29 | C34: 29 | D34: Utah St. | E34: MWC | F34: 28-6 | G34: 9-4 | H34: 5-1 | I34: 13-1 | J34: 1-0 | L34: =+Tabla_Ránking_NCAA[[#This Row],[Clasificación]] -> 29
B35: 30 | C35: 30 | D35: UCF | E35: AAC | F35: 23-8 | G35: 5-6 | H35: 3-0 | I35: 15-2 | J35: 0-0 | L35: =+Tabla_Ránking_NCAA[[#This Row],[Clasificación]] -> 30
B36: 31 | C36: 31 | D36: Florida | E36: SEC | F36: 19-15 | G36: 5-6 | H36: 5-3 | I36: 9-6 | J36: 0-0 | L36: =+Tabla_Ránking_NCAA[[#This Row],[Clasificación]] -> 31
B37: 32 | C37: 32 | D37: Saint Mary's (CA) | E37: WCC | F37: 22-11 | G37: 5-5 | H37: 3-3 | I37: 14-3 | J37: 0-0 | L37: =+Tabla_Ránking_NCAA[[#This Row],[Clasificación]] -> 32
B38: 33 | C38: 33 | D38: NC State | E38: ACC | F38: 22-11 | G38: 4-6 | H38: 3-1 | I38: 15-4 | J38: 0-0 | L38: =+Tabla_Ránking_NCAA[[#This Row],[Clasificación]] -> 33
B39: 34 | C39: 34 | D39: VCU | E39: Atlantic 10 | F39: 25-7 | G39: 8-4 | H39: 1-2 | I39: 16-1 | J39: 0-0 | L39: =+Tabla_Ránking_NCAA[[#This Row],[Clasificación]] -> 34
B40: 35 | C40: 35 | D40: Clemson | E40: ACC | F40: 19-13 | G40: 4-6 | H40: 2-3 | I40: 13-4 | J40: 0-0 | L40: =+Tabla_Ránking_NCAA[[#This Row],[Clasificación]] -> 35
B41: 36 | C41: 36 | D41: Ole Miss | E41: SEC | F41: 20-12 | G41: 6-5 | H41: 3-2 | I41: 11-5 | J41: 0-0 | L41: =+Tabla_Ránking_NCAA[[#This Row],[Clasificación]] -> 36
B42: 37 | C42: 37 | D42: Oklahoma | E42: Big 12 | F42: 19-13 | G42: 5-7 | H42: 3-2 | I42: 11-4 | J42: 0-0 | L42: =+Tabla_Ránking_NCAA[[#This Row],[Clasificación]] -> 37
B43: 38 | C43: 38 | D43: Texas | E43: Big 12 | F43: 16-16 | G43: 2-8 | H43: 2-2 | I43: 12-6 | J43: 0-0 | L43: =+Tabla_Ránking_NCAA[[#This Row],[Clasificación]] -> 38
B44: 39 | C44: 39 | D44: Baylor | E44: Big 12 | F44: 19-13 | G44: 5-6 | H44: 1-2 | I44: 13-5 | J44: 0-0 | L44: =+Tabla_Ránking_NCAA[[#This Row],[Clasificación]] -> 39
B45: 40 | C45: 40 | D45: New Mexico St. | E45: WAC | F45: 30-4 | G45: 10-2 | H45: 4-1 | I45: 14-1 | J45: 2-0 | L45: =+Tabla_Ránking_NCAA[[#This Row],[Clasificación]] -> 40
B46: 41 | C46: 41 | D46: Furman | E46: SoCon | F46: 25-7 | G46: 11-4 | H46: 1-1 | I46: 10-2 | J46: 3-0 | L46: =+Tabla_Ránking_NCAA[[#This Row],[Clasificación]] -> 41
B47: 42 | C47: 42 | D47: Syracuse | E47: ACC | F47: 20-13 | G47: 6-4 | H47: 1-3 | I47: 13-6 | J47: 0-0 | L47: =+Tabla_Ránking_NCAA[[#This Row],[Clasificación]] -> 42
B48: 43 | C48: 43 | D48: Iowa | E48: Big Ten | F48: 22-11 | G48: 4-6 | H48: 4-1 | I48: 14-4 | J48: 0-0 | L48: =+Tabla_Ránking_NCAA[[#This Row],[Clasificación]] -> 43
B49: 44 | C49: 44 | D49: Murray St. | E49: OVC | F49: 27-4 | G49: 10-3 | H49: 2-0 | I49: 13-1 | J49: 2-0 | L49: =+Tabla_Ránking_NCAA[[#This Row],[Clasificación]] -> 44
B50: 45 | C50: 45 | D50: Washington | E50: Pac-12 | F50: 26-8 | G50: 7-4 | H50: 4-3 | I50: 15-1 | J50: 0-0 | L50: =+Tabla_Ránking_NCAA[[#This Row],[Clasificación]] -> 45
B51: 46 | C51: 46 | D51: Memphis | E51: AAC | F51: 21-13 | G51: 3-7 | H51: 1-3 | I51: 17-3 | J51: 0-0 | L51: =+Tabla_Ránking_NCAA[[#This Row],[Clasificación]] -> 46
B52: 47 | C52: 47 | D52: Belmont | E52: OVC | F52: 26-5 | G52: 12-3 | H52: 1-1 | I52: 12-1 | J52: 1-0 | L52: =+Tabla_Ránking_NCAA[[#This Row],[Clasificación]] -> 47
B53: 48 | C53: 48 | D53: Nebraska | E53: Big Ten | F53: 18-16 | G53: 2-9 | H53: 4-2 | I53: 11-5 | J53: 1-0 | L53: =+Tabla_Ránking_NCAA[[#This Row],[Clasificación]] -> 48
B54: 49 | C54: 49 | D54: Lipscomb | E54: ASUN | F54: 25-7 | G54: 11-4 | H54: 0-0 | I54: 12-3 | J54: 2-0 | L54: =+Tabla_Ránking_NCAA[[#This Row],[Clasificación]] -> 49
B55: 50 | C55: 50 | D55: Penn St. | E55: Big Ten | F55: 14-18 | G55: 4-9 | H55: 1-3 | I55: 9-6 | J55: 0-0 | L55: =+Tabla_Ránking_NCAA[[#This Row],[Clasificación]] -> 50
B56: 51 | C56: 51 | D56: Oregon | E56: Pac-12 | F56: 23-12 | G56: 5-7 | H56: 5-1 | I56: 13-4 | J56: 0-0 | L56: =+Tabla_Ránking_NCAA[[#This Row],[Clasificación]] -> 51
B57: 52 | C57: 52 | D57: TCU | E57: Big 12 | F57: 20-13 | G57: 3-7 | H57: 5-1 | I57: 12-5 | J57: 0-0 | L57: =+Tabla_Ránking_NCAA[[#This Row],[Clasificación]] -> 52
B58: 53 | C58: 53 | D58: Creighton | E58: Big East | F58: 18-14 | G58: 4-7 | H58: 3-1 | I58: 10-6 | J58: 1-0 | L58: =+Tabla_Ránking_NCAA[[#This Row],[Clasificación]] -> 53
B59: 54 | C59: 54 | D59: Indiana | E59: Big Ten | F59: 17-15 | G59: 3-9 | H59: 1-1 | I59: 13-5 | J59: 0-0 | L59: =+Tabla_Ránking_NCAA[[#This Row],[Clasificación]] -> 54
B60: 55 | C60: 55 | D60: Ohio St. | E60: Big Ten | F60: 19-14 | G60: 5-7 | H60: 2-1 | I60: 12-6 | J60: 0-0 | L60: =+Tabla_Ránking_NCAA[[#This Row],[Clasificación]] -> 55
B61: 56 | C61: 56 | D61: Temple | E61: AAC | F61: 23-9 | G61: 8-5 | H61: 2-2 | I61: 13-2 | J61: 0-0 | L61: =+Tabla_Ránking_NCAA[[#This Row],[Clasificación]] -> 56
B62: 57 | C62: 57 | D62: Seton Hall | E62: Big East | F62: 20-13 | G62: 3-8 | H62: 6-1 | I62: 11-4 | J62: 0-0 | L62: =+Tabla_Ránking_NCAA[[#This Row],[Clasificación]] -> 57
B63: 58 | C63: 58 | D63: Liberty | E63: ASUN | F63: 28-6 | G63: 11-3 | H63: 1-2 | I63: 13-1 | J63: 3-0 | L63: =+Tabla_Ránking_NCAA[[#This Row],[Clasificación]] -> 58
B64: 59 | C64: 59 | D64: Alabama | E64: SEC | F64: 18-15 | G64: 4-8 | H64: 4-2 | I64: 10-5 | J64: 0-0 | L64: =+Tabla_Ránking_NCAA[[#This Row],[Clasificación]] -> 59
B65: 60 | C65: 60 | D65: UNC Greensboro | E65: SoCon | F65: 28-6 | G65: 11-4 | H65: 3-1 | I65: 12-1 | J65: 2-0 | L65: =+Tabla_Ránking_NCAA[[#This Row],[Clasificación]] -> 60
B66: 61 | C66: 61 | D66: Minnesota | E66: Big Ten | F66: 21-13 | G66: 2-9 | H66: 6-1 | I66: 13-3 | J66: 0-0 | L66: =+Tabla_Ránking_NCAA[[#This Row],[Clasificación]] -> 61
B67: 62 | C67: 62 | D67: Toledo | E67: MAC | F67: 25-7 | G67: 8-4 | H67: 3-1 | I67: 13-2 | J67: 1-0 | L67: =+Tabla_Ránking_NCAA[[#This Row],[Clasificación]] -> 62
B68: 63 | C68: 63 | D68: Arizona St. | E68: Pac-12 | F68: 22-10 | G68: 6-5 | H68: 3-2 | I68: 13-3 | J68: 0-0 | L68: =+Tabla_Ránking_NCAA[[#This Row],[Clasificación]] -> 63
B69: 64 | C69: 64 | D69: Butler | E69: Big East | F69: 16-16 | G69: 2-9 | H69: 2-3 | I69: 12-4 | J69: 0-0 | L69: =+Tabla_Ránking_NCAA[[#This Row],[Clasificación]] -> 64
B70: 65 | C70: 65 | D70: Arkansas | E70: SEC | F70: 17-15 | G70: 4-7 | H70: 1-2 | I70: 12-6 | J70: 0-0 | L70: =+Tabla_Ránking_NCAA[[#This Row],[Clasificación]] -> 65
B71: 66 | C71: 66 | D71: Colorado | E71: Pac-12 | F71: 21-12 | G71: 5-8 | H71: 3-2 | I71: 13-2 | J71: 0-0 | L71: =+Tabla_Ránking_NCAA[[#This Row],[Clasificación]] -> 66
B72: 67 | C72: 67 | D72: Xavier | E72: Big East | F72: 18-15 | G72: 4-7 | H72: 2-3 | I72: 12-5 | J72: 0-0 | L72: =+Tabla_Ránking_NCAA[[#This Row],[Clasificación]] -> 67
B73: 68 | C73: 68 | D73: UC Irvine | E73: Big West | F73: 30-5 | G73: 13-2 | H73: 5-1 | I73: 11-2 | J73: 1-0 | L73: =+Tabla_Ránking_NCAA[[#This Row],[Clasificación]] -> 68
B74: 69 | C74: 69 | D74: Dayton | E74: Atlantic 10 | F74: 21-11 | G74: 7-3 | H74: 1-4 | I74: 13-4 | J74: 0-0 | L74: =+Tabla_Ránking_NCAA[[#This Row],[Clasificación]] -> 69
B75: 70 | C75: 70 | D75: Providence | E75: Big East | F75: 18-15 | G75: 5-6 | H75: 2-3 | I75: 11-6 | J75: 0-0 | L75: =+Tabla_Ránking_NCAA[[#This Row],[Clasificación]] -> 70
B76: 71 | C76: 71 | D76: Vermont | E76: America East | F76: 27-6 | G76: 11-4 | H76: 0-0 | I76: 15-2 | J76: 1-0 | L76: =+Tabla_Ránking_NCAA[[#This Row],[Clasificación]] -> 71
B77: 72 | C77: 72 | D77: ETSU | E77: SoCon | F77: 24-9 | G77: 8-6 | H77: 3-1 | I77: 11-2 | J77: 2-0 | L77: =+Tabla_Ránking_NCAA[[#This Row],[Clasificación]] -> 72
B78: 73 | C78: 73 | D78: St. John's (NY) | E78: Big East | F78: 21-12 | G78: 4-7 | H78: 3-0 | I78: 14-5 | J78: 0-0 | L78: =+Tabla_Ránking_NCAA[[#This Row],[Clasificación]] -> 73
B79: 74 | C79: 74 | D79: San Francisco | E79: WCC | F79: 21-10 | G79: 6-5 | H79: 1-2 | I79: 13-3 | J79: 1-0 | L79: =+Tabla_Ránking_NCAA[[#This Row],[Clasificación]] -> 74
B80: 75 | C80: 75 | D80: Davidson | E80: Atlantic 10 | F80: 24-9 | G80: 7-5 | H80: 3-3 | I80: 13-1 | J80: 1-0 | L80: =+Tabla_Ránking_NCAA[[#This Row],[Clasificación]] -> 75
B81: 76 | C81: 76 | D81: Hofstra | E81: CAA | F81: 27-7 | G81: 10-5 | H81: 2-1 | I81: 14-1 | J81: 1-0 | L81: =+Tabla_Ránking_NCAA[[#This Row],[Clasificación]] -> 76
B82: 77 | C82: 77 | D82: Missouri | E82: SEC | F82: 15-17 | G82: 2-8 | H82: 4-2 | I82: 9-7 | J82: 0-0 | L82: =+Tabla_Ránking_NCAA[[#This Row],[Clasificación]] -> 77
B83: 78 | C83: 78 | D83: Northeastern | E83: CAA | F83: 23-10 | G83: 8-6 | H83: 4-2 | I83: 11-2 | J83: 0-0 | L83: =+Tabla_Ránking_NCAA[[#This Row],[Clasificación]] -> 78
B84: 79 | C84: 79 | D84: Oklahoma St. | E84: Big 12 | F84: 12-20 | G84: 2-9 | H84: 2-4 | I84: 8-7 | J84: 0-0 | L84: =+Tabla_Ránking_NCAA[[#This Row],[Clasificación]] -> 79
B85: 80 | C85: 80 | D85: Fresno St. | E85: MWC | F85: 23-9 | G85: 7-3 | H85: 3-2 | I85: 12-4 | J85: 1-0 | L85: =+Tabla_Ránking_NCAA[[#This Row],[Clasificación]] -> 80
B86: 81 | C86: 81 | D86: South Carolina | E86: SEC | F86: 16-16 | G86: 4-8 | H86: 1-2 | I86: 10-6 | J86: 1-0 | L86: =+Tabla_Ránking_NCAA[[#This Row],[Clasificación]] -> 81
B87: 82 | C87: 82 | D87: Georgetown | E87: Big East | F87: 19-13 | G87: 5-6 | H87: 1-2 | I87: 13-5 | J87: 0-0 | L87: =+Tabla_Ránking_NCAA[[#This Row],[Clasificación]] -> 82
B88: 83 | C88: 83 | D88: Wichita St. | E88: AAC | F88: 19-14 | G88: 4-7 | H88: 4-3 | I88: 11-4 | J88: 0-0 | L88: =+Tabla_Ránking_NCAA[[#This Row],[Clasificación]] -> 83
B89: 84 | C89: 84 | D89: Texas A&M | E89: SEC | F89: 14-18 | G89: 4-7 | H89: 1-3 | I89: 9-8 | J89: 0-0 | L89: =+Tabla_Ránking_NCAA[[#This Row],[Clasificación]] -> 84
B90: 85 | C90: 85 | D90: BYU | E90: WCC | F90: 19-13 | G90: 5-8 | H90: 1-2 | I90: 13-3 | J90: 0-0 | L90: =+Tabla_Ránking_NCAA[[#This Row],[Clasificación]] -> 85
B91: 86 | C91: 86 | D91: Yale | E91: Ivy League | F91: 22-7 | G91: 8-5 | H91: 2-0 | I91: 11-2 | J91: 1-0 | L91: =+Tabla_Ránking_NCAA[[#This Row],[Clasificación]] -> 86
B92: 87 | C92: 87 | D92: Oregon St. | E92: Pac-12 | F92: 18-13 | G92: 6-5 | H92: 2-2 | I92: 10-6 | J92: 0-0 | L92: =+Tabla_Ránking_NCAA[[#This Row],[Clasificación]] -> 87
B93: 88 | C93: 88 | D93: Southern California | E93: Pac-12 | F93: 16-17 | G93: 2-9 | H93: 2-3 | I93: 12-5 | J93: 0-0 | L93: =+Tabla_Ránking_NCAA[[#This Row],[Clasificación]] -> 88
B94: 89 | C94: 89 | D94: Northwestern | E94: Big Ten | F94: 13-19 | G94: 1-9 | H94: 2-2 | I94: 10-8 | J94: 0-0 | L94: =+Tabla_Ránking_NCAA[[#This Row],[Clasificación]] -> 89
B95: 90 | C95: 90 | D95: Utah Valley | E95: WAC | F95: 24-9 | G95: 8-7 | H95: 3-1 | I95: 11-1 | J95: 2-0 | L95: =+Tabla_Ránking_NCAA[[#This Row],[Clasificación]] -> 90
B96: 91 | C96: 91 | D96: Southern Miss. | E96: C-USA | F96: 20-12 | G96: 7-7 | H96: 2-2 | I96: 8-2 | J96: 3-1 | L96: =+Tabla_Ránking_NCAA[[#This Row],[Clasificación]] -> 91
B97: 92 | C97: 92 | D97: Miami (FL) | E97: ACC | F97: 14-18 | G97: 0-10 | H97: 3-3 | I97: 11-5 | J97: 0-0 | L97: =+Tabla_Ránking_NCAA[[#This Row],[Clasificación]] -> 92
B98: 93 | C98: 93 | D98: Arizona | E98: Pac-12 | F98: 17-15 | G98: 4-7 | H98: 1-3 | I98: 12-5 | J98: 0-0 | L98: =+Tabla_Ránking_NCAA[[#This Row],[Clasificación]] -> 93
B99: 94 | C99: 94 | D99: Tulsa | E99: AAC | F99: 18-14 | G99: 3-8 | H99: 1-3 | I99: 14-3 | J99: 0-0 | L99: =+Tabla_Ránking_NCAA[[#This Row],[Clasificación]] -> 94
B100: 95 | C100: 95 | D100: UConn | E100: AAC | F100: 16-17 | G100: 1-8 | H100: 2-4 | I100: 13-5 | J100: 0-0 | L100: =+Tabla_Ránking_NCAA[[#This Row],[Clasificación]] -> 95
B101: 96 | C101: 96 | D101: Grand Canyon | E101: WAC | F101: 20-13 | G101: 5-7 | H101: 3-4 | I101: 11-2 | J101: 1-0 | L101: =+Tabla_Ránking_NCAA[[#This Row],[Clasificación]] -> 96
B102: 97 | C102: 97 | D102: San Diego | E102: WCC | F102: 21-14 | G102: 5-8 | H102: 4-2 | I102: 11-4 | J102: 1-0 | L102: =+Tabla_Ránking_NCAA[[#This Row],[Clasificación]] -> 97
B103: 98 | C103: 98 | D103: SMU | E103: AAC | F103: 15-17 | G103: 3-7 | H103: 2-2 | I103: 10-8 | J103: 0-0 | L103: =+Tabla_Ránking_NCAA[[#This Row],[Clasificación]] -> 98
B104: 99 | C104: 99 | D104: South Fla. | E104: AAC | F104: 19-13 | G104: 4-6 | H104: 1-2 | I104: 13-5 | J104: 1-0 | L104: =+Tabla_Ránking_NCAA[[#This Row],[Clasificación]] -> 99
B105: 100 | C105: 100 | D105: Old Dominion | E105: C-USA | F105: 26-8 | G105: 8-4 | H105: 4-2 | I105: 14-2 | J105: 0-0 | L105: =+Tabla_Ránking_NCAA[[#This Row],[Clasificación]] -> 100
B106: 101 | C106: 101 | D106: Rutgers | E106: Big Ten | F106: 14-17 | G106: 4-9 | H106: 0-1 | I106: 10-7 | J106: 0-0 | L106: =+Tabla_Ránking_NCAA[[#This Row],[Clasificación]] -> 101
B107: 102 | C107: 102 | D107: DePaul | E107: Big East | F107: 15-15 | G107: 3-9 | H107: 0-0 | I107: 12-6 | J107: 0-0 | L107: =+Tabla_Ránking_NCAA[[#This Row],[Clasificación]] -> 102
B108: 103 | C108: 103 | D108: Saint Louis | E108: Atlantic 10 | F108: 23-12 | G108: 4-8 | H108: 4-2 | I108: 15-2 | J108: 0-0 | L108: =+Tabla_Ránking_NCAA[[#This Row],[Clasificación]] -> 103
B109: 104 | C109: 104 | D109: South Dakota St. | E109: Summit League | F109: 24-8 | G109: 7-5 | H109: 3-2 | I109: 13-1 | J109: 1-0 | L109: =+Tabla_Ránking_NCAA[[#This Row],[Clasificación]] -> 104
B110: 105 | C110: 105 | D110: Utah | E110: Pac-12 | F110: 17-14 | G110: 6-5 | H110: 1-4 | I110: 10-5 | J110: 0-0 | L110: =+Tabla_Ránking_NCAA[[#This Row],[Clasificación]] -> 105
B111: 106 | C111: 106 | D111: West Virginia | E111: Big 12 | F111: 14-20 | G111: 0-10 | H111: 4-4 | I111: 10-6 | J111: 0-0 | L111: =+Tabla_Ránking_NCAA[[#This Row],[Clasificación]] -> 106
B112: 107 | C112: 107 | D112: Col. of Charleston | E112: CAA | F112: 24-9 | G112: 8-5 | H112: 3-2 | I112: 12-2 | J112: 1-0 | L112: =+Tabla_Ránking_NCAA[[#This Row],[Clasificación]] -> 107
B113: 108 | C113: 108 | D113: Stanford | E113: Pac-12 | F113: 15-16 | G113: 4-9 | H113: 1-3 | I113: 10-4 | J113: 0-0 | L113: =+Tabla_Ránking_NCAA[[#This Row],[Clasificación]] -> 108
B114: 109 | C114: 109 | D114: Illinois | E114: Big Ten | F114: 12-21 | G114: 1-9 | H114: 2-5 | I114: 9-7 | J114: 0-0 | L114: =+Tabla_Ránking_NCAA[[#This Row],[Clasificación]] -> 109
B115: 110 | C115: 110 | D115: Penn | E115: Ivy League | F115: 19-12 | G115: 9-5 | H115: 1-3 | I115: 8-4 | J115: 1-0 | L115: =+Tabla_Ránking_NCAA[[#This Row],[Clasificación]] -> 110
B116: 111 | C116: 111 | D116: Western Ky. | E116: C-USA | F116: 20-14 | G116: 6-8 | H116: 4-2 | I116: 10-4 | J116: 0-0 | L116: =+Tabla_Ránking_NCAA[[#This Row],[Clasificación]] -> 111
B117: 112 | C117: 112 | D117: Notre Dame | E117: ACC | F117: 14-19 | G117: 1-9 | H117: 2-2 | I117: 11-8 | J117: 0-0 | L117: =+Tabla_Ránking_NCAA[[#This Row],[Clasificación]] -> 112
B118: 113 | C118: 113 | D118: Central Mich. | E118: MAC | F118: 23-11 | G118: 7-5 | H118: 3-2 | I118: 10-4 | J118: 3-0 | L118: =+Tabla_Ránking_NCAA[[#This Row],[Clasificación]] -> 113
B119: 114 | C119: 114 | D119: Akron | E119: MAC | F119: 17-16 | G119: 1-10 | H119: 2-3 | I119: 12-3 | J119: 2-0 | L119: =+Tabla_Ránking_NCAA[[#This Row],[Clasificación]] -> 114
B120: 115 | C120: 115 | D120: Northern Ky. | E120: Horizon | F120: 26-8 | G120: 7-7 | H120: 2-0 | I120: 15-1 | J120: 2-0 | L120: =+Tabla_Ránking_NCAA[[#This Row],[Clasificación]] -> 115
B121: 116 | C121: 116 | D121: San Diego St. | E121: MWC | F121: 21-13 | G121: 5-7 | H121: 2-3 | I121: 13-3 | J121: 1-0 | L121: =+Tabla_Ránking_NCAA[[#This Row],[Clasificación]] -> 116
B122: 117 | C122: 117 | D122: Bowling Green | E122: MAC | F122: 22-12 | G122: 5-9 | H122: 3-1 | I122: 12-2 | J122: 2-0 | L122: =+Tabla_Ránking_NCAA[[#This Row],[Clasificación]] -> 117
B123: 118 | C123: 118 | D123: St. Bonaventure | E123: Atlantic 10 | F123: 18-16 | G123: 6-7 | H123: 2-4 | I123: 10-5 | J123: 0-0 | L123: =+Tabla_Ránking_NCAA[[#This Row],[Clasificación]] -> 118
B124: 119 | C124: 119 | D124: Louisiana Tech | E124: C-USA | F124: 20-13 | G124: 4-10 | H124: 1-2 | I124: 13-1 | J124: 2-0 | L124: =+Tabla_Ránking_NCAA[[#This Row],[Clasificación]] -> 119
B125: 120 | C125: 120 | D125: UCLA | E125: Pac-12 | F125: 17-16 | G125: 3-7 | H125: 1-4 | I125: 13-5 | J125: 0-0 | L125: =+Tabla_Ránking_NCAA[[#This Row],[Clasificación]] -> 120
B126: 121 | C126: 121 | D126: Georgia St. | E126: Sun Belt | F126: 24-9 | G126: 7-7 | H126: 4-1 | I126: 12-1 | J126: 1-0 | L126: =+Tabla_Ránking_NCAA[[#This Row],[Clasificación]] -> 121
B127: 122 | C127: 122 | D127: Georgia | E127: SEC | F127: 11-21 | G127: 2-9 | H127: 1-3 | I127: 8-9 | J127: 0-0 | L127: =+Tabla_Ránking_NCAA[[#This Row],[Clasificación]] -> 122
B128: 123 | C128: 123 | D128: Pittsburgh | E128: ACC | F128: 14-19 | G128: 0-11 | H128: 3-1 | I128: 11-7 | J128: 0-0 | L128: =+Tabla_Ránking_NCAA[[#This Row],[Clasificación]] -> 123
B129: 124 | C129: 124 | D129: Montana | E129: Big Sky | F129: 26-8 | G129: 9-5 | H129: 5-1 | I129: 10-2 | J129: 2-0 | L129: =+Tabla_Ránking_NCAA[[#This Row],[Clasificación]] -> 124
B130: 125 | C130: 125 | D130: Ga. Southern | E130: Sun Belt | F130: 21-12 | G130: 7-7 | H130: 4-1 | I130: 8-4 | J130: 2-0 | L130: =+Tabla_Ránking_NCAA[[#This Row],[Clasificación]] -> 125
B131: 126 | C131: 126 | D131: Georgia Tech | E131: ACC | F131: 14-18 | G131: 3-9 | H131: 0-2 | I131: 11-7 | J131: 0-0 | L131: =+Tabla_Ránking_NCAA[[#This Row],[Clasificación]] -> 126
B132: 127 | C132: 127 | D132: Drake | E132: MVC | F132: 24-9 | G132: 7-5 | H132: 4-2 | I132: 11-2 | J132: 2-0 | L132: =+Tabla_Ránking_NCAA[[#This Row],[Clasificación]] -> 127
B133: 128 | C133: 128 | D133: Loyola Chicago | E133: MVC | F133: 20-13 | G133: 5-6 | H133: 2-3 | I133: 12-4 | J133: 1-0 | L133: =+Tabla_Ránking_NCAA[[#This Row],[Clasificación]] -> 128
B134: 129 | C134: 129 | D134: Harvard | E134: Ivy League | F134: 18-11 | G134: 7-9 | H134: 2-0 | I134: 8-2 | J134: 1-0 | L134: =+Tabla_Ránking_NCAA[[#This Row],[Clasificación]] -> 129
B135: 130 | C135: 130 | D135: Jacksonville St. | E135: OVC | F135: 24-9 | G135: 10-7 | H135: 3-1 | I135: 9-1 | J135: 2-0 | L135: =+Tabla_Ránking_NCAA[[#This Row],[Clasificación]] -> 130
B136: 131 | C136: 131 | D136: Ball St. | E136: MAC | F136: 16-17 | G136: 8-7 | H136: 1-3 | I136: 6-7 | J136: 1-0 | L136: =+Tabla_Ránking_NCAA[[#This Row],[Clasificación]] -> 131
B137: 132 | C137: 132 | D137: Colgate | E137: Patriot | F137: 24-10 | G137: 9-9 | H137: 0-0 | I137: 14-1 | J137: 1-0 | L137: =+Tabla_Ránking_NCAA[[#This Row],[Clasificación]] -> 132
B138: 133 | C138: 133 | D138: UAB | E138: C-USA | F138: 20-14 | G138: 6-5 | H138: 3-4 | I138: 9-5 | J138: 2-0 | L138: =+Tabla_Ránking_NCAA[[#This Row],[Clasificación]] -> 133
B139: 134 | C139: 134 | D139: Texas St. | E139: Sun Belt | F139: 24-9 | G139: 10-5 | H139: 3-1 | I139: 9-3 | J139: 2-0 | L139: =+Tabla_Ránking_NCAA[[#This Row],[Clasificación]] -> 134
B140: 135 | C140: 135 | D140: Austin Peay | E140: OVC | F140: 22-11 | G140: 8-7 | H140: 4-2 | I140: 8-2 | J140: 2-0 | L140: =+Tabla_Ránking_NCAA[[#This Row],[Clasificación]] -> 135
B141: 136 | C141: 136 | D141: Boston College | E141: ACC | F141: 14-17 | G141: 2-8 | H141: 2-1 | I141: 10-8 | J141: 0-0 | L141: =+Tabla_Ránking_NCAA[[#This Row],[Clasificación]] -> 136
B142: 137 | C142: 137 | D142: Rhode Island | E142: Atlantic 10 | F142: 18-15 | G142: 5-8 | H142: 4-2 | I142: 9-5 | J142: 0-0 | L142: =+Tabla_Ránking_NCAA[[#This Row],[Clasificación]] -> 137
B143: 138 | C143: 138 | D143: Kent St. | E143: MAC | F143: 22-10 | G143: 8-6 | H143: 0-1 | I143: 12-3 | J143: 2-0 | L143: =+Tabla_Ránking_NCAA[[#This Row],[Clasificación]] -> 138
B144: 139 | C144: 139 | D144: Northern Ill. | E144: MAC | F144: 17-17 | G144: 5-9 | H144: 2-2 | I144: 8-6 | J144: 2-0 | L144: =+Tabla_Ránking_NCAA[[#This Row],[Clasificación]] -> 139
B145: 140 | C145: 140 | D145: Wright St. | E145: Horizon | F145: 21-13 | G145: 5-7 | H145: 1-4 | I145: 13-2 | J145: 2-0 | L145: =+Tabla_Ránking_NCAA[[#This Row],[Clasificación]] -> 140
B146: 141 | C146: 141 | D146: UTSA | E146: C-USA | F146: 17-15 | G146: 5-7 | H146: 1-4 | I146: 8-3 | J146: 3-1 | L146: =+Tabla_Ránking_NCAA[[#This Row],[Clasificación]] -> 141
B147: 142 | C147: 142 | D147: Loyola Marymount | E147: WCC | F147: 20-11 | G147: 7-6 | H147: 2-1 | I147: 9-4 | J147: 2-0 | L147: =+Tabla_Ránking_NCAA[[#This Row],[Clasificación]] -> 142
B148: 143 | C148: 143 | D148: Southern Ill. | E148: MVC | F148: 17-15 | G148: 7-7 | H148: 1-2 | I148: 9-6 | J148: 0-0 | L148: =+Tabla_Ránking_NCAA[[#This Row],[Clasificación]] -> 143
B149: 144 | C149: 144 | D149: Radford | E149: Big South | F149: 22-11 | G149: 9-7 | H149: 2-1 | I149: 8-3 | J149: 3-0 | L149: =+Tabla_Ránking_NCAA[[#This Row],[Clasificación]] -> 144
B150: 145 | C150: 145 | D150: Brown | E150: Ivy League | F150: 19-11 | G150: 7-8 | H150: 0-0 | I150: 10-3 | J150: 2-0 | L150: =+Tabla_Ránking_NCAA[[#This Row],[Clasificación]] -> 145
B151: 146 | C151: 146 | D151: Miami (OH) | E151: MAC | F151: 15-17 | G151: 4-10 | H151: 1-2 | I151: 8-5 | J151: 2-0 | L151: =+Tabla_Ránking_NCAA[[#This Row],[Clasificación]] -> 146
B152: 147 | C152: 147 | D152: North Texas | E152: C-USA | F152: 21-12 | G152: 6-7 | H152: 2-1 | I152: 10-4 | J152: 3-0 | L152: =+Tabla_Ránking_NCAA[[#This Row],[Clasificación]] -> 147
B153: 148 | C153: 148 | D153: Marshall | E153: C-USA | F153: 19-14 | G153: 6-10 | H153: 1-1 | I153: 12-3 | J153: 0-0 | L153: =+Tabla_Ránking_NCAA[[#This Row],[Clasificación]] -> 148
B154: 149 | C154: 149 | D154: Boise St. | E154: MWC | F154: 13-20 | G154: 3-10 | H154: 2-3 | I154: 7-7 | J154: 1-0 | L154: =+Tabla_Ránking_NCAA[[#This Row],[Clasificación]] -> 149
B155: 150 | C155: 150 | D155: Fla. Atlantic | E155: C-USA | F155: 17-15 | G155: 6-8 | H155: 2-2 | I155: 6-5 | J155: 3-0 | L155: =+Tabla_Ránking_NCAA[[#This Row],[Clasificación]] -> 150
B156: 151 | C156: 151 | D156: La.-Monroe | E156: Sun Belt | F156: 18-15 | G156: 4-12 | H156: 1-1 | I156: 12-2 | J156: 1-0 | L156: =+Tabla_Ránking_NCAA[[#This Row],[Clasificación]] -> 151
B157: 152 | C157: 152 | D157: Bucknell | E157: Patriot | F157: 21-12 | G157: 7-8 | H157: 2-1 | I157: 12-3 | J157: 0-0 | L157: =+Tabla_Ránking_NCAA[[#This Row],[Clasificación]] -> 152
B158: 153 | C158: 153 | D158: George Mason | E158: Atlantic 10 | F158: 18-15 | G158: 6-6 | H158: 1-3 | I158: 11-6 | J158: 0-0 | L158: =+Tabla_Ránking_NCAA[[#This Row],[Clasificación]] -> 153
B159: 154 | C159: 154 | D159: Abilene Christian | E159: Southland | F159: 27-6 | G159: 10-4 | H159: 4-0 | I159: 9-2 | J159: 4-0 | L159: =+Tabla_Ránking_NCAA[[#This Row],[Clasificación]] -> 154
B160: 155 | C160: 155 | D160: Vanderbilt | E160: SEC | F160: 9-23 | G160: 1-11 | H160: 0-2 | I160: 8-10 | J160: 0-0 | L160: =+Tabla_Ránking_NCAA[[#This Row],[Clasificación]] -> 155
B161: 156 | C161: 156 | D161: Stony Brook | E161: America East | F161: 24-8 | G161: 13-3 | H161: 1-1 | I161: 9-4 | J161: 1-0 | L161: =+Tabla_Ránking_NCAA[[#This Row],[Clasificación]] -> 156
B162: 157 | C162: 157 | D162: UNLV | E162: MWC | F162: 17-14 | G162: 6-5 | H162: 1-2 | I162: 10-7 | J162: 0-0 | L162: =+Tabla_Ránking_NCAA[[#This Row],[Clasificación]] -> 157
B163: 158 | C163: 158 | D163: Eastern Mich. | E163: MAC | F163: 15-17 | G163: 4-10 | H163: 0-0 | I163: 7-7 | J163: 4-0 | L163: =+Tabla_Ránking_NCAA[[#This Row],[Clasificación]] -> 158
B164: 159 | C164: 159 | D164: Lehigh | E164: Patriot | F164: 20-11 | G164: 9-8 | H164: 0-0 | I164: 11-3 | J164: 0-0 | L164: =+Tabla_Ránking_NCAA[[#This Row],[Clasificación]] -> 159
B165: 160 | C165: 160 | D165: Samford | E165: SoCon | F165: 17-16 | G165: 5-9 | H165: 1-1 | I165: 10-6 | J165: 1-0 | L165: =+Tabla_Ránking_NCAA[[#This Row],[Clasificación]] -> 160
B166: 161 | C166: 161 | D166: UT Arlington | E166: Sun Belt | F166: 17-16 | G166: 7-10 | H166: 1-1 | I166: 8-5 | J166: 1-0 | L166: =+Tabla_Ránking_NCAA[[#This Row],[Clasificación]] -> 161
B167: 162 | C167: 162 | D167: Missouri St. | E167: MVC | F167: 16-16 | G167: 5-9 | H167: 0-3 | I167: 10-4 | J167: 1-0 | L167: =+Tabla_Ránking_NCAA[[#This Row],[Clasificación]] -> 162
B168: 163 | C168: 163 | D168: Coastal Caro. | E168: Sun Belt | F168: 15-16 | G168: 5-10 | H168: 1-2 | I168: 7-4 | J168: 2-0 | L168: =+Tabla_Ránking_NCAA[[#This Row],[Clasificación]] -> 163
B169: 164 | C169: 164 | D169: UC Santa Barbara | E169: Big West | F169: 22-10 | G169: 7-6 | H169: 3-1 | I169: 10-3 | J169: 2-0 | L169: =+Tabla_Ránking_NCAA[[#This Row],[Clasificación]] -> 164
B170: 165 | C170: 165 | D170: California Baptist | E170: WAC | F170: 16-14 | G170: 8-6 | H170: 0-2 | I170: 4-6 | J170: 4-0 | L170: =+Tabla_Ránking_NCAA[[#This Row],[Clasificación]] -> 165
B171: 166 | C171: 166 | D171: Pepperdine | E171: WCC | F171: 16-18 | G171: 2-11 | H171: 5-2 | I171: 8-5 | J171: 1-0 | L171: =+Tabla_Ránking_NCAA[[#This Row],[Clasificación]] -> 166
B172: 167 | C172: 167 | D172: UNI | E172: MVC | F172: 16-18 | G172: 3-9 | H172: 4-4 | I172: 7-5 | J172: 2-0 | L172: =+Tabla_Ránking_NCAA[[#This Row],[Clasificación]] -> 167
B173: 168 | C173: 168 | D173: UTRGV | E173: WAC | F173: 19-16 | G173: 8-7 | H173: 1-1 | I173: 8-8 | J173: 2-0 | L173: =+Tabla_Ránking_NCAA[[#This Row],[Clasificación]] -> 168
B174: 169 | C174: 169 | D174: Northern Colo. | E174: Big Sky | F174: 21-11 | G174: 11-5 | H174: 0-3 | I174: 8-3 | J174: 2-0 | L174: =+Tabla_Ránking_NCAA[[#This Row],[Clasificación]] -> 169
B175: 170 | C175: 170 | D175: Duquesne | E175: Atlantic 10 | F175: 19-13 | G175: 4-6 | H175: 1-2 | I175: 14-5 | J175: 0-0 | L175: =+Tabla_Ránking_NCAA[[#This Row],[Clasificación]] -> 170
B176: 171 | C176: 171 | D176: Saint Joseph's | E176: Atlantic 10 | F176: 14-19 | G176: 2-10 | H176: 2-3 | I176: 10-6 | J176: 0-0 | L176: =+Tabla_Ránking_NCAA[[#This Row],[Clasificación]] -> 171
B177: 172 | C177: 172 | D177: NJIT | E177: ASUN | F177: 21-12 | G177: 11-8 | H177: 0-0 | I177: 9-4 | J177: 1-0 | L177: =+Tabla_Ránking_NCAA[[#This Row],[Clasificación]] -> 172
B178: 173 | C178: 173 | D178: Gardner-Webb | E178: Big South | F178: 23-11 | G178: 8-9 | H178: 2-2 | I178: 10-0 | J178: 3-0 | L178: =+Tabla_Ránking_NCAA[[#This Row],[Clasificación]] -> 173
B179: 174 | C179: 174 | D179: Sam Houston St. | E179: Southland | F179: 21-11 | G179: 8-8 | H179: 1-1 | I179: 9-2 | J179: 3-0 | L179: =+Tabla_Ránking_NCAA[[#This Row],[Clasificación]] -> 174
B180: 175 | C180: 175 | D180: Ohio | E180: MAC | F180: 14-17 | G180: 3-10 | H180: 0-2 | I180: 10-5 | J180: 1-0 | L180: =+Tabla_Ránking_NCAA[[#This Row],[Clasificación]] -> 175
B181: 176 | C181: 176 | D181: Bradley | E181: MVC | F181: 20-14 | G181: 5-8 | H181: 5-0 | I181: 9-6 | J181: 1-0 | L181: =+Tabla_Ránking_NCAA[[#This Row],[Clasificación]] -> 176
B182: 177 | C182: 177 | D182: American | E182: Patriot | F182: 15-15 | G182: 7-8 | H182: 0-0 | I182: 8-7 | J182: 0-0 | L182: =+Tabla_Ránking_NCAA[[#This Row],[Clasificación]] -> 177
B183: 178 | C183: 178 | D183: Omaha | E183: Summit League | F183: 21-11 | G183: 9-8 | H183: 2-1 | I183: 9-2 | J183: 1-0 | L183: =+Tabla_Ránking_NCAA[[#This Row],[Clasificación]] -> 178
B184: 179 | C184: 179 | D184: Winthrop | E184: Big South | F184: 18-12 | G184: 7-8 | H184: 0-1 | I184: 8-3 | J184: 3-0 | L184: =+Tabla_Ránking_NCAA[[#This Row],[Clasificación]] -> 179
B185: 180 | C185: 180 | D185: Princeton | E185: Ivy League | F185: 16-12 | G185: 8-7 | H185: 1-0 | I185: 5-5 | J185: 2-0 | L185: =+Tabla_Ránking_NCAA[[#This Row],[Clasificación]] -> 180
B186: 181 | C186: 181 | D186: Santa Clara | E186: WCC | F186: 16-15 | G186: 5-6 | H186: 0-3 | I186: 10-6 | J186: 1-0 | L186: =+Tabla_Ránking_NCAA[[#This Row],[Clasificación]] -> 181
B187: 182 | C187: 182 | D187: Weber St. | E187: Big Sky | F187: 18-15 | G187: 5-7 | H187: 3-3 | I187: 8-5 | J187: 2-0 | L187: =+Tabla_Ránking_NCAA[[#This Row],[Clasificación]] -> 182
B188: 183 | C188: 183 | D188: Hartford | E188: America East | F188: 18-15 | G188: 8-9 | H188: 0-2 | I188: 9-4 | J188: 1-0 | L188: =+Tabla_Ránking_NCAA[[#This Row],[Clasificación]] -> 183
B189: 184 | C189: 184 | D189: Wake Forest | E189: ACC | F189: 11-20 | G189: 1-10 | H189: 2-2 | I189: 8-8 | J189: 0-0 | L189: =+Tabla_Ránking_NCAA[[#This Row],[Clasificación]] -> 184
B190: 185 | C190: 185 | D190: New Mexico | E190: MWC | F190: 14-18 | G190: 3-9 | H190: 1-2 | I190: 9-7 | J190: 1-0 | L190: =+Tabla_Ránking_NCAA[[#This Row],[Clasificación]] -> 185
B191: 186 | C191: 186 | D191: Seattle U | E191: WAC | F191: 18-14 | G191: 4-8 | H191: 0-1 | I191: 12-5 | J191: 2-0 | L191: =+Tabla_Ránking_NCAA[[#This Row],[Clasificación]] -> 186
B192: 187 | C192: 187 | D192: FIU | E192: C-USA | F192: 19-13 | G192: 5-8 | H192: 2-1 | I192: 8-4 | J192: 4-0 | L192: =+Tabla_Ránking_NCAA[[#This Row],[Clasificación]] -> 187
B193: 188 | C193: 188 | D193: Hawaii | E193: Big West | F193: 18-13 | G193: 4-5 | H193: 1-3 | I193: 11-5 | J193: 2-0 | L193: =+Tabla_Ránking_NCAA[[#This Row],[Clasificación]] -> 188
B194: 189 | C194: 189 | D194: Colorado St. | E194: MWC | F194: 12-20 | G194: 3-8 | H194: 1-3 | I194: 7-9 | J194: 1-0 | L194: =+Tabla_Ránking_NCAA[[#This Row],[Clasificación]] -> 189
B195: 190 | C195: 190 | D195: North Florida | E195: ASUN | F195: 16-17 | G195: 5-13 | H195: 1-1 | I195: 8-3 | J195: 2-0 | L195: =+Tabla_Ránking_NCAA[[#This Row],[Clasificación]] -> 190
B196: 191 | C196: 191 | D196: Valparaiso | E196: MVC | F196: 15-18 | G196: 5-8 | H196: 2-3 | I196: 6-7 | J196: 2-0 | L196: =+Tabla_Ránking_NCAA[[#This Row],[Clasificación]] -> 191
B197: 192 | C197: 192 | D197: Louisiana | E197: Sun Belt | F197: 19-13 | G197: 7-7 | H197: 2-2 | I197: 8-4 | J197: 2-0 | L197: =+Tabla_Ránking_NCAA[[#This Row],[Clasificación]] -> 192
B198: 193 | C198: 193 | D198: William & Mary | E198: CAA | F198: 14-17 | G198: 5-11 | H198: 0-1 | I198: 8-5 | J198: 1-0 | L198: =+Tabla_Ránking_NCAA[[#This Row],[Clasificación]] -> 193
B199: 194 | C199: 194 | D199: Richmond | E199: Atlantic 10 | F199: 13-20 | G199: 4-7 | H199: 2-3 | I199: 7-10 | J199: 0-0 | L199: =+Tabla_Ránking_NCAA[[#This Row],[Clasificación]] -> 194
B200: 195 | C200: 195 | D200: Cornell | E200: Ivy League | F200: 15-15 | G200: 6-11 | H200: 0-0 | I200: 7-4 | J200: 2-0 | L200: =+Tabla_Ránking_NCAA[[#This Row],[Clasificación]] -> 195
B201: 196 | C201: 196 | D201: Columbia | E201: Ivy League | F201: 10-18 | G201: 4-9 | H201: 1-2 | I201: 3-7 | J201: 2-0 | L201: =+Tabla_Ránking_NCAA[[#This Row],[Clasificación]] -> 196
B202: 197 | C202: 197 | D202: Charleston So. | E202: Big South | F202: 17-15 | G202: 4-10 | H202: 2-1 | I202: 7-4 | J202: 4-0 | L202: =+Tabla_Ránking_NCAA[[#This Row],[Clasificación]] -> 197
B203: 198 | C203: 198 | D203: Indiana St. | E203: MVC | F203: 15-16 | G203: 4-9 | H203: 2-2 | I203: 7-5 | J203: 2-0 | L203: =+Tabla_Ránking_NCAA[[#This Row],[Clasificación]] -> 198
... 155 more rows

Sheet Anotación de ataque
B3: Hasta partidos del 12 de marzo de 2019
B5: Clasificación | C5: Equipo | D5: Part. | E5: Pts. | F5: PPP
B6: 1 | C6: Gonzaga | D6: 33 | E6: 2,932 | F6: 88.8
B7: 2 | C7: Belmont | D7: 31 | E7: 2,710 | F7: 87.4
B8: 3 | C8: North Carolina | D8: 31 | E8: 2,684 | F8: 86.6
B9: 4 | C9: The Citadel | D9: 30 | E9: 2,553 | F9: 85.1
B10: 5 | C10: Buffalo | D10: 31 | E10: 2,634 | F10: 85.0
B11: 6 | C11: South Dakota St. | D11: 32 | E11: 2,716 | F11: 84.9
B12: 7 | C12: Duke | D12: 31 | E12: 2,608 | F12: 84.1
B13: 8 | C13: Hofstra | D13: 34 | E13: 2,841 | F13: 83.6
B14: 9 | C14: Ga. Southern | D14: 31 | E14: 2,587 | F14: 83.5
B15: 10 | C15: Lipscomb | D15: 32 | E15: 2,670 | F15: 83.4
B16: 11 | C16: FIU | D16: 31 | E16: 2,586 | F16: 83.4
B17: 12 | C17: Winthrop | D17: 30 | E17: 2,499 | F17: 83.3
B18: 13 | C18: Murray St. | D18: 31 | E18: 2,582 | F18: 83.3
B19: 14 | C19: Wofford | D19: 33 | E19: 2,739 | F19: 83.0
B20: 15 | C20: Purdue Fort Wayne | D20: 33 | E20: 2,728 | F20: 82.7
B21: 16 | C21: Eastern Ky. | D21: 31 | E21: 2,562 | F21: 82.6
B22: 17 | C22: Central Mich. | D22: 32 | E22: 2,640 | F22: 82.5
B23: 18 | C23: Tennessee | D23: 31 | E23: 2,552 | F23: 82.3
B24: 19 | C24: Houston Baptist | D24: 29 | E24: 2,386 | F24: 82.3
B25: 20 | C25: Austin Peay | D25: 33 | E25: 2,712 | F25: 82.2
B26: 21 | C26: Louisiana | D26: 31 | E26: 2,543 | F26: 82.0
B27: 22 | C27: LSU | D27: 31 | E27: 2,531 | F27: 81.6
B28: - | C28: Hampton | D28: 31 | E28: 2,531 | F28: 81.6
B29: 24 | C29: Nevada | D29: 31 | E29: 2,529 | F29: 81.6
B30: 25 | C30: Memphis | D30: 31 | E30: 2,521 | F30: 81.3
B31: 26 | C31: NC State | D31: 31 | E31: 2,512 | F31: 81.0
B32: 27 | C32: Georgetown | D32: 31 | E32: 2,500 | F32: 80.6
B33: 28 | C33: Yale | D33: 27 | E33: 2,173 | F33: 80.5
B34: 29 | C34: Green Bay | D34: 33 | E34: 2,653 | F34: 80.4
B35: 30 | C35: Marshall | D35: 31 | E35: 2,492 | F35: 80.4
B36: 31 | C36: Weber St. | D36: 31 | E36: 2,487 | F36: 80.2
B37: 32 | C37: Auburn | D37: 31 | E37: 2,482 | F37: 80.1
B38: 33 | C38: Lehigh | D38: 31 | E38: 2,479 | F38: 80.0
B39: 34 | C39: Sacred Heart | D39: 32 | E39: 2,558 | F39: 79.9
B40: 35 | C40: Appalachian St. | D40: 32 | E40: 2,557 | F40: 79.9
B41: 36 | C41: Texas Southern | D41: 32 | E41: 2,553 | F41: 79.8
B42: 37 | C42: Michigan St. | D42: 31 | E42: 2,471 | F42: 79.7
B43: 38 | C43: Howard | D43: 31 | E43: 2,463 | F43: 79.5
B44: 39 | C44: Creighton | D44: 31 | E44: 2,459 | F44: 79.3
B45: 40 | C45: ETSU | D45: 33 | E45: 2,613 | F45: 79.2
B46: 41 | C46: Northern Ky. | D46: 34 | E46: 2,690 | F46: 79.1
B47: 42 | C47: Utah St. | D47: 31 | E47: 2,450 | F47: 79.0
B48: 43 | C48: BYU | D48: 32 | E48: 2,527 | F48: 79.0
B49: 44 | C49: Iowa | D49: 31 | E49: 2,448 | F49: 79.0
B50: 45 | C50: Omaha | D50: 32 | E50: 2,523 | F50: 78.8
B51: 46 | C51: Lamar University | D51: 31 | E51: 2,444 | F51: 78.8
B52: 47 | C52: Presbyterian | D52: 33 | E52: 2,601 | F52: 78.8
B53: 48 | C53: La.-Monroe | D53: 31 | E53: 2,437 | F53: 78.6
B54: 49 | C54: UCLA | D54: 31 | E54: 2,429 | F54: 78.4
B55: 50 | C55: Gardner-Webb | D55: 34 | E55: 2,662 | F55: 78.3
B56: 51 | C56: Samford | D56: 33 | E56: 2,583 | F56: 78.3
B57: 52 | C57: Bowling Green | D57: 31 | E57: 2,425 | F57: 78.2
B58: 53 | C58: St. John's (NY) | D58: 31 | E58: 2,422 | F58: 78.1
B59: 54 | C59: Montana St. | D59: 30 | E59: 2,343 | F59: 78.1
B60: 55 | C60: Jacksonville St. | D60: 33 | E60: 2,574 | F60: 78.0
B61: 56 | C61: Furman | D61: 32 | E61: 2,492 | F61: 77.9
B62: 57 | C62: Georgia St. | D62: 31 | E62: 2,411 | F62: 77.8
B63: 58 | C63: Arizona St. | D63: 30 | E63: 2,332 | F63: 77.7
B64: 59 | C64: Iowa St. | D64: 31 | E64: 2,409 | F64: 77.7
B65: 60 | C65: UTSA | D65: 31 | E65: 2,405 | F65: 77.6
B66: 61 | C66: Portland St. | D66: 31 | E66: 2,404 | F66: 77.5
B67: 62 | C67: Utah Valley | D67: 31 | E67: 2,403 | F67: 77.5
B68: - | C68: New Mexico St. | D68: 31 | E68: 2,403 | F68: 77.5
B69: 64 | C69: Marquette | D69: 31 | E69: 2,400 | F69: 77.4
B70: 65 | C70: Toledo | D70: 31 | E70: 2,397 | F70: 77.3
B71: 66 | C71: Mississippi St. | D71: 31 | E71: 2,396 | F71: 77.3
B72: 67 | C72: Coastal Caro. | D72: 30 | E72: 2,314 | F72: 77.1
B73: 68 | C73: Fresno St. | D73: 30 | E73: 2,312 | F73: 77.1
B74: 69 | C74: Northern Colo. | D74: 31 | E74: 2,386 | F74: 77.0
B75: 70 | C75: DePaul | D75: 29 | E75: 2,232 | F75: 77.0
B76: 71 | C76: Montana | D76: 31 | E76: 2,385 | F76: 76.9
B77: 72 | C77: Iona | D77: 32 | E77: 2,459 | F77: 76.8
B78: 73 | C78: Kentucky | D78: 31 | E78: 2,381 | F78: 76.8
B79: - | C79: Rider | D79: 31 | E79: 2,381 | F79: 76.8
B80: 75 | C80: UMass Lowell | D80: 32 | E80: 2,456 | F80: 76.8
B81: 76 | C81: Oakland | D81: 33 | E81: 2,532 | F81: 76.7
B82: 77 | C82: Bucknell | D82: 32 | E82: 2,454 | F82: 76.7
B83: 78 | C83: CSUN | D83: 32 | E83: 2,449 | F83: 76.5
B84: 79 | C84: Houston | D84: 31 | E84: 2,369 | F84: 76.4
B85: 80 | C85: Saint Francis (PA) | D85: 32 | E85: 2,445 | F85: 76.4
B86: 81 | C86: Utah | D86: 30 | E86: 2,289 | F86: 76.3
B87: 82 | C87: Purdue | D87: 31 | E87: 2,365 | F87: 76.3
B88: - | C88: Arkansas | D88: 31 | E88: 2,365 | F88: 76.3
B89: - | C89: Southern California | D89: 31 | E89: 2,365 | F89: 76.3
B90: 85 | C90: Charleston So. | D90: 32 | E90: 2,439 | F90: 76.2
B91: 86 | C91: UNCW | D91: 33 | E91: 2,513 | F91: 76.2
B92: 87 | C92: Savannah St. | D92: 31 | E92: 2,360 | F92: 76.1
B93: 88 | C93: Northeastern | D93: 33 | E93: 2,511 | F93: 76.1
B94: 89 | C94: New Mexico | D94: 30 | E94: 2,282 | F94: 76.1
B95: 90 | C95: San Francisco | D95: 31 | E95: 2,358 | F95: 76.1
B96: 91 | C96: IUPUI | D96: 32 | E96: 2,434 | F96: 76.1
B97: 92 | C97: VMI | D97: 32 | E97: 2,433 | F97: 76.0
B98: 93 | C98: UNC Greensboro | D98: 34 | E98: 2,585 | F98: 76.0
B99: 94 | C99: Ole Miss | D99: 31 | E99: 2,356 | F99: 76.0
B100: - | C100: UT Martin | D100: 31 | E100: 2,356 | F100: 76.0
B101: 96 | C101: Grand Canyon | D101: 30 | E101: 2,276 | F101: 75.9
B102: 97 | C102: Campbell | D102: 32 | E102: 2,426 | F102: 75.8
B103: 98 | C103: Florida St. | D103: 31 | E103: 2,350 | F103: 75.8
B104: 99 | C104: Drexel | D104: 32 | E104: 2,425 | F104: 75.8
B105: 100 | C105: Pepperdine | D105: 34 | E105: 2,572 | F105: 75.6
B106: 101 | C106: Kansas | D106: 31 | E106: 2,344 | F106: 75.6
B107: 102 | C107: Washington St. | D107: 31 | E107: 2,342 | F107: 75.5
B108: 103 | C108: Youngstown St. | D108: 32 | E108: 2,415 | F108: 75.5
B109: 104 | C109: Drake | D109: 33 | E109: 2,490 | F109: 75.5
B110: 105 | C110: Southern Utah | D110: 29 | E110: 2,188 | F110: 75.4
B111: 106 | C111: Fairleigh Dickinson | D111: 33 | E111: 2,489 | F111: 75.4
B112: 107 | C112: Colorado St. | D112: 31 | E112: 2,336 | F112: 75.4
B113: 108 | C113: Long Beach St. | D113: 32 | E113: 2,410 | F113: 75.3
B114: 109 | C114: North Florida | D114: 33 | E114: 2,485 | F114: 75.3
B115: 110 | C115: Colgate | D115: 33 | E115: 2,484 | F115: 75.3
B116: 111 | C116: Sam Houston St. | D116: 31 | E116: 2,331 | F116: 75.2
B117: 112 | C117: Hartford | D117: 33 | E117: 2,477 | F117: 75.1
B118: 113 | C118: Colorado | D118: 30 | E118: 2,249 | F118: 75.0
B119: 114 | C119: Kent St. | D119: 31 | E119: 2,323 | F119: 74.9
B120: 115 | C120: Temple | D120: 31 | E120: 2,321 | F120: 74.9
B121: - | C121: William & Mary | D121: 31 | E121: 2,321 | F121: 74.9
B122: 117 | C122: Ball St. | D122: 32 | E122: 2,392 | F122: 74.8
B123: 118 | C123: UIC | D123: 32 | E123: 2,391 | F123: 74.7
B124: 119 | C124: Louisville | D124: 31 | E124: 2,315 | F124: 74.7
B125: 120 | C125: Villanova | D125: 31 | E125: 2,314 | F125: 74.6
B126: 121 | C126: Abilene Christian | D126: 31 | E126: 2,312 | F126: 74.6
B127: - | C127: Norfolk St. | D127: 31 | E127: 2,312 | F127: 74.6
B128: 123 | C128: TCU | D128: 31 | E128: 2,311 | F128: 74.5
B129: - | C129: UConn | D129: 31 | E129: 2,311 | F129: 74.5
B130: 125 | C130: Jacksonville | D130: 32 | E130: 2,385 | F130: 74.5
B131: 126 | C131: Virginia Tech | D131: 30 | E131: 2,234 | F131: 74.5
B132: 127 | C132: Col. of Charleston | D132: 33 | E132: 2,453 | F132: 74.3
B133: 128 | C133: Prairie View | D133: 32 | E133: 2,378 | F133: 74.3
B134: 129 | C134: Rice | D134: 31 | E134: 2,302 | F134: 74.3
B135: 130 | C135: Little Rock | D135: 31 | E135: 2,301 | F135: 74.2
B136: 131 | C136: Cleveland St. | D136: 31 | E136: 2,300 | F136: 74.2
B137: 132 | C137: LIU Brooklyn | D137: 32 | E137: 2,373 | F137: 74.2
B138: - | C138: Vermont | D138: 32 | E138: 2,373 | F138: 74.2
B139: 134 | C139: UC Santa Barbara | D139: 30 | E139: 2,221 | F139: 74.0
B140: - | C140: UNLV | D140: 30 | E140: 2,221 | F140: 74.0
B141: 136 | C141: Liberty | D141: 34 | E141: 2,516 | F141: 74.0
B142: - | C142: North Dakota | D142: 30 | E142: 2,220 | F142: 74.0
B143: 138 | C143: Bethune-Cookman | D143: 30 | E143: 2,219 | F143: 74.0
B144: 139 | C144: Radford | D144: 33 | E144: 2,440 | F144: 73.9
B145: 140 | C145: Oregon St. | D145: 30 | E145: 2,217 | F145: 73.9
B146: 141 | C146: Seton Hall | D146: 30 | E146: 2,214 | F146: 73.8
B147: 142 | C147: Quinnipiac | D147: 30 | E147: 2,213 | F147: 73.8
B148: 143 | C148: Arkansas St. | D148: 32 | E148: 2,359 | F148: 73.7
B149: - | C149: Northern Ill. | D149: 32 | E149: 2,359 | F149: 73.7
B150: 145 | C150: Morehead St. | D150: 33 | E150: 2,431 | F150: 73.7
B151: 146 | C151: Brown | D151: 30 | E151: 2,209 | F151: 73.6
B152: - | C152: Lafayette | D152: 30 | E152: 2,209 | F152: 73.6
B153: 148 | C153: Columbia | D153: 28 | E153: 2,059 | F153: 73.5
B154: 149 | C154: Detroit Mercy | D154: 31 | E154: 2,279 | F154: 73.5
B155: 150 | C155: Dayton | D155: 31 | E155: 2,278 | F155: 73.5
B156: 151 | C156: Seattle U | D156: 31 | E156: 2,277 | F156: 73.5
B157: 152 | C157: Northern Ariz. | D157: 30 | E157: 2,202 | F157: 73.4
B158: 153 | C158: Louisiana Tech | D158: 31 | E158: 2,273 | F158: 73.3
B159: 154 | C159: Wright St. | D159: 34 | E159: 2,492 | F159: 73.3
B160: 155 | C160: North Dakota St. | D160: 33 | E160: 2,416 | F160: 73.2
B161: 156 | C161: South Alabama | D161: 32 | E161: 2,341 | F161: 73.2
B162: 157 | C162: Penn | D162: 30 | E162: 2,192 | F162: 73.1
B163: 158 | C163: SIUE | D163: 31 | E163: 2,265 | F163: 73.1
B164: - | C164: Texas Tech | D164: 31 | E164: 2,265 | F164: 73.1
B165: - | C165: Duquesne | D165: 31 | E165: 2,265 | F165: 73.1
B166: 161 | C166: Idaho St. | D166: 29 | E166: 2,118 | F166: 73.0
B167: 162 | C167: Texas St. | D167: 31 | E167: 2,264 | F167: 73.0
B168: 163 | C168: South Carolina | D168: 31 | E168: 2,263 | F168: 73.0
B169: 164 | C169: Illinois | D169: 31 | E169: 2,262 | F169: 73.0
B170: - | C170: West Virginia | D170: 31 | E170: 2,262 | F170: 73.0
B171: 166 | C171: Saint Mary's (CA) | D171: 33 | E171: 2,406 | F171: 72.9
B172: 167 | C172: Nicholls St. | D172: 31 | E172: 2,260 | F172: 72.9
B173: 168 | C173: Loyola Maryland | D173: 32 | E173: 2,332 | F173: 72.9
B174: 169 | C174: N.C. Central | D174: 29 | E174: 2,113 | F174: 72.9
B175: 170 | C175: Southern Miss. | D175: 30 | E175: 2,185 | F175: 72.8
B176: 171 | C176: Stanford | D176: 30 | E176: 2,183 | F176: 72.8
B177: 172 | C177: Tennessee St. | D177: 30 | E177: 2,182 | F177: 72.7
B178: 173 | C178: UCF | D178: 30 | E178: 2,181 | F178: 72.7
B179: 174 | C179: San Diego St. | D179: 31 | E179: 2,252 | F179: 72.6
B180: - | C180: Alabama | D180: 31 | E180: 2,252 | F180: 72.6
B181: 176 | C181: Troy | D181: 30 | E181: 2,179 | F181: 72.6
B182: 177 | C182: Cal St. Fullerton | D182: 30 | E182: 2,176 | F182: 72.5
B183: 178 | C183: UC Irvine | D183: 32 | E183: 2,321 | F183: 72.5
B184: 179 | C184: Mercer | D184: 31 | E184: 2,248 | F184: 72.5
B185: 180 | C185: Hawaii | D185: 30 | E185: 2,175 | F185: 72.5
B186: 181 | C186: Niagara | D186: 32 | E186: 2,318 | F186: 72.4
B187: 182 | C187: Central Ark. | D187: 31 | E187: 2,245 | F187: 72.4
B188: 183 | C188: Xavier | D188: 31 | E188: 2,242 | F188: 72.3
B189: 184 | C189: San Diego | D189: 35 | E189: 2,531 | F189: 72.3
B190: 185 | C190: Oral Roberts | D190: 32 | E190: 2,314 | F190: 72.3
B191: 186 | C191: Miami (FL) | D191: 31 | E191: 2,241 | F191: 72.3
B192: - | C192: Butler | D192: 31 | E192: 2,241 | F192: 72.3
B193: 188 | C193: Boston U. | D193: 33 | E193: 2,385 | F193: 72.3
B194: 189 | C194: South Fla. | D194: 31 | E194: 2,239 | F194: 72.2
B195: 190 | C195: Virginia | D195: 30 | E195: 2,164 | F195: 72.1
B196: 191 | C196: Western Ky. | D196: 31 | E196: 2,236 | F196: 72.1
B197: 192 | C197: Nebraska | D197: 31 | E197: 2,235 | F197: 72.1
B198: 193 | C198: American | D198: 30 | E198: 2,161 | F198: 72.0
B199: 194 | C199: Western Caro. | D199: 32 | E199: 2,304 | F199: 72.0
B200: - | C200: Dartmouth | D200: 30 | E200: 2,160 | F200: 72.0
B201: 196 | C201: Eastern Wash. | D201: 31 | E201: 2,231 | F201: 72.0
B202: - | C202: Tulsa | D202: 31 | E202: 2,231 | F202: 72.0
B203: 198 | C203: Morgan St. | D203: 30 | E203: 2,159 | F203: 72.0
... 153 more rows

Sheet Anotación de defensa
B3: Partidos hasta el 13 de marzo de 2019
B5: Clasificación | C5: Equipo | D5: Part. | E5: PTS RIVAL | F5: PPP RIVAL
B6: 1 | C6: Virginia | D6: 30 | E6: 1,637 | F6: 54.6
B7: 2 | C7: Texas Tech | D7: 31 | E7: 1,818 | F7: 58.6
B8: 3 | C8: Michigan | D8: 31 | E8: 1,824 | F8: 58.8
B9: 4 | C9: Kansas St. | D9: 31 | E9: 1,831 | F9: 59.1
B10: 5 | C10: Loyola Chicago | D10: 33 | E10: 1,996 | F10: 60.5
B11: 6 | C11: Liberty | D11: 34 | E11: 2,066 | F11: 60.8
B12: 7 | C12: VCU | D12: 31 | E12: 1,896 | F12: 61.2
B13: 8 | C13: Old Dominion | D13: 31 | E13: 1,898 | F13: 61.2
B14: - | C14: Wisconsin | D14: 31 | E14: 1,898 | F14: 61.2
B15: 10 | C15: Houston | D15: 31 | E15: 1,910 | F15: 61.6
B16: 11 | C16: Cincinnati | D16: 31 | E16: 1,921 | F16: 62.0
B17: 12 | C17: Virginia Tech | D17: 31 | E17: 1,922 | F17: 62.0
B18: 13 | C18: North Texas | D18: 32 | E18: 2,010 | F18: 62.8
B19: 14 | C19: Manhattan | D19: 32 | E19: 2,011 | F19: 62.8
B20: 15 | C20: Loyola Marymount | D20: 31 | E20: 1,951 | F20: 62.9
B21: 16 | C21: Vermont | D21: 32 | E21: 2,018 | F21: 63.1
B22: 17 | C22: Abilene Christian | D22: 31 | E22: 1,956 | F22: 63.1
B23: 18 | C23: Akron | D23: 32 | E23: 2,025 | F23: 63.3
B24: 19 | C24: Oregon | D24: 32 | E24: 2,026 | F24: 63.3
B25: 20 | C25: Florida | D25: 31 | E25: 1,976 | F25: 63.7
B26: 21 | C26: UC Irvine | D26: 32 | E26: 2,041 | F26: 63.8
B27: 22 | C27: UCF | D27: 30 | E27: 1,914 | F27: 63.8
B28: 23 | C28: Clemson | D28: 32 | E28: 2,042 | F28: 63.8
B29: 24 | C29: St. Bonaventure | D29: 31 | E29: 1,982 | F29: 63.9
B30: 25 | C30: UMBC | D30: 33 | E30: 2,111 | F30: 64.0
B31: 26 | C31: Washington | D31: 31 | E31: 1,985 | F31: 64.0
B32: 27 | C32: Southern Miss. | D32: 30 | E32: 1,925 | F32: 64.2
B33: 28 | C33: Texas St. | D33: 31 | E33: 1,991 | F33: 64.2
B34: 29 | C34: Saint Mary's (CA) | D34: 33 | E34: 2,124 | F34: 64.4
B35: 30 | C35: New Mexico St. | D35: 31 | E35: 2,003 | F35: 64.6
B36: 31 | C36: Saint Louis | D36: 31 | E36: 2,011 | F36: 64.9
B37: 32 | C37: Davidson | D37: 31 | E37: 2,013 | F37: 64.9
B38: - | C38: Maryland | D38: 31 | E38: 2,013 | F38: 64.9
B39: 34 | C39: Bradley | D39: 34 | E39: 2,209 | F39: 65.0
B40: 35 | C40: Gonzaga | D40: 33 | E40: 2,147 | F40: 65.1
B41: 36 | C41: Northwestern | D41: 32 | E41: 2,082 | F41: 65.1
B42: 37 | C42: Syracuse | D42: 32 | E42: 2,084 | F42: 65.1
B43: 38 | C43: Kentucky | D43: 31 | E43: 2,022 | F43: 65.2
B44: 39 | C44: Ohio St. | D44: 31 | E44: 2,033 | F44: 65.6
B45: 40 | C45: UNI | D45: 34 | E45: 2,230 | F45: 65.6
B46: 41 | C46: Wofford | D46: 33 | E46: 2,165 | F46: 65.6
B47: 42 | C47: Stony Brook | D47: 32 | E47: 2,106 | F47: 65.8
B48: - | C48: Furman | D48: 32 | E48: 2,106 | F48: 65.8
B49: 44 | C49: Dayton | D49: 31 | E49: 2,041 | F49: 65.8
B50: 45 | C50: Jackson St. | D50: 32 | E50: 2,107 | F50: 65.8
B51: 46 | C51: Michigan St. | D51: 31 | E51: 2,043 | F51: 65.9
B52: 47 | C52: Siena | D52: 33 | E52: 2,178 | F52: 66.0
B53: 48 | C53: UC Santa Barbara | D53: 30 | E53: 1,982 | F53: 66.1
B54: 49 | C54: Valparaiso | D54: 33 | E54: 2,187 | F54: 66.3
B55: 50 | C55: Florida A&M | D55: 31 | E55: 2,057 | F55: 66.4
B56: 51 | C56: A&M-Corpus Christi | D56: 32 | E56: 2,124 | F56: 66.4
B57: 52 | C57: Purdue | D57: 31 | E57: 2,063 | F57: 66.5
B58: 53 | C58: Georgia Tech | D58: 32 | E58: 2,130 | F58: 66.6
B59: - | C59: Nebraska | D59: 32 | E59: 2,130 | F59: 66.6
B60: 55 | C60: Nevada | D60: 31 | E60: 2,064 | F60: 66.6
B61: - | C61: South Fla. | D61: 31 | E61: 2,064 | F61: 66.6
B62: 57 | C62: Baylor | D62: 31 | E62: 2,067 | F62: 66.7
B63: 58 | C63: Utah St. | D63: 31 | E63: 2,071 | F63: 66.8
B64: 59 | C64: Fordham | D64: 32 | E64: 2,141 | F64: 66.9
B65: 60 | C65: Southern Ill. | D65: 32 | E65: 2,144 | F65: 67.0
B66: 61 | C66: Texas | D66: 31 | E66: 2,079 | F66: 67.1
B67: 62 | C67: Villanova | D67: 31 | E67: 2,080 | F67: 67.1
B68: 63 | C68: N.C. Central | D68: 29 | E68: 1,947 | F68: 67.1
B69: 64 | C69: UAB | D69: 32 | E69: 2,150 | F69: 67.2
B70: 65 | C70: UNC Greensboro | D70: 34 | E70: 2,288 | F70: 67.3
B71: 66 | C71: Florida St. | D71: 31 | E71: 2,087 | F71: 67.3
B72: - | C72: Missouri | D72: 31 | E72: 2,087 | F72: 67.3
B73: 68 | C73: Louisville | D73: 32 | E73: 2,155 | F73: 67.3
B74: 69 | C74: Wright St. | D74: 34 | E74: 2,290 | F74: 67.4
B75: 70 | C75: Duke | D75: 31 | E75: 2,089 | F75: 67.4
B76: 71 | C76: Missouri St. | D76: 32 | E76: 2,157 | F76: 67.4
B77: 72 | C77: Indiana | D77: 31 | E77: 2,090 | F77: 67.4
B78: 73 | C78: Southeastern La. | D78: 31 | E78: 2,094 | F78: 67.5
B79: 74 | C79: Fresno St. | D79: 30 | E79: 2,027 | F79: 67.6
B80: 75 | C80: Tennessee | D80: 31 | E80: 2,096 | F80: 67.6
B81: 76 | C81: Toledo | D81: 31 | E81: 2,098 | F81: 67.7
B82: 77 | C82: Murray St. | D82: 31 | E82: 2,101 | F82: 67.8
B83: - | C83: San Francisco | D83: 31 | E83: 2,101 | F83: 67.8
B84: 79 | C84: Robert Morris | D84: 33 | E84: 2,237 | F84: 67.8
B85: 80 | C85: NJIT | D85: 33 | E85: 2,238 | F85: 67.8
B86: 81 | C86: Colorado | D86: 31 | E86: 2,104 | F86: 67.9
B87: 82 | C87: High Point | D87: 31 | E87: 2,105 | F87: 67.9
B88: 83 | C88: Grand Canyon | D88: 30 | E88: 2,038 | F88: 67.9
B89: 84 | C89: Fla. Atlantic | D89: 32 | E89: 2,175 | F89: 68.0
B90: 85 | C90: San Diego | D90: 35 | E90: 2,381 | F90: 68.0
B91: 86 | C91: Louisiana Tech | D91: 32 | E91: 2,178 | F91: 68.1
B92: 87 | C92: Radford | D92: 33 | E92: 2,247 | F92: 68.1
B93: 88 | C93: Rhode Island | D93: 30 | E93: 2,044 | F93: 68.1
B94: - | C94: Wagner | D94: 30 | E94: 2,044 | F94: 68.1
B95: 90 | C95: Grambling | D95: 32 | E95: 2,181 | F95: 68.2
B96: 91 | C96: Brown | D96: 30 | E96: 2,045 | F96: 68.2
B97: 92 | C97: Oklahoma | D97: 32 | E97: 2,183 | F97: 68.2
B98: 93 | C98: San Diego St. | D98: 31 | E98: 2,116 | F98: 68.3
B99: 94 | C99: Boise St. | D99: 32 | E99: 2,186 | F99: 68.3
B100: 95 | C100: Penn St. | D100: 31 | E100: 2,119 | F100: 68.4
B101: 96 | C101: Penn | D101: 30 | E101: 2,051 | F101: 68.4
B102: 97 | C102: UC Davis | D102: 30 | E102: 2,053 | F102: 68.4
B103: 98 | C103: Auburn | D103: 31 | E103: 2,123 | F103: 68.5
B104: 99 | C104: Seattle U | D104: 31 | E104: 2,126 | F104: 68.6
B105: 100 | C105: Arizona | D105: 31 | E105: 2,127 | F105: 68.6
B106: 101 | C106: New Hampshire | D106: 29 | E106: 1,990 | F106: 68.6
B107: 102 | C107: Saint Peter's | D107: 32 | E107: 2,196 | F107: 68.6
B108: 103 | C108: Col. of Charleston | D108: 33 | E108: 2,265 | F108: 68.6
B109: 104 | C109: Charlotte | D109: 29 | E109: 1,992 | F109: 68.7
B110: 105 | C110: Pittsburgh | D110: 33 | E110: 2,267 | F110: 68.7
B111: 106 | C111: Minnesota | D111: 31 | E111: 2,131 | F111: 68.7
B112: 107 | C112: ETSU | D112: 33 | E112: 2,269 | F112: 68.8
B113: 108 | C113: Northern Ky. | D113: 34 | E113: 2,338 | F113: 68.8
B114: 109 | C114: Hawaii | D114: 30 | E114: 2,063 | F114: 68.8
B115: 110 | C115: Iowa St. | D115: 31 | E115: 2,132 | F115: 68.8
B116: - | C116: Rutgers | D116: 31 | E116: 2,132 | F116: 68.8
B117: 112 | C117: Notre Dame | D117: 33 | E117: 2,276 | F117: 69.0
B118: 113 | C118: UTEP | D118: 29 | E118: 2,001 | F118: 69.0
B119: - | C119: American | D119: 30 | E119: 2,070 | F119: 69.0
B120: - | C120: Montana | D120: 31 | E120: 2,139 | F120: 69.0
B121: 116 | C121: Lipscomb | D121: 32 | E121: 2,209 | F121: 69.0
B122: 117 | C122: New Orleans | D122: 29 | E122: 2,005 | F122: 69.1
B123: 118 | C123: Eastern Mich. | D123: 32 | E123: 2,213 | F123: 69.2
B124: 119 | C124: Jacksonville St. | D124: 33 | E124: 2,283 | F124: 69.2
B125: 120 | C125: Princeton | D125: 27 | E125: 1,868 | F125: 69.2
B126: 121 | C126: Marquette | D126: 31 | E126: 2,145 | F126: 69.2
B127: 122 | C127: Sacramento St. | D127: 30 | E127: 2,076 | F127: 69.2
B128: 123 | C128: Northern Colo. | D128: 31 | E128: 2,146 | F128: 69.2
B129: - | C129: Sam Houston St. | D129: 31 | E129: 2,146 | F129: 69.2
B130: 125 | C130: UC Riverside | D130: 32 | E130: 2,216 | F130: 69.3
B131: - | C131: Albany (NY) | D131: 32 | E131: 2,216 | F131: 69.3
B132: 127 | C132: Marist | D132: 31 | E132: 2,147 | F132: 69.3
B133: 128 | C133: Providence | D133: 32 | E133: 2,217 | F133: 69.3
B134: 129 | C134: Harvard | D134: 27 | E134: 1,873 | F134: 69.4
B135: 130 | C135: Wichita St. | D135: 30 | E135: 2,086 | F135: 69.5
B136: 131 | C136: Holy Cross | D136: 33 | E136: 2,296 | F136: 69.6
B137: 132 | C137: Norfolk St. | D137: 32 | E137: 2,229 | F137: 69.7
B138: 133 | C138: Charleston So. | D138: 32 | E138: 2,230 | F138: 69.7
B139: 134 | C139: Oregon St. | D139: 30 | E139: 2,092 | F139: 69.7
B140: - | C140: N.C. A&T | D140: 30 | E140: 2,092 | F140: 69.7
B141: 136 | C141: Miami (OH) | D141: 32 | E141: 2,233 | F141: 69.8
B142: 137 | C142: George Mason | D142: 31 | E142: 2,164 | F142: 69.8
B143: 138 | C143: Fairfield | D143: 31 | E143: 2,167 | F143: 69.9
B144: 139 | C144: UTRGV | D144: 33 | E144: 2,307 | F144: 69.9
B145: - | C145: Drake | D145: 33 | E145: 2,307 | F145: 69.9
B146: 141 | C146: St. Francis Brooklyn | D146: 32 | E146: 2,239 | F146: 70.0
B147: 142 | C147: Colgate | D147: 34 | E147: 2,381 | F147: 70.0
B148: 143 | C148: Longwood | D148: 32 | E148: 2,241 | F148: 70.0
B149: - | C149: Pacific | D149: 32 | E149: 2,241 | F149: 70.0
B150: 145 | C150: Santa Clara | D150: 31 | E150: 2,172 | F150: 70.1
B151: - | C151: UT Arlington | D151: 31 | E151: 2,172 | F151: 70.1
B152: 147 | C152: SMU | D152: 30 | E152: 2,102 | F152: 70.1
B153: 148 | C153: NC State | D153: 32 | E153: 2,243 | F153: 70.1
B154: 149 | C154: Illinois St. | D154: 33 | E154: 2,314 | F154: 70.1
B155: 150 | C155: Campbell | D155: 32 | E155: 2,244 | F155: 70.1
B156: 151 | C156: Kansas | D156: 31 | E156: 2,174 | F156: 70.1
B157: 152 | C157: Lamar University | D157: 32 | E157: 2,246 | F157: 70.2
B158: 153 | C158: TCU | D158: 32 | E158: 2,247 | F158: 70.2
B159: 154 | C159: Mississippi St. | D159: 31 | E159: 2,177 | F159: 70.2
B160: 155 | C160: Northeastern | D160: 33 | E160: 2,319 | F160: 70.3
B161: 156 | C161: Utah Valley | D161: 31 | E161: 2,182 | F161: 70.4
B162: 157 | C162: Western Ky. | D162: 31 | E162: 2,183 | F162: 70.4
B163: 158 | C163: Cornell | D163: 30 | E163: 2,113 | F163: 70.4
B164: 159 | C164: Gardner-Webb | D164: 34 | E164: 2,397 | F164: 70.5
B165: 160 | C165: Butler | D165: 32 | E165: 2,257 | F165: 70.5
B166: 161 | C166: Dartmouth | D166: 30 | E166: 2,116 | F166: 70.5
B167: 162 | C167: Ole Miss | D167: 31 | E167: 2,190 | F167: 70.6
B168: 163 | C168: Richmond | D168: 32 | E168: 2,262 | F168: 70.7
B169: 164 | C169: Ball St. | D169: 32 | E169: 2,263 | F169: 70.7
B170: 165 | C170: CSU Bakersfield | D170: 30 | E170: 2,122 | F170: 70.7
B171: 166 | C171: Alcorn | D171: 31 | E171: 2,194 | F171: 70.8
B172: 167 | C172: Northern Ill. | D172: 32 | E172: 2,266 | F172: 70.8
B173: 168 | C173: Tulsa | D173: 31 | E173: 2,197 | F173: 70.9
B174: - | C174: UConn | D174: 31 | E174: 2,197 | F174: 70.9
B175: - | C175: Temple | D175: 31 | E175: 2,197 | F175: 70.9
B176: 171 | C176: Cal St. Fullerton | D176: 30 | E176: 2,127 | F176: 70.9
B177: 172 | C177: Buffalo | D177: 31 | E177: 2,198 | F177: 70.9
B178: - | C178: Xavier | D178: 31 | E178: 2,198 | F178: 70.9
B179: 174 | C179: Ark.-Pine Bluff | D179: 32 | E179: 2,269 | F179: 70.9
B180: 175 | C180: Maine | D180: 32 | E180: 2,271 | F180: 71.0
B181: 176 | C181: Miami (FL) | D181: 32 | E181: 2,275 | F181: 71.1
B182: 177 | C182: Monmouth | D182: 35 | E182: 2,490 | F182: 71.1
B183: 178 | C183: South Dakota | D183: 30 | E183: 2,136 | F183: 71.2
B184: 179 | C184: Fairleigh Dickinson | D184: 33 | E184: 2,352 | F184: 71.3
B185: 180 | C185: Alabama A&M | D185: 32 | E185: 2,285 | F185: 71.4
B186: 181 | C186: Oklahoma St. | D186: 32 | E186: 2,288 | F186: 71.5
B187: 182 | C187: Texas A&M | D187: 31 | E187: 2,217 | F187: 71.5
B188: 183 | C188: Air Force | D188: 31 | E188: 2,218 | F188: 71.5
B189: - | C189: Indiana St. | D189: 31 | E189: 2,218 | F189: 71.5
B190: 185 | C190: Seton Hall | D190: 30 | E190: 2,147 | F190: 71.6
B191: 186 | C191: UMES | D191: 32 | E191: 2,291 | F191: 71.6
B192: 187 | C192: Duquesne | D192: 31 | E192: 2,222 | F192: 71.7
B193: 188 | C193: Towson | D193: 32 | E193: 2,294 | F193: 71.7
B194: 189 | C194: Alabama | D194: 31 | E194: 2,223 | F194: 71.7
B195: 190 | C195: George Washington | D195: 32 | E195: 2,295 | F195: 71.7
B196: 191 | C196: Alabama St. | D196: 30 | E196: 2,155 | F196: 71.8
B197: 192 | C197: Stanford | D197: 31 | E197: 2,227 | F197: 71.8
B198: 193 | C198: Binghamton | D198: 33 | E198: 2,376 | F198: 72.0
B199: 194 | C199: Army West Point | D199: 32 | E199: 2,305 | F199: 72.0
B200: 195 | C200: SFA | D200: 30 | E200: 2,161 | F200: 72.0
B201: 196 | C201: Quinnipiac | D201: 30 | E201: 2,163 | F201: 72.1
B202: 197 | C202: Delaware | D202: 33 | E202: 2,380 | F202: 72.1
B203: 198 | C203: Prairie View | D203: 32 | E203: 2,308 | F203: 72.1
... 153 more rows

Sheet % de ganados y perdidos
B3: Partidos hasta el 13 de marzo de 2019
B5: Clasificación | C5: Equipo | D5: G | E5: P | F5: PTAJE
B6: 1 | C6: Houston | D6: 29 | E6: 2 | F6: 93.5
B7: 2 | C7: Virginia | D7: 28 | E7: 2 | F7: 93.3
B8: 3 | C8: Gonzaga | D8: 30 | E8: 3 | F8: 90.9
B9: 4 | C9: Buffalo | D9: 28 | E9: 3 | F9: 90.3
B10: - | C10: Nevada | D10: 28 | E10: 3 | F10: 90.3
B11: 6 | C11: Wofford | D11: 29 | E11: 4 | F11: 87.9
B12: 7 | C12: Murray St. | D12: 27 | E12: 4 | F12: 87.1
B13: - | C13: New Mexico St. | D13: 27 | E13: 4 | F13: 87.1
B14: - | C14: Tennessee | D14: 27 | E14: 4 | F14: 87.1
B15: 10 | C15: UC Irvine | D15: 27 | E15: 5 | F15: 84.4
B16: 11 | C16: Belmont | D16: 26 | E16: 5 | F16: 83.9
B17: - | C17: Texas Tech | D17: 26 | E17: 5 | F17: 83.9
B18: - | C18: North Carolina | D18: 26 | E18: 5 | F18: 83.9
B19: - | C19: Kentucky | D19: 26 | E19: 5 | F19: 83.9
B20: - | C20: Duke | D20: 26 | E20: 5 | F20: 83.9
B21: - | C21: LSU | D21: 26 | E21: 5 | F21: 83.9
B22: - | C22: Michigan | D22: 26 | E22: 5 | F22: 83.9
B23: 18 | C23: Liberty | D23: 28 | E23: 6 | F23: 82.4
B24: - | C24: UNC Greensboro | D24: 28 | E24: 6 | F24: 82.4
B25: 20 | C25: Vermont | D25: 26 | E25: 6 | F25: 81.3
B26: 21 | C26: Utah St. | D26: 25 | E26: 6 | F26: 80.6
B27: - | C27: Toledo | D27: 25 | E27: 6 | F27: 80.6
B28: - | C28: Michigan St. | D28: 25 | E28: 6 | F28: 80.6
B29: - | C29: Abilene Christian | D29: 25 | E29: 6 | F29: 80.6
B30: - | C30: Florida St. | D30: 25 | E30: 6 | F30: 80.6
B31: - | C31: Cincinnati | D31: 25 | E31: 6 | F31: 80.6
B32: - | C32: VCU | D32: 25 | E32: 6 | F32: 80.6
B33: 28 | C33: Hofstra | D33: 27 | E33: 7 | F33: 79.4
B34: 29 | C34: Furman | D34: 25 | E34: 7 | F34: 78.1
B35: - | C35: Lipscomb | D35: 25 | E35: 7 | F35: 78.1
B36: 31 | C36: Virginia Tech | D36: 24 | E36: 7 | F36: 77.4
B37: - | C37: Kansas St. | D37: 24 | E37: 7 | F37: 77.4
B38: - | C38: Washington | D38: 24 | E38: 7 | F38: 77.4
B39: 34 | C39: UCF | D39: 23 | E39: 7 | F39: 76.7
B40: 35 | C40: Northern Ky. | D40: 26 | E40: 8 | F40: 76.5
B41: 36 | C41: South Dakota St. | D41: 24 | E41: 8 | F41: 75.0
B42: - | C42: Stony Brook | D42: 24 | E42: 8 | F42: 75.0
B43: 38 | C43: Utah Valley | D43: 23 | E43: 8 | F43: 74.2
B44: - | C44: Temple | D44: 23 | E44: 8 | F44: 74.2
B45: - | C45: Texas St. | D45: 23 | E45: 8 | F45: 74.2
B46: - | C46: Purdue | D46: 23 | E46: 8 | F46: 74.2
B47: - | C47: Kansas | D47: 23 | E47: 8 | F47: 74.2
B48: - | C48: Montana | D48: 23 | E48: 8 | F48: 74.2
B49: - | C49: Marquette | D49: 23 | E49: 8 | F49: 74.2
B50: - | C50: Old Dominion | D50: 23 | E50: 8 | F50: 74.2
B51: - | C51: Davidson | D51: 23 | E51: 8 | F51: 74.2
B52: 47 | C52: Yale | D52: 20 | E52: 7 | F52: 74.1
B53: 48 | C53: Fresno St. | D53: 22 | E53: 8 | F53: 73.3
B54: 49 | C54: ETSU | D54: 24 | E54: 9 | F54: 72.7
B55: - | C55: Col. of Charleston | D55: 24 | E55: 9 | F55: 72.7
B56: - | C56: Jacksonville St. | D56: 24 | E56: 9 | F56: 72.7
B57: - | C57: Drake | D57: 24 | E57: 9 | F57: 72.7
B58: 53 | C58: Mississippi St. | D58: 22 | E58: 9 | F58: 71.0
B59: - | C59: Maryland | D59: 22 | E59: 9 | F59: 71.0
B60: - | C60: Wisconsin | D60: 22 | E60: 9 | F60: 71.0
B61: - | C61: Villanova | D61: 22 | E61: 9 | F61: 71.0
B62: - | C62: Kent St. | D62: 22 | E62: 9 | F62: 71.0
B63: - | C63: Auburn | D63: 22 | E63: 9 | F63: 71.0
B64: - | C64: Georgia St. | D64: 22 | E64: 9 | F64: 71.0
B65: 60 | C65: Colgate | D65: 24 | E65: 10 | F65: 70.6
B66: 61 | C66: UC Santa Barbara | D66: 21 | E66: 9 | F66: 70.0
B67: - | C67: Arizona St. | D67: 21 | E67: 9 | F67: 70.0
B68: 63 | C68: Northeastern | D68: 23 | E68: 10 | F68: 69.7
B69: 64 | C69: Central Mich. | D69: 22 | E69: 10 | F69: 68.8
B70: - | C70: NC State | D70: 22 | E70: 10 | F70: 68.8
B71: 66 | C71: San Francisco | D71: 21 | E71: 10 | F71: 67.7
B72: - | C72: Sam Houston St. | D72: 21 | E72: 10 | F72: 67.7
B73: - | C73: Northern Colo. | D73: 21 | E73: 10 | F73: 67.7
B74: - | C74: Dayton | D74: 21 | E74: 10 | F74: 67.7
B75: - | C75: Iowa | D75: 21 | E75: 10 | F75: 67.7
B76: 71 | C76: Gardner-Webb | D76: 23 | E76: 11 | F76: 67.6
B77: 72 | C77: Saint Mary's (CA) | D77: 22 | E77: 11 | F77: 66.7
B78: - | C78: Austin Peay | D78: 22 | E78: 11 | F78: 66.7
B79: - | C79: Radford | D79: 22 | E79: 11 | F79: 66.7
B80: 75 | C80: St. John's (NY) | D80: 21 | E80: 11 | F80: 65.6
B81: - | C81: Omaha | D81: 21 | E81: 11 | F81: 65.6
B82: - | C82: North Texas | D82: 21 | E82: 11 | F82: 65.6
B83: 78 | C83: Ole Miss | D83: 20 | E83: 11 | F83: 64.5
B84: - | C84: Loyola Marymount | D84: 20 | E84: 11 | F84: 64.5
B85: - | C85: Lehigh | D85: 20 | E85: 11 | F85: 64.5
B86: - | C86: Bowling Green | D86: 20 | E86: 11 | F86: 64.5
B87: - | C87: Ga. Southern | D87: 20 | E87: 11 | F87: 64.5
B88: - | C88: Colorado | D88: 20 | E88: 11 | F88: 64.5
B89: - | C89: Iowa St. | D89: 20 | E89: 11 | F89: 64.5
B90: 85 | C90: NJIT | D90: 21 | E90: 12 | F90: 63.6
B91: - | C91: UMBC | D91: 21 | E91: 12 | F91: 63.6
B92: - | C92: Bucknell | D92: 21 | E92: 12 | F92: 63.6
B93: 88 | C93: Brown | D93: 19 | E93: 11 | F93: 63.3
B94: - | C94: Penn | D94: 19 | E94: 11 | F94: 63.3
B95: - | C95: Southern Miss. | D95: 19 | E95: 11 | F95: 63.3
B96: 91 | C96: Harvard | D96: 17 | E96: 10 | F96: 63.0
B97: 92 | C97: Texas Southern | D97: 20 | E97: 12 | F97: 62.5
B98: - | C98: Syracuse | D98: 20 | E98: 12 | F98: 62.5
B99: - | C99: Prairie View | D99: 20 | E99: 12 | F99: 62.5
B100: - | C100: Oregon | D100: 20 | E100: 12 | F100: 62.5
B101: - | C101: Campbell | D101: 20 | E101: 12 | F101: 62.5
B102: - | C102: Louisiana Tech | D102: 20 | E102: 12 | F102: 62.5
B103: - | C103: Louisville | D103: 20 | E103: 12 | F103: 62.5
B104: - | C104: Lamar University | D104: 20 | E104: 12 | F104: 62.5
B105: - | C105: TCU | D105: 20 | E105: 12 | F105: 62.5
B106: - | C106: Norfolk St. | D106: 20 | E106: 12 | F106: 62.5
B107: 102 | C107: Wright St. | D107: 21 | E107: 13 | F107: 61.8
B108: 103 | C108: South Fla. | D108: 19 | E108: 12 | F108: 61.3
B109: - | C109: San Diego St. | D109: 19 | E109: 12 | F109: 61.3
B110: - | C110: Saint Louis | D110: 19 | E110: 12 | F110: 61.3
B111: - | C111: Baylor | D111: 19 | E111: 12 | F111: 61.3
B112: - | C112: Memphis | D112: 19 | E112: 12 | F112: 61.3
B113: - | C113: Duquesne | D113: 19 | E113: 12 | F113: 61.3
B114: - | C114: Georgetown | D114: 19 | E114: 12 | F114: 61.3
B115: - | C115: Louisiana | D115: 19 | E115: 12 | F115: 61.3
B116: - | C116: Minnesota | D116: 19 | E116: 12 | F116: 61.3
B117: 112 | C117: Loyola Chicago | D117: 20 | E117: 13 | F117: 60.6
B118: - | C118: Fairleigh Dickinson | D118: 20 | E118: 13 | F118: 60.6
B119: 114 | C119: San Diego | D119: 21 | E119: 14 | F119: 60.0
B120: - | C120: Oregon St. | D120: 18 | E120: 12 | F120: 60.0
B121: - | C121: N.C. A&T | D121: 18 | E121: 12 | F121: 60.0
B122: - | C122: Grand Canyon | D122: 18 | E122: 12 | F122: 60.0
B123: - | C123: Winthrop | D123: 18 | E123: 12 | F123: 60.0
B124: - | C124: Hawaii | D124: 18 | E124: 12 | F124: 60.0
B125: - | C125: Seton Hall | D125: 18 | E125: 12 | F125: 60.0
B126: 121 | C126: FIU | D126: 19 | E126: 13 | F126: 59.4
B127: - | C127: Oklahoma | D127: 19 | E127: 13 | F127: 59.4
B128: - | C128: Marshall | D128: 19 | E128: 13 | F128: 59.4
B129: - | C129: UAB | D129: 19 | E129: 13 | F129: 59.4
B130: - | C130: Clemson | D130: 19 | E130: 13 | F130: 59.4
B131: - | C131: BYU | D131: 19 | E131: 13 | F131: 59.4
B132: 127 | C132: Princeton | D132: 16 | E132: 11 | F132: 59.3
B133: 128 | C133: Bradley | D133: 20 | E133: 14 | F133: 58.8
B134: 129 | C134: New Orleans | D134: 17 | E134: 12 | F134: 58.6
B135: 130 | C135: Ohio St. | D135: 18 | E135: 13 | F135: 58.1
B136: - | C136: Seattle U | D136: 18 | E136: 13 | F136: 58.1
B137: - | C137: Western Ky. | D137: 18 | E137: 13 | F137: 58.1
B138: - | C138: Creighton | D138: 18 | E138: 13 | F138: 58.1
B139: - | C139: Tulsa | D139: 18 | E139: 13 | F139: 58.1
B140: 135 | C140: UNLV | D140: 17 | E140: 13 | F140: 56.7
B141: - | C141: Utah | D141: 17 | E141: 13 | F141: 56.7
B142: - | C142: Wichita St. | D142: 17 | E142: 13 | F142: 56.7
B143: 138 | C143: Saint Francis (PA) | D143: 18 | E143: 14 | F143: 56.3
B144: - | C144: Providence | D144: 18 | E144: 14 | F144: 56.3
B145: 140 | C145: UTSA | D145: 17 | E145: 14 | F145: 54.8
B146: - | C146: Indiana | D146: 17 | E146: 14 | F146: 54.8
B147: - | C147: Arizona | D147: 17 | E147: 14 | F147: 54.8
B148: - | C148: Arkansas | D148: 17 | E148: 14 | F148: 54.8
B149: - | C149: Florida | D149: 17 | E149: 14 | F149: 54.8
B150: - | C150: George Mason | D150: 17 | E150: 14 | F150: 54.8
B151: - | C151: La.-Monroe | D151: 17 | E151: 14 | F151: 54.8
B152: - | C152: Xavier | D152: 17 | E152: 14 | F152: 54.8
B153: - | C153: Weber St. | D153: 17 | E153: 14 | F153: 54.8
B154: - | C154: Alabama | D154: 17 | E154: 14 | F154: 54.8
B155: 150 | C155: Hartford | D155: 18 | E155: 15 | F155: 54.5
B156: - | C156: Purdue Fort Wayne | D156: 18 | E156: 15 | F156: 54.5
B157: - | C157: North Dakota St. | D157: 18 | E157: 15 | F157: 54.5
B158: - | C158: Presbyterian | D158: 18 | E158: 15 | F158: 54.5
B159: - | C159: UTRGV | D159: 18 | E159: 15 | F159: 54.5
B160: 155 | C160: CSU Bakersfield | D160: 16 | E160: 14 | F160: 53.3
B161: - | C161: Rhode Island | D161: 16 | E161: 14 | F161: 53.3
B162: - | C162: Quinnipiac | D162: 16 | E162: 14 | F162: 53.3
B163: 158 | C163: Iona | D163: 17 | E163: 15 | F163: 53.1
B164: - | C164: Grambling | D164: 17 | E164: 15 | F164: 53.1
B165: - | C165: Fla. Atlantic | D165: 17 | E165: 15 | F165: 53.1
B166: - | C166: Charleston So. | D166: 17 | E166: 15 | F166: 53.1
B167: - | C167: Akron | D167: 17 | E167: 15 | F167: 53.1
B168: - | C168: St. Francis Brooklyn | D168: 17 | E168: 15 | F168: 53.1
B169: - | C169: Southern Ill. | D169: 17 | E169: 15 | F169: 53.1
B170: - | C170: UCLA | D170: 17 | E170: 15 | F170: 53.1
B171: - | C171: Nebraska | D171: 17 | E171: 15 | F171: 53.1
B172: 167 | C172: N.C. Central | D172: 15 | E172: 14 | F172: 51.7
B173: 168 | C173: High Point | D173: 16 | E173: 15 | F173: 51.6
B174: - | C174: Southeastern La. | D174: 16 | E174: 15 | F174: 51.6
B175: - | C175: South Carolina | D175: 16 | E175: 15 | F175: 51.6
B176: - | C176: Santa Clara | D176: 16 | E176: 15 | F176: 51.6
B177: - | C177: Texas | D177: 16 | E177: 15 | F177: 51.6
B178: - | C178: UT Arlington | D178: 16 | E178: 15 | F178: 51.6
B179: - | C179: Howard | D179: 16 | E179: 15 | F179: 51.6
B180: - | C180: Portland St. | D180: 16 | E180: 15 | F180: 51.6
B181: - | C181: Rider | D181: 16 | E181: 15 | F181: 51.6
B182: - | C182: St. Bonaventure | D182: 16 | E182: 15 | F182: 51.6
B183: 178 | C183: Siena | D183: 17 | E183: 16 | F183: 51.5
B184: - | C184: Illinois St. | D184: 17 | E184: 16 | F184: 51.5
B185: - | C185: Delaware | D185: 17 | E185: 16 | F185: 51.5
B186: - | C186: Robert Morris | D186: 17 | E186: 16 | F186: 51.5
B187: - | C187: Green Bay | D187: 17 | E187: 16 | F187: 51.5
B188: - | C188: Samford | D188: 17 | E188: 16 | F188: 51.5
B189: 184 | C189: Ball St. | D189: 16 | E189: 16 | F189: 50.0
B190: - | C190: Butler | D190: 16 | E190: 16 | F190: 50.0
B191: - | C191: Northern Ill. | D191: 16 | E191: 16 | F191: 50.0
B192: - | C192: IUPUI | D192: 16 | E192: 16 | F192: 50.0
B193: - | C193: UIC | D193: 16 | E193: 16 | F193: 50.0
B194: - | C194: South Alabama | D194: 16 | E194: 16 | F194: 50.0
B195: - | C195: Missouri St. | D195: 16 | E195: 16 | F195: 50.0
B196: - | C196: LIU Brooklyn | D196: 16 | E196: 16 | F196: 50.0
B197: - | C197: Coastal Caro. | D197: 15 | E197: 15 | F197: 50.0
B198: - | C198: American | D198: 15 | E198: 15 | F198: 50.0
B199: - | C199: DePaul | D199: 15 | E199: 15 | F199: 50.0
B200: - | C200: Sacramento St. | D200: 15 | E200: 15 | F200: 50.0
B201: - | C201: Southern Utah | D201: 15 | E201: 15 | F201: 50.0
B202: - | C202: Cornell | D202: 15 | E202: 15 | F202: 50.0
B203: 198 | C203: Holy Cross | D203: 16 | E203: 17 | F203: 48.5
... 153 more rows
